Department Family,Entity,Date,Expense Type,Expense Area,Supplier,Transaction Number,Amount,Description
Department for Education,Core,06/01/2023,Other Costs,Operational Finance,Total Enterprise Solutions,CORE-PINV-049857,"42,183.33 ",Software Development
Department for Education,Core,06/01/2023,Other Costs,Operational Finance,AGILE MANAGEMENT SOLUTIONS LTD,CORE-PINV-049871,"3,988.34 ",Software Development
Department for Education,Core,06/01/2023,Other Costs,Operational Finance,AGILE MANAGEMENT SOLUTIONS LTD,CORE-PINV-049871,"3,988.34 ",Software Development
Department for Education,Core,06/01/2023,Other Costs,Operational Finance,AGILE MANAGEMENT SOLUTIONS LTD,CORE-PINV-049871,"7,976.68 ",Software Development
Department for Education,Core,06/01/2023,Other Costs,Operational Finance,AGILE MANAGEMENT SOLUTIONS LTD,CORE-PINV-049871,"15,953.35 ",Software Development
Department for Education,Core,06/01/2023,Other Costs,Operational Finance,AGILE MANAGEMENT SOLUTIONS LTD,CORE-PINV-049871,"127,626.80 ",Software Development
Department for Education,Core,11/01/2023,Other Costs,Operational Finance,Total Enterprise Solutions,CORE-PINV-047354,"25,775.00 ",Software Development
Department for Education,Core,16/01/2023,Other Costs,Operational Finance,Total Enterprise Solutions,CORE-PINV-050412,"41,000.00 ",Software Development
Department for Education,Core,13/01/2023,Accommodation & Estates - Maintenance,Operational Finance,Government Property Agency,CORE-PINV-048641,"42,597.01 ",Maintenance & Repairs
Department for Education,Core,13/01/2023,Accommodation & Estates - Maintenance,Operational Finance,Government Property Agency,CORE-PCR-001737,"-7,310.76 ",Maintenance & Repairs
Department for Education,Core,13/01/2023,Accommodation & Estates - Other,Operational Finance,Government Property Agency,CORE-PCR-001737,"-1,186.28 ",Estates Management
Department for Education,Core,13/01/2023,Accommodation & Estates - Rent & Rates,Operational Finance,Government Property Agency,CORE-PCR-001737,"-24,337.16 ",Rentals
Department for Education,Core,13/01/2023,Accommodation & Estates - Maintenance,Operational Finance,Government Property Agency,CORE-PCR-001738,"-5,498.67 ",Maintenance & Repairs
Department for Education,Core,13/01/2023,Accommodation & Estates - Other,Operational Finance,Government Property Agency,CORE-PCR-001738,"-1,616.12 ",Estates Management
Department for Education,Core,13/01/2023,Accommodation & Estates - Rent & Rates,Operational Finance,Government Property Agency,CORE-PCR-001738,"-21,284.75 ",Rentals
Department for Education,Core,13/01/2023,Accommodation & Estates - Other,Operational Finance,Government Property Agency,CORE-PINV-049300,"4,353.00 ",Estates Management
Department for Education,Core,13/01/2023,Accommodation & Estates - Rent & Rates,Operational Finance,Government Property Agency,CORE-PINV-049300,"44,963.55 ",Rentals
Department for Education,Core,13/01/2023,Accommodation & Estates - Maintenance,Operational Finance,Government Property Agency,CORE-PCR-001752,"-69,898.97 ",Maintenance & Repairs
Department for Education,Core,04/01/2023,IS/IT,Operational Finance,Cabinet Office,CORE-PINV-049724,"33,000.00 ",Software licences
Department for Education,Core,13/01/2023,Accommodation & Estates - Maintenance,Operational Finance,Government Property Agency,CORE-PINV-050316,"337,047.98 ",Maintenance & Repairs
Department for Education,Core,13/01/2023,Accommodation & Estates - Rent & Rates,Operational Finance,Government Property Agency,CORE-PINV-050316,"440,437.46 ",Rentals
Department for Education,Core,23/01/2023,Accommodation & Estates - Maintenance,Operational Finance,Government Property Agency,CORE-PINV-048934,"68,891.66 ",Maintenance & Repairs
Department for Education,Core,05/01/2023,Other Costs,Operational Finance,Arcadis LLP,CORE-PINV-048820,"51,461.30 ",Building Improvements
Department for Education,Core,05/01/2023,Other Costs,Operational Finance,Arcadis LLP,CORE-PINV-048875,"139,880.98 ",Building Improvements
Department for Education,Core,05/01/2023,Other Costs,Operational Finance,Arcadis LLP,CORE-PINV-048876,"57,056.99 ",Building Improvements
Department for Education,Core,26/01/2023,Other Costs,Operational Finance,Willmott Dixon Construction Limited,CORE-PINV-051083,"37,142.34 ",Building Improvements
Department for Education,Core,30/01/2023,Other Costs,Operational Finance,Willmott Dixon Construction Limited,CORE-PINV-051199,"1,312,718.32 ",Building Improvements
Department for Education,Core,10/01/2023,IS/IT,Funding,WELLDATA LTD,CORE-PINV-049949,"52,250.00 ",ICT Support & Services
Department for Education,Core,25/01/2023,Consultancy,Commercial,Cabinet Office,CORE-PINV-050892,"123,650.00 ",Consultancy - Strategy
Department for Education,Core,26/01/2023,Staff - Temporary Staff,Commercial,INVESTIGO LTD,CORE-PINV-051068,"65,437.24 ",Short term & agency staff
Department for Education,Core,27/01/2023,Other Goods & Services,Commercial,WILLIS LIMITED,CORE-PINV-051196,"85,365.00 ",Professional Services
Department for Education,Core,18/01/2023,Legal,Commercial,THE GOVERNMENT LEGAL DEPARTMENT,CORE-PINV-050627,"365,000.00 ",Professional Services - Legal
Department for Education,Core,31/01/2023,Other Goods & Services,Commercial,Cabinet Office,CORE-PCR-001832,"-37,000.00 ",Professional Services
Department for Education,Core,25/01/2023,Provisions,Human Resources,Broadstone Pensions Limited,CORE-PINV-050408,"65,032.53 ",Pension payments for a small closed pension scheme
Department for Education,Core,16/01/2023,Staff - Other,Human Resources,Cabinet Office,CORE-PINV-050440,"30,800.00 ",Recruitment Advertising
Department for Education,Core,27/01/2023,Staff - Bonuses,Human Resources,EDENRED (INCENTIVES & MOTIVATION) LIMITED,CORE-PINV-051075,"31,900.00 ",Rewards & Recognition
Department for Education,Core,20/01/2023,IS/IT,Technology,COMPUTACENTER PLC,CORE-PINV-050330,"200,807.06 ",ICT Support & Services
Department for Education,Core,20/01/2023,IS/IT,Technology,Probrand Limited,CORE-PINV-050666,"51,571.20 ",Components & Peripherals
Department for Education,Core,05/01/2023,Learning & Development,Customer Experience and Digital,PLURALSIGHT LLC,CUPS0059241,"37,425.87 ",Training costs
Department for Education,Core,16/01/2023,Other Goods & Services,Customer Experience and Digital,CABINET OFFICE RM SHARED SERVICES,CORE-PINV-050443,"211,605.00 ",Fast Stream Costs
Department for Education,Core,25/01/2023,Other Goods & Services,Customer Experience and Digital,NASEN,CORE-PINV-050945,"48,640.80 ",Professional Services
Department for Education,Core,06/01/2023,IS/IT,Technology,Bytes Software Services Ltd,CORE-PINV-049897,"108,096.80 ",End User Software & Hardware
Department for Education,Core,31/01/2023,IS/IT,Technology,ACTISOFT TECHNOLOGY LIMITED,CORE-PINV-050870,"55,843.46 ",End User Software & Hardware
Department for Education,Core,05/01/2023,IS/IT,Technology,Bytes Software Services Ltd,CORE-PINV-049462,"1,264,383.00 ",Systems Development
Department for Education,Core,09/01/2023,IS/IT,Technology,SOL-TEC LIMITED,CORE-PINV-049914,"80,778.86 ",Systems Operations
Department for Education,Core,10/01/2023,IS/IT,Technology,BT GROUP PLC,CORE-PINV-049987,"247,262.21 ",Telecoms facilities and services
Department for Education,Core,31/01/2023,IS/IT,Technology,Cabinet Office,CORE-PINV-051084,"76,130.69 ",End User Software & Hardware
Department for Education,Core,09/01/2023,IS/IT,Technology,Methods Business and Digital Technology Ltd,CORE-PINV-049725,"102,530.86 ",Systems Operations
Department for Education,Core,09/01/2023,IS/IT,Technology,Methods Business and Digital Technology Ltd,CORE-PCR-001476,"-200,620.50 ",Systems Operations
Department for Education,Core,11/01/2023,IS/IT,Technology,Methods Business and Digital Technology Ltd,CORE-PINV-050076,"200,620.50 ",Systems Operations
Department for Education,Core,20/01/2023,IS/IT,Technology,Methods Business and Digital Technology Ltd,CORE-PINV-050492,"61,869.60 ",Systems Operations
Department for Education,Core,31/01/2023,IS/IT,Technology,Methods Business and Digital Technology Ltd,CORE-PINV-051007,"120,060.00 ",Systems Operations
Department for Education,Core,05/01/2023,Other Goods & Services,SARDIS,IFF RESEARCH LTD,CORE-PINV-047391,"99,628.00 ",Research & Evaluation
Department for Education,Core,05/01/2023,Other Goods & Services,SARDIS,Kantar UK Ltd,CORE-PINV-049196,"65,267.00 ",Research & Evaluation
Department for Education,Core,25/01/2023,Other Goods & Services,SARDIS,IFF RESEARCH LTD,CORE-PINV-050652,"22,189.05 ",Research & Evaluation
Department for Education,Core,27/01/2023,Other Goods & Services,SARDIS,NATIONAL CENTRE FOR SOCIAL RESEARCH,CORE-PINV-047968,"24,819.00 ",Research & Evaluation
Department for Education,Core,30/01/2023,Other Goods & Services,SARDIS,ECORYS UK LTD,CORE-PINV-051061,"104,986.00 ",Research & Evaluation
Department for Education,Core,05/01/2023,Other Costs,SARDIS,IPSOS (MARKET RESEARCH) LTD,CORE-PINV-049517,"36,371.00 ",Research & development
Department for Education,Core,05/01/2023,Other Costs,SARDIS,IFF RESEARCH LTD,CORE-PINV-049666,"88,393.71 ",Research & development
Department for Education,Core,05/01/2023,Other Costs,SARDIS,IFF RESEARCH LTD,CORE-PINV-049667,"103,208.07 ",Research & development
Department for Education,Core,13/01/2023,Other Costs,SARDIS,KANTAR PUBLIC UK LIMITED,CORE-PINV-048972,"1,415,200.00 ",Research & development
Department for Education,Core,13/01/2023,Other Costs,SARDIS,NATIONAL FOUNDATION FOR EDUCATIONAL RESEARCH NFER,CORE-PINV-049933,"215,797.00 ",Research & development
Department for Education,Core,19/01/2023,Other Costs,SARDIS,ECORYS UK LTD,CORE-PINV-050270,"25,272.00 ",Research & development
Department for Education,Core,06/01/2023,IS/IT,Data,Engine Partners UK LLP - Engine Transformation,CORE-PINV-048375,"28,658.00 ",ICT repair & maintenance
Department for Education,Core,23/01/2023,IS/IT,Data,Bramble Hub Limited,CORE-PINV-050360,"80,652.00 ",ICT repair & maintenance
Department for Education,Core,23/01/2023,IS/IT,Data,Engine Partners UK LLP - Engine Transformation,CORE-PINV-050265,"105,353.00 ",ICT repair & maintenance
Department for Education,Core,23/01/2023,IS/IT,Data,Engine Partners UK LLP - Engine Transformation,CORE-PINV-050266,"286,950.00 ",ICT repair & maintenance
Department for Education,Core,23/01/2023,IS/IT,Data,Engine Partners UK LLP - Engine Transformation,CORE-PINV-050273,"72,270.00 ",ICT repair & maintenance
Department for Education,Core,25/01/2023,IS/IT,Data,Engine Partners UK LLP - Engine Transformation,CORE-PINV-050268,"76,500.00 ",ICT repair & maintenance
Department for Education,Core,25/01/2023,IS/IT,Data,Engine Partners UK LLP - Engine Transformation,CORE-PINV-050274,"91,974.00 ",ICT repair & maintenance
Department for Education,Core,25/01/2023,IS/IT,Data,Engine Partners UK LLP - Engine Transformation,CORE-PINV-050279,"27,000.00 ",ICT repair & maintenance
Department for Education,Core,31/01/2023,IS/IT,Data,Engine Partners UK LLP - Engine Transformation,CORE-PINV-050269,"39,600.00 ",ICT repair & maintenance
Department for Education,Core,16/01/2023,IS/IT,SARDIS,HIVE IT LIMITED,CORE-PINV-050383,"65,452.80 ",Systems Operations
Department for Education,Core,13/01/2023,IS/IT,Data,RM PLC,CORE-PINV-050267,"520,618.60 ",Systems Operations
Department for Education,Core,05/01/2023,IS/IT,Data,INFORMATICA SOFTWARE LTD,CORE-PINV-048982,"124,444.94 ",End User Software & Hardware
Department for Education,Core,09/01/2023,IS/IT,"Disadvantage, International and Sustainability Directorate (DISD)",SHARED SERVICES CONNECTED LTD,CORE-PINV-049867,"28,917.74 ",Systems Operations
Department for Education,Core,16/01/2023,Other Goods & Services,Capital Directorate,Ove Arup & Partners Limited,D-PINV051217,"30,583.20 ",Professional Services
Department for Education,Core,09/01/2023,Grants Expenditure,Capital Directorate,Portakabin Ltd,D-PINV051264,"166,226.58 ",Current grants - Academy Trust
Department for Education,Core,16/01/2023,Other Costs,Capital Directorate,Mott MacDonald Ltd,D-PINV050778,"142,214.40 ",Research & development
Department for Education,Core,16/01/2023,Other Costs,Capital Directorate,Mott MacDonald Ltd,D-PINV050936,"180,459.60 ",Research & development
Department for Education,Core,20/01/2023,Other Costs,Capital Directorate,REXEL UK LIMITED,D-PCR001072,"-524,880.00 ",Air Filtration/Covid Ventilation
Department for Education,Core,20/01/2023,Other Costs,Capital Directorate,REXEL UK LIMITED,D-PINV051650,"6,948,617.76 ",Air Filtration/Covid Ventilation
Department for Education,Core,20/01/2023,Other Costs,Capital Directorate,REXEL UK LIMITED,D-PCR001151,"-2,564,789.52 ",Air Filtration/Covid Ventilation
Department for Education,Core,26/01/2023,Other Costs,Capital Directorate,REXEL UK LIMITED,D-PINV051776,"10,404,719.42 ",Air Filtration/Covid Ventilation
Department for Education,Core,05/01/2023,Other Goods & Services,Capital Directorate,Bowmer & Kirkland Ltd,D-PINV050489,"876,355.20 ",Professional Services
Department for Education,Core,06/01/2023,Grants Expenditure,Capital Directorate,Archdiocese of Liverpool,DU00097245,"55,212.00 ",Capital grants - Local Government
Department for Education,Core,06/01/2023,Grants Expenditure,Capital Directorate,Tolleshunt D'Arcy St. Nicholas CofE Primary,DU00097246,"34,880.56 ",Capital grants - Academy Trust
Department for Education,Core,06/01/2023,Grants Expenditure,Capital Directorate,Finchingfield St. John's C of E Primary Academy,DU00097247,"34,880.56 ",Capital grants - Academy Trust
Department for Education,Core,06/01/2023,Grants Expenditure,Capital Directorate,NORTHUMBERLAND COUNTY COUNCIL,DU00097255,"27,011.36 ",Capital grants - Local Government
Department for Education,Core,06/01/2023,Grants Expenditure,Capital Directorate,Diocese of Lancaster,DU00097257,"34,285.41 ",Capital grants - Local Government
Department for Education,Core,13/01/2023,Grants Expenditure,Capital Directorate,Exceed Learning Partnership,DU00097419,"64,912.93 ",Capital grants - Academy Trust
Department for Education,Core,13/01/2023,Grants Expenditure,Capital Directorate,Exceed Learning Partnership,DU00097421,"46,407.20 ",Capital grants - Academy Trust
Department for Education,Core,13/01/2023,Grants Expenditure,Capital Directorate,Exceed Learning Partnership,DU00097422,"58,990.74 ",Capital grants - Academy Trust
Department for Education,Core,13/01/2023,Grants Expenditure,Capital Directorate,Exceed Learning Partnership,DU00097423,"62,034.83 ",Capital grants - Academy Trust
Department for Education,Core,13/01/2023,Grants Expenditure,Capital Directorate,LIVERPOOL CITY COUNCIL,DU00097424,"53,061.96 ",Capital grants - Local Government
Department for Education,Core,13/01/2023,Grants Expenditure,Capital Directorate,LIVERPOOL CITY COUNCIL,DU00097425,"151,612.80 ",Capital grants - Local Government
Department for Education,Core,13/01/2023,Grants Expenditure,Capital Directorate,LIVERPOOL CITY COUNCIL,DU00097426,"30,062.10 ",Capital grants - Local Government
Department for Education,Core,20/01/2023,Grants Expenditure,Capital Directorate,West Sussex County Council,DU00098881,"26,376.40 ",Capital grants - Local Government
Department for Education,Core,20/01/2023,Grants Expenditure,Capital Directorate,Exceed Learning Partnership,DU00098882,"54,554.29 ",Capital grants - Academy Trust
Department for Education,Core,20/01/2023,Grants Expenditure,Capital Directorate,Exceed Learning Partnership,DU00098883,"50,676.19 ",Capital grants - Academy Trust
Department for Education,Core,20/01/2023,Grants Expenditure,Capital Directorate,Exceed Learning Partnership,DU00098884,"54,895.49 ",Capital grants - Academy Trust
Department for Education,Core,20/01/2023,Grants Expenditure,Capital Directorate,West Sussex County Council,DU00098886,"30,496.40 ",Capital grants - Local Government
Department for Education,Core,27/01/2023,Grants Expenditure,Capital Directorate,Stanley Learning Partnership,DU00098889,"28,177.98 ",Capital grants - Academy Trust
Department for Education,Core,20/01/2023,Grants Expenditure,Capital Directorate,Lancashire County Council,DU00098896,"50,129.51 ",Capital grants - Local Government
Department for Education,Core,20/01/2023,Grants Expenditure,Capital Directorate,Flying High Trust,DU00098902,"45,030.82 ",Capital grants - Academy Trust
Department for Education,Core,20/01/2023,Grants Expenditure,Capital Directorate,Flying High Trust,DU00098903,"55,170.75 ",Capital grants - Academy Trust
Department for Education,Core,20/01/2023,Grants Expenditure,Capital Directorate,Flying High Trust,DU00098904,"51,202.71 ",Capital grants - Academy Trust
Department for Education,Core,27/01/2023,Grants Expenditure,Capital Directorate,LIVERPOOL CITY COUNCIL,DU00098925,"36,138.47 ",Capital grants - Local Government
Department for Education,Core,27/01/2023,Grants Expenditure,Capital Directorate,DURHAM COUNTY COUNCIL,DU00098933,"72,529.90 ",Capital grants - Local Government
Department for Education,Core,05/01/2023,Other Goods & Services,Capital Directorate,COGNIZANT WORLDWIDE LIMITED,D-PINV051227,"34,320.00 ",Professional Services
Department for Education,Core,11/01/2023,Other Goods & Services,Capital Directorate,COGNIZANT WORLDWIDE LIMITED,D-PINV051333,"48,663.00 ",Professional Services
Department for Education,Core,11/01/2023,Other Goods & Services,Capital Directorate,COGNIZANT WORLDWIDE LIMITED,D-PINV051335,"68,310.00 ",Professional Services
Department for Education,Core,20/01/2023,Grants Expenditure,Capital Directorate,BARKING & DAGENHAM LONDON BOROUGH COUNCIL,CL058446,"793,783.83 ",Capital grants - Local Government
Department for Education,Core,20/01/2023,Grants Expenditure,Capital Directorate,BATH & NORTH EAST SOMERSET COUNCIL,CL058447,"110,337.66 ",Capital grants - Local Government
Department for Education,Core,20/01/2023,Grants Expenditure,Capital Directorate,BEDFORD BOROUGH COUNCIL,CL058448,"864,381.61 ",Capital grants - Local Government
Department for Education,Core,20/01/2023,Grants Expenditure,Capital Directorate,BIRMINGHAM CITY COUNCIL,CL058449,"2,762,751.01 ",Capital grants - Local Government
Department for Education,Core,20/01/2023,Grants Expenditure,Capital Directorate,Blackburn with Darwen Borough Council,CL058450,"132,321.48 ",Capital grants - Local Government
Department for Education,Core,20/01/2023,Grants Expenditure,Capital Directorate,BRADFORD CITY COUNCIL,CL058451,"38,189.26 ",Capital grants - Local Government
Department for Education,Core,20/01/2023,Grants Expenditure,Capital Directorate,BRENT LONDON BOROUGH COUNCIL,CL058452,"1,187,126.79 ",Capital grants - Local Government
Department for Education,Core,20/01/2023,Grants Expenditure,Capital Directorate,Bristol City Council,CL058453,"1,412,573.66 ",Capital grants - Local Government
Department for Education,Core,20/01/2023,Grants Expenditure,Capital Directorate,Buckinghamshire Council,CL058454,"849,789.36 ",Capital grants - Local Government
Department for Education,Core,20/01/2023,Grants Expenditure,Capital Directorate,CALDERDALE METRO BOROUGH COUNCIL,CL058455,"358,995.21 ",Capital grants - Local Government
Department for Education,Core,20/01/2023,Grants Expenditure,Capital Directorate,CAMBRIDGESHIRE COUNTY COUNCIL,CL058456,"1,741,166.81 ",Capital grants - Local Government
Department for Education,Core,20/01/2023,Grants Expenditure,Capital Directorate,CENTRAL BEDFORDSHIRE COUNCIL,CL058457,"1,512,354.24 ",Capital grants - Local Government
Department for Education,Core,20/01/2023,Grants Expenditure,Capital Directorate,Cheshire East Council,CL058458,"625,916.03 ",Capital grants - Local Government
Department for Education,Core,20/01/2023,Grants Expenditure,Capital Directorate,CHESHIRE WEST & CHESTER COUNCIL,CL058459,"249,352.88 ",Capital grants - Local Government
Department for Education,Core,20/01/2023,Grants Expenditure,Capital Directorate,CORNWALL COUNCIL,CL058460,"635,684.90 ",Capital grants - Local Government
Department for Education,Core,20/01/2023,Grants Expenditure,Capital Directorate,COVENTRY CITY COUNCIL,CL058461,"1,524,946.82 ",Capital grants - Local Government
Department for Education,Core,20/01/2023,Grants Expenditure,Capital Directorate,CUMBRIA COUNTY COUNCIL,CL058462,"51,446.20 ",Capital grants - Local Government
Department for Education,Core,20/01/2023,Grants Expenditure,Capital Directorate,DEVON COUNTY COUNCIL,CL058463,"883,664.61 ",Capital grants - Local Government
Department for Education,Core,20/01/2023,Grants Expenditure,Capital Directorate,DONCASTER METRO BOROUGH COUNCIL,CL058464,"367,626.26 ",Capital grants - Local Government
Department for Education,Core,20/01/2023,Grants Expenditure,Capital Directorate,DUDLEY METRO BOROUGH COUNCIL,CL058465,"603,713.52 ",Capital grants - Local Government
Department for Education,Core,20/01/2023,Grants Expenditure,Capital Directorate,DURHAM COUNTY COUNCIL,CL058466,"110,233.98 ",Capital grants - Local Government
Department for Education,Core,20/01/2023,Grants Expenditure,Capital Directorate,EAST SUSSEX COUNTY COUNCIL,CL058467,"577,433.76 ",Capital grants - Local Government
Department for Education,Core,20/01/2023,Grants Expenditure,Capital Directorate,ENFIELD LONDON BOROUGH COUNCIL,CL058468,"94,885.06 ",Capital grants - Local Government
Department for Education,Core,20/01/2023,Grants Expenditure,Capital Directorate,ESSEX COUNTY COUNCIL,CL058469,"2,842,143.40 ",Capital grants - Local Government
Department for Education,Core,20/01/2023,Grants Expenditure,Capital Directorate,Gloucestershire County Council,CL058471,"803,479.88 ",Capital grants - Local Government
Department for Education,Core,20/01/2023,Grants Expenditure,Capital Directorate,GREENWICH LONDON BOROUGH COUNCIL,CL058472,"481,399.59 ",Capital grants - Local Government
Department for Education,Core,20/01/2023,Grants Expenditure,Capital Directorate,HALTON BOROUGH COUNCIL,CL058473,"30,909.36 ",Capital grants - Local Government
Department for Education,Core,20/01/2023,Grants Expenditure,Capital Directorate,HARROW LONDON BOROUGH COUNCIL,CL058474,"475,805.94 ",Capital grants - Local Government
Department for Education,Core,20/01/2023,Grants Expenditure,Capital Directorate,HERTFORDSHIRE COUNTY COUNCIL,CL058475,"1,703,355.08 ",Capital grants - Local Government
Department for Education,Core,20/01/2023,Grants Expenditure,Capital Directorate,HOUNSLOW LONDON BOROUGH COUNCIL,CL058476,"325,944.24 ",Capital grants - Local Government
Department for Education,Core,20/01/2023,Grants Expenditure,Capital Directorate,KENT COUNTY COUNCIL,CL058477,"2,393,835.28 ",Capital grants - Local Government
Department for Education,Core,20/01/2023,Grants Expenditure,Capital Directorate,KINGSTON UPON HULL CITY COUNCIL,CL058478,"921,983.31 ",Capital grants - Local Government
Department for Education,Core,20/01/2023,Grants Expenditure,Capital Directorate,ROYAL BOROUGH OF KINGSTON UPON THAMES COUNCIL,CL058479,"89,477.22 ",Capital grants - Local Government
Department for Education,Core,20/01/2023,Grants Expenditure,Capital Directorate,Lancashire County Council,CL058480,"775,433.42 ",Capital grants - Local Government
Department for Education,Core,20/01/2023,Grants Expenditure,Capital Directorate,LEEDS CITY COUNCIL,CL058481,"454,502.56 ",Capital grants - Local Government
Department for Education,Core,20/01/2023,Grants Expenditure,Capital Directorate,LEICESTER CITY COUNCIL,CL058482,"187,555.04 ",Capital grants - Local Government
Department for Education,Core,20/01/2023,Grants Expenditure,Capital Directorate,LEICESTERSHIRE COUNTY COUNCIL,CL058483,"1,049,152.92 ",Capital grants - Local Government
Department for Education,Core,20/01/2023,Grants Expenditure,Capital Directorate,LINCOLNSHIRE COUNTY COUNCIL,CL058484,"690,773.62 ",Capital grants - Local Government
Department for Education,Core,20/01/2023,Grants Expenditure,Capital Directorate,LIVERPOOL CITY COUNCIL,CL058485,"687,306.89 ",Capital grants - Local Government
Department for Education,Core,20/01/2023,Grants Expenditure,Capital Directorate,MANCHESTER CITY COUNCIL,CL058486,"513,779.45 ",Capital grants - Local Government
Department for Education,Core,20/01/2023,Grants Expenditure,Capital Directorate,Middlesbrough Council,CL058487,"195,347.53 ",Capital grants - Local Government
Department for Education,Core,20/01/2023,Grants Expenditure,Capital Directorate,MILTON KEYNES COUNCIL,CL058488,"1,482,558.70 ",Capital grants - Local Government
Department for Education,Core,20/01/2023,Grants Expenditure,Capital Directorate,Newcastle upon Tyne City Council,CL058489,"400,065.29 ",Capital grants - Local Government
Department for Education,Core,20/01/2023,Grants Expenditure,Capital Directorate,NEWHAM LONDON BOROUGH COUNCIL,CL058490,"1,525,581.49 ",Capital grants - Local Government
Department for Education,Core,20/01/2023,Grants Expenditure,Capital Directorate,NORFOLK COUNTY COUNCIL,CL058491,"959,641.68 ",Capital grants - Local Government
Department for Education,Core,20/01/2023,Grants Expenditure,Capital Directorate,North East Lincolnshire Council,CL058492,"220,687.84 ",Capital grants - Local Government
Department for Education,Core,20/01/2023,Grants Expenditure,Capital Directorate,NORTH LINCOLNSHIRE COUNCIL,CL058493,"152,607.26 ",Capital grants - Local Government
Department for Education,Core,20/01/2023,Grants Expenditure,Capital Directorate,NORTH TYNESIDE METRO BOROUGH COUNCIL,CL058494,"37,265.18 ",Capital grants - Local Government
Department for Education,Core,20/01/2023,Grants Expenditure,Capital Directorate,NORTH YORKSHIRE COUNTY COUNCIL,CL058495,"353,578.78 ",Capital grants - Local Government
Department for Education,Core,20/01/2023,Grants Expenditure,Capital Directorate,NOTTINGHAMSHIRE COUNTY COUNCIL,CL058496,"142,197.90 ",Capital grants - Local Government
Department for Education,Core,20/01/2023,Grants Expenditure,Capital Directorate,OLDHAM METRO BOROUGH COUNCIL,CL058497,"406,530.20 ",Capital grants - Local Government
Department for Education,Core,20/01/2023,Grants Expenditure,Capital Directorate,Oxfordshire County Council,CL058498,"409,415.82 ",Capital grants - Local Government
Department for Education,Core,20/01/2023,Grants Expenditure,Capital Directorate,PETERBOROUGH CITY COUNCIL,CL058499,"356,120.06 ",Capital grants - Local Government
Department for Education,Core,20/01/2023,Grants Expenditure,Capital Directorate,PORTSMOUTH CITY COUNCIL,CL058500,"263,640.96 ",Capital grants - Local Government
Department for Education,Core,20/01/2023,Grants Expenditure,Capital Directorate,Reading Borough Council,CL058501,"262,619.42 ",Capital grants - Local Government
Department for Education,Core,20/01/2023,Grants Expenditure,Capital Directorate,REDBRIDGE LONDON BOROUGH COUNCIL,CL058502,"3,382,762.38 ",Capital grants - Local Government
Department for Education,Core,20/01/2023,Grants Expenditure,Capital Directorate,RICHMOND UPON THAMES LONDON BOROUGH COUNCIL,CL058504,"418,300.89 ",Capital grants - Local Government
Department for Education,Core,20/01/2023,Grants Expenditure,Capital Directorate,ROCHDALE BOROUGH COUNCIL,CL058505,"547,362.13 ",Capital grants - Local Government
Department for Education,Core,20/01/2023,Grants Expenditure,Capital Directorate,Salford City Council,CL058507,"44,251.88 ",Capital grants - Local Government
Department for Education,Core,20/01/2023,Grants Expenditure,Capital Directorate,Sandwell Metro Borough Council,CL058508,"1,273,122.27 ",Capital grants - Local Government
Department for Education,Core,20/01/2023,Grants Expenditure,Capital Directorate,SOLIHULL METRO BOROUGH COUNCIL,CL058509,"87,831.15 ",Capital grants - Local Government
Department for Education,Core,20/01/2023,Grants Expenditure,Capital Directorate,Somerset County Council,CL058510,"346,813.54 ",Capital grants - Local Government
Department for Education,Core,20/01/2023,Grants Expenditure,Capital Directorate,SOUTH GLOUCESTERSHIRE COUNCIL,CL058511,"198,968.10 ",Capital grants - Local Government
Department for Education,Core,20/01/2023,Grants Expenditure,Capital Directorate,SOUTHAMPTON CITY COUNCIL,CL058512,"861,315.24 ",Capital grants - Local Government
Department for Education,Core,20/01/2023,Grants Expenditure,Capital Directorate,Staffordshire County Council,CL058514,"238,497.80 ",Capital grants - Local Government
Department for Education,Core,20/01/2023,Grants Expenditure,Capital Directorate,STOKE ON TRENT CITY COUNCIL,CL058515,"512,895.50 ",Capital grants - Local Government
Department for Education,Core,20/01/2023,Grants Expenditure,Capital Directorate,SUFFOLK COUNTY COUNCIL,CL058516,"506,969.93 ",Capital grants - Local Government
Department for Education,Core,20/01/2023,Grants Expenditure,Capital Directorate,SURREY COUNTY COUNCIL,CL058517,"2,682,642.29 ",Capital grants - Local Government
Department for Education,Core,20/01/2023,Grants Expenditure,Capital Directorate,London Borough of Sutton,CL058518,"567,282.79 ",Capital grants - Local Government
Department for Education,Core,20/01/2023,Grants Expenditure,Capital Directorate,TAMESIDE METRO BOROUGH COUNCIL,CL058519,"753,013.38 ",Capital grants - Local Government
Department for Education,Core,20/01/2023,Grants Expenditure,Capital Directorate,THURROCK BOROUGH COUNCIL,CL058520,"178,966.89 ",Capital grants - Local Government
Department for Education,Core,20/01/2023,Grants Expenditure,Capital Directorate,TORBAY COUNCIL,CL058521,"216,991.54 ",Capital grants - Local Government
Department for Education,Core,20/01/2023,Grants Expenditure,Capital Directorate,Wakefield City Council,CL058523,"314,397.73 ",Capital grants - Local Government
Department for Education,Core,20/01/2023,Grants Expenditure,Capital Directorate,WARRINGTON BOROUGH COUNCIL,CL058524,"255,435.64 ",Capital grants - Local Government
Department for Education,Core,20/01/2023,Grants Expenditure,Capital Directorate,WARWICKSHIRE COUNTY COUNCIL,CL058525,"532,489.12 ",Capital grants - Local Government
Department for Education,Core,20/01/2023,Grants Expenditure,Capital Directorate,WEST BERKSHIRE COUNCIL,CL058526,"81,545.71 ",Capital grants - Local Government
Department for Education,Core,20/01/2023,Grants Expenditure,Capital Directorate,West Sussex County Council,CL058527,"895,159.30 ",Capital grants - Local Government
Department for Education,Core,20/01/2023,Grants Expenditure,Capital Directorate,WESTMINSTER CITY COUNCIL,CL058528,"458,359.57 ",Capital grants - Local Government
Department for Education,Core,20/01/2023,Grants Expenditure,Capital Directorate,Wigan Metropolitan Borough Council,CL058529,"775,545.27 ",Capital grants - Local Government
Department for Education,Core,20/01/2023,Grants Expenditure,Capital Directorate,WILTSHIRE COUNTY COUNCIL,CL058530,"598,274.27 ",Capital grants - Local Government
Department for Education,Core,20/01/2023,Grants Expenditure,Capital Directorate,ROYAL BOROUGH OF WINDSOR & MAIDENHEAD,CL058531,"160,022.15 ",Capital grants - Local Government
Department for Education,Core,20/01/2023,Grants Expenditure,Capital Directorate,WOKINGHAM COUNCIL,CL058532,"631,466.51 ",Capital grants - Local Government
Department for Education,Core,20/01/2023,Grants Expenditure,Capital Directorate,WOLVERHAMPTON CITY COUNCIL,CL058533,"851,695.88 ",Capital grants - Local Government
Department for Education,Core,20/01/2023,Grants Expenditure,Capital Directorate,Worcestershire County Council,CL058534,"899,441.25 ",Capital grants - Local Government
Department for Education,Core,20/01/2023,Grants Expenditure,Capital Directorate,CITY OF YORK COUNCIL,CL058535,"94,364.76 ",Capital grants - Local Government
Department for Education,Core,20/01/2023,Grants Expenditure,Capital Directorate,North Northamptonshire Council,CL058536,"70,177.95 ",Capital grants - Local Government
Department for Education,Core,20/01/2023,Grants Expenditure,Capital Directorate,West Northamptonshire Council,CL058537,"96,380.74 ",Capital grants - Local Government
Department for Education,Core,27/01/2023,Grants Expenditure,Capital Directorate,Wohl Ilford Jewish Primary School,D-CINV003832,"26,445.90 ",Capital grants - Local Government
Department for Education,Core,20/01/2023,Grants Expenditure,Capital Directorate,CAMDEN LONDON BOROUGH COUNCIL,CL058538,"196,997.75 ",Capital grants - Local Government
Department for Education,Core,20/01/2023,Grants Expenditure,Capital Directorate,GREENWICH LONDON BOROUGH COUNCIL,CL058539,"321,187.07 ",Capital grants - Local Government
Department for Education,Core,20/01/2023,Grants Expenditure,Capital Directorate,HACKNEY LONDON BOROUGH COUNCIL,CL058540,"380,340.34 ",Capital grants - Local Government
Department for Education,Core,20/01/2023,Grants Expenditure,Capital Directorate,HAMMERSMITH & FULHAM LONDON BOROUGH COUNCIL,CL058541,"151,885.87 ",Capital grants - Local Government
Department for Education,Core,20/01/2023,Grants Expenditure,Capital Directorate,ISLINGTON LONDON BOROUGH COUNCIL,CL058542,"222,525.49 ",Capital grants - Local Government
Department for Education,Core,20/01/2023,Grants Expenditure,Capital Directorate,ROYAL BOROUGH OF KENSINGTON & CHELSEA COUNCIL,CL058543,"76,173.12 ",Capital grants - Local Government
Department for Education,Core,20/01/2023,Grants Expenditure,Capital Directorate,LAMBETH LONDON BOROUGH COUNCIL,CL058544,"365,192.52 ",Capital grants - Local Government
Department for Education,Core,20/01/2023,Grants Expenditure,Capital Directorate,LEWISHAM LONDON BOROUGH COUNCIL,CL058545,"450,600.73 ",Capital grants - Local Government
Department for Education,Core,20/01/2023,Grants Expenditure,Capital Directorate,SOUTHWARK LONDON BOROUGH COUNCIL,CL058546,"261,779.54 ",Capital grants - Local Government
Department for Education,Core,20/01/2023,Grants Expenditure,Capital Directorate,London Borough of Tower Hamlets,CL058547,"514,673.72 ",Capital grants - Local Government
Department for Education,Core,20/01/2023,Grants Expenditure,Capital Directorate,Wandsworth Borough Council,CL058548,"216,643.10 ",Capital grants - Local Government
Department for Education,Core,20/01/2023,Grants Expenditure,Capital Directorate,WESTMINSTER CITY COUNCIL,CL058549,"37,360.10 ",Capital grants - Local Government
Department for Education,Core,20/01/2023,Grants Expenditure,Capital Directorate,BARKING & DAGENHAM LONDON BOROUGH COUNCIL,CL058550,"576,406.82 ",Capital grants - Local Government
Department for Education,Core,20/01/2023,Grants Expenditure,Capital Directorate,BARNET LONDON BOROUGH COUNCIL,CL058551,"385,241.18 ",Capital grants - Local Government
Department for Education,Core,20/01/2023,Grants Expenditure,Capital Directorate,BEXLEY LONDON BOROUGH COUNCIL,CL058552,"113,963.31 ",Capital grants - Local Government
Department for Education,Core,20/01/2023,Grants Expenditure,Capital Directorate,BRENT LONDON BOROUGH COUNCIL,CL058553,"275,508.63 ",Capital grants - Local Government
Department for Education,Core,20/01/2023,Grants Expenditure,Capital Directorate,BROMLEY LONDON BOROUGH COUNCIL,CL058554,"42,506.01 ",Capital grants - Local Government
Department for Education,Core,20/01/2023,Grants Expenditure,Capital Directorate,CROYDON LONDON BOROUGH COUNCIL,CL058555,"267,880.55 ",Capital grants - Local Government
Department for Education,Core,20/01/2023,Grants Expenditure,Capital Directorate,EALING LONDON BOROUGH COUNCIL,CL058556,"663,511.76 ",Capital grants - Local Government
Department for Education,Core,20/01/2023,Grants Expenditure,Capital Directorate,ENFIELD LONDON BOROUGH COUNCIL,CL058557,"822,991.01 ",Capital grants - Local Government
Department for Education,Core,20/01/2023,Grants Expenditure,Capital Directorate,HARINGEY LONDON BOROUGH COUNCIL,CL058558,"493,517.76 ",Capital grants - Local Government
Department for Education,Core,20/01/2023,Grants Expenditure,Capital Directorate,HARROW LONDON BOROUGH COUNCIL,CL058559,"302,961.65 ",Capital grants - Local Government
Department for Education,Core,20/01/2023,Grants Expenditure,Capital Directorate,HAVERING LONDON BOROUGH COUNCIL,CL058560,"291,365.49 ",Capital grants - Local Government
Department for Education,Core,20/01/2023,Grants Expenditure,Capital Directorate,London Borough of Hillingdon,CL058561,"362,976.93 ",Capital grants - Local Government
Department for Education,Core,20/01/2023,Grants Expenditure,Capital Directorate,HOUNSLOW LONDON BOROUGH COUNCIL,CL058562,"479,387.45 ",Capital grants - Local Government
Department for Education,Core,20/01/2023,Grants Expenditure,Capital Directorate,ROYAL BOROUGH OF KINGSTON UPON THAMES COUNCIL,CL058563,"88,616.72 ",Capital grants - Local Government
Department for Education,Core,20/01/2023,Grants Expenditure,Capital Directorate,MERTON BOROUGH COUNCIL,CL058564,"266,668.97 ",Capital grants - Local Government
Department for Education,Core,20/01/2023,Grants Expenditure,Capital Directorate,NEWHAM LONDON BOROUGH COUNCIL,CL058565,"391,144.51 ",Capital grants - Local Government
Department for Education,Core,20/01/2023,Grants Expenditure,Capital Directorate,REDBRIDGE LONDON BOROUGH COUNCIL,CL058566,"809,959.67 ",Capital grants - Local Government
Department for Education,Core,20/01/2023,Grants Expenditure,Capital Directorate,RICHMOND UPON THAMES LONDON BOROUGH COUNCIL,CL058567,"135,144.39 ",Capital grants - Local Government
Department for Education,Core,20/01/2023,Grants Expenditure,Capital Directorate,London Borough of Sutton,CL058568,"94,620.04 ",Capital grants - Local Government
Department for Education,Core,20/01/2023,Grants Expenditure,Capital Directorate,WALTHAM FOREST LONDON BOROUGH COUNCIL,CL058569,"309,698.20 ",Capital grants - Local Government
Department for Education,Core,20/01/2023,Grants Expenditure,Capital Directorate,BIRMINGHAM CITY COUNCIL,CL058570,"1,411,228.52 ",Capital grants - Local Government
Department for Education,Core,20/01/2023,Grants Expenditure,Capital Directorate,COVENTRY CITY COUNCIL,CL058571,"405,543.05 ",Capital grants - Local Government
Department for Education,Core,20/01/2023,Grants Expenditure,Capital Directorate,DUDLEY METRO BOROUGH COUNCIL,CL058572,"426,610.42 ",Capital grants - Local Government
Department for Education,Core,20/01/2023,Grants Expenditure,Capital Directorate,Sandwell Metro Borough Council,CL058573,"568,213.01 ",Capital grants - Local Government
Department for Education,Core,20/01/2023,Grants Expenditure,Capital Directorate,SOLIHULL METRO BOROUGH COUNCIL,CL058574,"228,325.17 ",Capital grants - Local Government
Department for Education,Core,20/01/2023,Grants Expenditure,Capital Directorate,WALSALL METRO BOROUGH COUNCIL,CL058575,"432,045.88 ",Capital grants - Local Government
Department for Education,Core,20/01/2023,Grants Expenditure,Capital Directorate,WOLVERHAMPTON CITY COUNCIL,CL058576,"346,380.96 ",Capital grants - Local Government
Department for Education,Core,20/01/2023,Grants Expenditure,Capital Directorate,KNOWSLEY METRO BOROUGH COUNCIL,CL058577,"93,214.19 ",Capital grants - Local Government
Department for Education,Core,20/01/2023,Grants Expenditure,Capital Directorate,LIVERPOOL CITY COUNCIL,CL058578,"432,087.20 ",Capital grants - Local Government
Department for Education,Core,20/01/2023,Grants Expenditure,Capital Directorate,ST HELENS METRO BOROUGH COUNCIL,CL058579,"202,419.29 ",Capital grants - Local Government
Department for Education,Core,20/01/2023,Grants Expenditure,Capital Directorate,Sefton Metropolitan Borough Council,CL058580,"269,602.68 ",Capital grants - Local Government
Department for Education,Core,20/01/2023,Grants Expenditure,Capital Directorate,WIRRAL METRO BOROUGH COUNCIL,CL058581,"456,367.20 ",Capital grants - Local Government
Department for Education,Core,20/01/2023,Grants Expenditure,Capital Directorate,BOLTON METRO BOROUGH COUNCIL,CL058582,"389,169.07 ",Capital grants - Local Government
Department for Education,Core,20/01/2023,Grants Expenditure,Capital Directorate,BURY METRO BOROUGH COUNCIL,CL058583,"228,775.08 ",Capital grants - Local Government
Department for Education,Core,20/01/2023,Grants Expenditure,Capital Directorate,MANCHESTER CITY COUNCIL,CL058584,"473,808.89 ",Capital grants - Local Government
Department for Education,Core,20/01/2023,Grants Expenditure,Capital Directorate,OLDHAM METRO BOROUGH COUNCIL,CL058585,"227,752.99 ",Capital grants - Local Government
Department for Education,Core,20/01/2023,Grants Expenditure,Capital Directorate,ROCHDALE BOROUGH COUNCIL,CL058586,"302,270.57 ",Capital grants - Local Government
Department for Education,Core,20/01/2023,Grants Expenditure,Capital Directorate,Salford City Council,CL058587,"236,372.46 ",Capital grants - Local Government
Department for Education,Core,20/01/2023,Grants Expenditure,Capital Directorate,STOCKPORT METRO BOROUGH COUNCIL,CL058588,"547,029.20 ",Capital grants - Local Government
Department for Education,Core,20/01/2023,Grants Expenditure,Capital Directorate,TAMESIDE METRO BOROUGH COUNCIL,CL058589,"171,674.59 ",Capital grants - Local Government
Department for Education,Core,20/01/2023,Grants Expenditure,Capital Directorate,Trafford Borough Council,CL058590,"275,223.55 ",Capital grants - Local Government
Department for Education,Core,20/01/2023,Grants Expenditure,Capital Directorate,Wigan Metropolitan Borough Council,CL058591,"314,969.65 ",Capital grants - Local Government
Department for Education,Core,20/01/2023,Grants Expenditure,Capital Directorate,BARNSLEY METROPOLITAN BOROUGH COUNCIL,CL058592,"74,154.40 ",Capital grants - Local Government
Department for Education,Core,20/01/2023,Grants Expenditure,Capital Directorate,DONCASTER METRO BOROUGH COUNCIL,CL058593,"107,110.04 ",Capital grants - Local Government
Department for Education,Core,20/01/2023,Grants Expenditure,Capital Directorate,ROTHERHAM BOROUGH COUNCIL,CL058594,"100,318.47 ",Capital grants - Local Government
Department for Education,Core,20/01/2023,Grants Expenditure,Capital Directorate,SHEFFIELD CITY COUNCIL,CL058595,"395,654.77 ",Capital grants - Local Government
Department for Education,Core,20/01/2023,Grants Expenditure,Capital Directorate,BRADFORD CITY COUNCIL,CL058596,"365,648.97 ",Capital grants - Local Government
Department for Education,Core,20/01/2023,Grants Expenditure,Capital Directorate,CALDERDALE METRO BOROUGH COUNCIL,CL058597,"206,645.97 ",Capital grants - Local Government
Department for Education,Core,20/01/2023,Grants Expenditure,Capital Directorate,KIRKLEES METRO COUNCIL,CL058598,"411,898.86 ",Capital grants - Local Government
Department for Education,Core,20/01/2023,Grants Expenditure,Capital Directorate,LEEDS CITY COUNCIL,CL058599,"757,610.54 ",Capital grants - Local Government
Department for Education,Core,20/01/2023,Grants Expenditure,Capital Directorate,Wakefield City Council,CL058600,"316,347.56 ",Capital grants - Local Government
Department for Education,Core,20/01/2023,Grants Expenditure,Capital Directorate,GATESHEAD COUNCIL,CL058601,"203,159.15 ",Capital grants - Local Government
Department for Education,Core,20/01/2023,Grants Expenditure,Capital Directorate,Newcastle upon Tyne City Council,CL058602,"182,391.17 ",Capital grants - Local Government
Department for Education,Core,20/01/2023,Grants Expenditure,Capital Directorate,NORTH TYNESIDE METRO BOROUGH COUNCIL,CL058603,"429,791.46 ",Capital grants - Local Government
Department for Education,Core,20/01/2023,Grants Expenditure,Capital Directorate,SOUTH TYNESIDE COUNCIL,CL058604,"181,378.20 ",Capital grants - Local Government
Department for Education,Core,20/01/2023,Grants Expenditure,Capital Directorate,SUNDERLAND CITY METRO BOROUGH COUNCIL,CL058605,"168,277.15 ",Capital grants - Local Government
Department for Education,Core,20/01/2023,Grants Expenditure,Capital Directorate,BATH & NORTH EAST SOMERSET COUNCIL,CL058606,"29,854.85 ",Capital grants - Local Government
Department for Education,Core,20/01/2023,Grants Expenditure,Capital Directorate,Bristol City Council,CL058607,"205,807.31 ",Capital grants - Local Government
Department for Education,Core,20/01/2023,Grants Expenditure,Capital Directorate,NORTH SOMERSET COUNCIL,CL058608,"31,593.27 ",Capital grants - Local Government
Department for Education,Core,20/01/2023,Grants Expenditure,Capital Directorate,SOUTH GLOUCESTERSHIRE COUNCIL,CL058609,"234,607.25 ",Capital grants - Local Government
Department for Education,Core,20/01/2023,Grants Expenditure,Capital Directorate,HARTLEPOOL BOROUGH COUNCIL,CL058610,"91,974.66 ",Capital grants - Local Government
Department for Education,Core,20/01/2023,Grants Expenditure,Capital Directorate,Middlesbrough Council,CL058611,"69,172.83 ",Capital grants - Local Government
Department for Education,Core,20/01/2023,Grants Expenditure,Capital Directorate,REDCAR & CLEVELAND BOROUGH COUNCIL,CL058612,"42,663.67 ",Capital grants - Local Government
Department for Education,Core,20/01/2023,Grants Expenditure,Capital Directorate,STOCKTON ON TEES BOROUGH COUNCIL,CL058613,"129,354.48 ",Capital grants - Local Government
Department for Education,Core,20/01/2023,Grants Expenditure,Capital Directorate,EAST RIDING OF YORKSHIRE COUNCIL,CL058615,"481,389.72 ",Capital grants - Local Government
Department for Education,Core,20/01/2023,Grants Expenditure,Capital Directorate,North East Lincolnshire Council,CL058616,"32,484.40 ",Capital grants - Local Government
Department for Education,Core,20/01/2023,Grants Expenditure,Capital Directorate,NORTH LINCOLNSHIRE COUNCIL,CL058617,"224,990.61 ",Capital grants - Local Government
Department for Education,Core,20/01/2023,Grants Expenditure,Capital Directorate,NORTH YORKSHIRE COUNTY COUNCIL,CL058618,"815,285.69 ",Capital grants - Local Government
Department for Education,Core,20/01/2023,Grants Expenditure,Capital Directorate,CITY OF YORK COUNCIL,CL058619,"165,937.33 ",Capital grants - Local Government
Department for Education,Core,20/01/2023,Grants Expenditure,Capital Directorate,LUTON BOROUGH COUNCIL,CL058620,"391,826.91 ",Capital grants - Local Government
Department for Education,Core,20/01/2023,Grants Expenditure,Capital Directorate,BEDFORD BOROUGH COUNCIL,CL058621,"196,847.00 ",Capital grants - Local Government
Department for Education,Core,20/01/2023,Grants Expenditure,Capital Directorate,CENTRAL BEDFORDSHIRE COUNCIL,CL058622,"306,309.23 ",Capital grants - Local Government
Department for Education,Core,20/01/2023,Grants Expenditure,Capital Directorate,Buckinghamshire Council,CL058623,"766,040.23 ",Capital grants - Local Government
Department for Education,Core,20/01/2023,Grants Expenditure,Capital Directorate,MILTON KEYNES COUNCIL,CL058624,"316,385.68 ",Capital grants - Local Government
Department for Education,Core,20/01/2023,Grants Expenditure,Capital Directorate,DERBYSHIRE COUNTY COUNCIL,CL058625,"1,145,123.11 ",Capital grants - Local Government
Department for Education,Core,20/01/2023,Grants Expenditure,Capital Directorate,DERBY CITY COUNCIL,CL058626,"351,494.70 ",Capital grants - Local Government
Department for Education,Core,20/01/2023,Grants Expenditure,Capital Directorate,DORSET COUNCIL,CL058627,"257,478.07 ",Capital grants - Local Government
Department for Education,Core,20/01/2023,Grants Expenditure,Capital Directorate,"Bournemouth, Christchurch and Poole Council",CL058628,"147,082.84 ",Capital grants - Local Government
Department for Education,Core,20/01/2023,Grants Expenditure,Capital Directorate,DURHAM COUNTY COUNCIL,CL058629,"734,924.17 ",Capital grants - Local Government
Department for Education,Core,20/01/2023,Grants Expenditure,Capital Directorate,EAST SUSSEX COUNTY COUNCIL,CL058631,"540,488.16 ",Capital grants - Local Government
Department for Education,Core,20/01/2023,Grants Expenditure,Capital Directorate,BRIGHTON & HOVE CITY COUNCIL,CL058632,"445,270.01 ",Capital grants - Local Government
Department for Education,Core,20/01/2023,Grants Expenditure,Capital Directorate,HAMPSHIRE COUNTY COUNCIL,CL058633,"2,564,970.91 ",Capital grants - Local Government
Department for Education,Core,20/01/2023,Grants Expenditure,Capital Directorate,PORTSMOUTH CITY COUNCIL,CL058634,"88,873.47 ",Capital grants - Local Government
Department for Education,Core,20/01/2023,Grants Expenditure,Capital Directorate,SOUTHAMPTON CITY COUNCIL,CL058635,"358,860.18 ",Capital grants - Local Government
Department for Education,Core,20/01/2023,Grants Expenditure,Capital Directorate,LEICESTERSHIRE COUNTY COUNCIL,CL058636,"483,692.61 ",Capital grants - Local Government
Department for Education,Core,20/01/2023,Grants Expenditure,Capital Directorate,LEICESTER CITY COUNCIL,CL058637,"782,563.18 ",Capital grants - Local Government
Department for Education,Core,20/01/2023,Grants Expenditure,Capital Directorate,Staffordshire County Council,CL058639,"947,703.27 ",Capital grants - Local Government
Department for Education,Core,20/01/2023,Grants Expenditure,Capital Directorate,STOKE ON TRENT CITY COUNCIL,CL058640,"58,360.93 ",Capital grants - Local Government
Department for Education,Core,20/01/2023,Grants Expenditure,Capital Directorate,WILTSHIRE COUNTY COUNCIL,CL058641,"277,445.02 ",Capital grants - Local Government
Department for Education,Core,20/01/2023,Grants Expenditure,Capital Directorate,Swindon Borough Council,CL058642,"81,737.99 ",Capital grants - Local Government
Department for Education,Core,20/01/2023,Grants Expenditure,Capital Directorate,BRACKNELL FOREST BOROUGH COUNCIL,CL058643,"251,537.99 ",Capital grants - Local Government
Department for Education,Core,20/01/2023,Grants Expenditure,Capital Directorate,ROYAL BOROUGH OF WINDSOR & MAIDENHEAD,CL058644,"140,940.73 ",Capital grants - Local Government
Department for Education,Core,20/01/2023,Grants Expenditure,Capital Directorate,WEST BERKSHIRE COUNCIL,CL058645,"286,992.15 ",Capital grants - Local Government
Department for Education,Core,20/01/2023,Grants Expenditure,Capital Directorate,Reading Borough Council,CL058646,"182,324.81 ",Capital grants - Local Government
Department for Education,Core,20/01/2023,Grants Expenditure,Capital Directorate,SLOUGH BOROUGH COUNCIL,CL058647,"83,504.54 ",Capital grants - Local Government
Department for Education,Core,20/01/2023,Grants Expenditure,Capital Directorate,WOKINGHAM COUNCIL,CL058648,"235,801.07 ",Capital grants - Local Government
Department for Education,Core,20/01/2023,Grants Expenditure,Capital Directorate,CAMBRIDGESHIRE COUNTY COUNCIL,CL058649,"429,605.23 ",Capital grants - Local Government
Department for Education,Core,20/01/2023,Grants Expenditure,Capital Directorate,PETERBOROUGH CITY COUNCIL,CL058650,"115,255.10 ",Capital grants - Local Government
Department for Education,Core,20/01/2023,Grants Expenditure,Capital Directorate,HALTON BOROUGH COUNCIL,CL058651,"83,092.87 ",Capital grants - Local Government
Department for Education,Core,20/01/2023,Grants Expenditure,Capital Directorate,WARRINGTON BOROUGH COUNCIL,CL058652,"109,230.77 ",Capital grants - Local Government
Department for Education,Core,20/01/2023,Grants Expenditure,Capital Directorate,DEVON COUNTY COUNCIL,CL058653,"423,688.73 ",Capital grants - Local Government
Department for Education,Core,20/01/2023,Grants Expenditure,Capital Directorate,PLYMOUTH CITY COUNCIL,CL058654,"71,186.96 ",Capital grants - Local Government
Department for Education,Core,20/01/2023,Grants Expenditure,Capital Directorate,TORBAY COUNCIL,CL058655,"41,840.84 ",Capital grants - Local Government
Department for Education,Core,20/01/2023,Grants Expenditure,Capital Directorate,ESSEX COUNTY COUNCIL,CL058656,"875,918.02 ",Capital grants - Local Government
Department for Education,Core,20/01/2023,Grants Expenditure,Capital Directorate,SOUTHEND ON SEA BOROUGH COUNCIL,CL058657,"73,910.01 ",Capital grants - Local Government
Department for Education,Core,20/01/2023,Grants Expenditure,Capital Directorate,HEREFORDSHIRE COUNCIL,CL058658,"140,146.78 ",Capital grants - Local Government
Department for Education,Core,20/01/2023,Grants Expenditure,Capital Directorate,Worcestershire County Council,CL058659,"453,501.84 ",Capital grants - Local Government
Department for Education,Core,20/01/2023,Grants Expenditure,Capital Directorate,KENT COUNTY COUNCIL,CL058660,"1,646,850.91 ",Capital grants - Local Government
Department for Education,Core,20/01/2023,Grants Expenditure,Capital Directorate,MEDWAY COUNCIL,CL058661,"86,211.97 ",Capital grants - Local Government
Department for Education,Core,20/01/2023,Grants Expenditure,Capital Directorate,Lancashire County Council,CL058662,"1,670,667.24 ",Capital grants - Local Government
Department for Education,Core,20/01/2023,Grants Expenditure,Capital Directorate,Blackburn with Darwen Borough Council,CL058663,"147,026.82 ",Capital grants - Local Government
Department for Education,Core,20/01/2023,Grants Expenditure,Capital Directorate,BLACKPOOL BOROUGH COUNCIL,CL058664,"64,354.90 ",Capital grants - Local Government
Department for Education,Core,20/01/2023,Grants Expenditure,Capital Directorate,NOTTINGHAMSHIRE COUNTY COUNCIL,CL058665,"1,068,282.40 ",Capital grants - Local Government
Department for Education,Core,20/01/2023,Grants Expenditure,Capital Directorate,Nottingham City Council,CL058666,"297,715.40 ",Capital grants - Local Government
Department for Education,Core,20/01/2023,Grants Expenditure,Capital Directorate,SHROPSHIRE COUNCIL,CL058667,"236,149.04 ",Capital grants - Local Government
Department for Education,Core,20/01/2023,Grants Expenditure,Capital Directorate,Telford and Wrekin Council,CL058668,"312,582.31 ",Capital grants - Local Government
Department for Education,Core,20/01/2023,Grants Expenditure,Capital Directorate,Cheshire East Council,CL058669,"267,303.08 ",Capital grants - Local Government
Department for Education,Core,20/01/2023,Grants Expenditure,Capital Directorate,CHESHIRE WEST & CHESTER COUNCIL,CL058670,"562,774.79 ",Capital grants - Local Government
Department for Education,Core,20/01/2023,Grants Expenditure,Capital Directorate,CORNWALL COUNCIL,CL058671,"186,459.15 ",Capital grants - Local Government
Department for Education,Core,20/01/2023,Grants Expenditure,Capital Directorate,CUMBRIA COUNTY COUNCIL,CL058672,"639,114.38 ",Capital grants - Local Government
Department for Education,Core,20/01/2023,Grants Expenditure,Capital Directorate,Gloucestershire County Council,CL058673,"490,735.54 ",Capital grants - Local Government
Department for Education,Core,20/01/2023,Grants Expenditure,Capital Directorate,HERTFORDSHIRE COUNTY COUNCIL,CL058674,"1,766,460.88 ",Capital grants - Local Government
Department for Education,Core,20/01/2023,Grants Expenditure,Capital Directorate,ISLE OF WIGHT COUNCIL,CL058675,"239,211.55 ",Capital grants - Local Government
Department for Education,Core,20/01/2023,Grants Expenditure,Capital Directorate,LINCOLNSHIRE COUNTY COUNCIL,CL058676,"545,978.27 ",Capital grants - Local Government
Department for Education,Core,20/01/2023,Grants Expenditure,Capital Directorate,NORFOLK COUNTY COUNCIL,CL058677,"541,679.37 ",Capital grants - Local Government
Department for Education,Core,20/01/2023,Grants Expenditure,Capital Directorate,NORTHUMBERLAND COUNTY COUNCIL,CL058678,"650,198.64 ",Capital grants - Local Government
Department for Education,Core,20/01/2023,Grants Expenditure,Capital Directorate,Oxfordshire County Council,CL058679,"504,175.15 ",Capital grants - Local Government
Department for Education,Core,20/01/2023,Grants Expenditure,Capital Directorate,Somerset County Council,CL058680,"294,545.60 ",Capital grants - Local Government
Department for Education,Core,20/01/2023,Grants Expenditure,Capital Directorate,SUFFOLK COUNTY COUNCIL,CL058681,"472,053.80 ",Capital grants - Local Government
Department for Education,Core,20/01/2023,Grants Expenditure,Capital Directorate,SURREY COUNTY COUNCIL,CL058682,"810,943.61 ",Capital grants - Local Government
Department for Education,Core,20/01/2023,Grants Expenditure,Capital Directorate,WARWICKSHIRE COUNTY COUNCIL,CL058683,"570,615.57 ",Capital grants - Local Government
Department for Education,Core,20/01/2023,Grants Expenditure,Capital Directorate,West Sussex County Council,CL058684,"976,549.84 ",Capital grants - Local Government
Department for Education,Core,20/01/2023,Grants Expenditure,Capital Directorate,North Northamptonshire Council,CL058685,"216,314.33 ",Capital grants - Local Government
Department for Education,Core,20/01/2023,Grants Expenditure,Capital Directorate,West Northamptonshire Council,CL058686,"192,544.41 ",Capital grants - Local Government
Department for Education,Core,05/01/2023,Grants Expenditure,Capital Directorate,LEICESTER CITY COUNCIL,D-CINV003688,"46,460.17 ",Capital Grant - Local Government
Department for Education,Core,05/01/2023,Grants Expenditure,Capital Directorate,DEVON COUNTY COUNCIL,D-CINV003692,"119,550.82 ",Capital Grant - Local Government
Department for Education,Core,05/01/2023,Grants Expenditure,Capital Directorate,DEVON COUNTY COUNCIL,D-CINV003693,"71,500.00 ",Capital Grant - Local Government
Department for Education,Core,05/01/2023,Grants Expenditure,Capital Directorate,DURHAM COUNTY COUNCIL,D-CINV003726,"614,975.93 ",Capital Grant - Local Government
Department for Education,Core,18/01/2023,Grants Expenditure,Capital Directorate,NORTHUMBERLAND COUNTY COUNCIL,D-CINV003792,"62,688.00 ",Capital Grant - Local Government
Department for Education,Core,18/01/2023,Grants Expenditure,Capital Directorate,PETERBOROUGH CITY COUNCIL,D-CINV003796,"41,650.00 ",Capital Grant - Local Government
Department for Education,Core,18/01/2023,Grants Expenditure,Capital Directorate,PETERBOROUGH CITY COUNCIL,D-CINV003798,"53,527.50 ",Capital Grant - Local Government
Department for Education,Core,25/01/2023,Grants Expenditure,Capital Directorate,St Catherine's Secure Centre,D-CINV003824,"43,888.80 ",Capital Grants - Private Sector (Non Profit Institutions Serving Households)
Department for Education,Core,25/01/2023,Grants Expenditure,Capital Directorate,LEICESTER CITY COUNCIL,D-CINV003831,"27,514.00 ",Capital Grant - Local Government
Department for Education,Core,05/01/2023,Grants Expenditure,Capital Directorate,BARNET LONDON BOROUGH COUNCIL,D-CINV003661,"137,677.57 ",Capital Grant - Local Government
Department for Education,Core,05/01/2023,Grants Expenditure,Capital Directorate,SOUTHWARK LONDON BOROUGH COUNCIL,D-CINV003694,"42,448.15 ",Capital Grant - Local Government
Department for Education,Core,05/01/2023,Grants Expenditure,Capital Directorate,ROTHERHAM BOROUGH COUNCIL,D-CINV003695,"46,488.00 ",Capital Grant - Local Government
Department for Education,Core,18/01/2023,Grants Expenditure,Capital Directorate,LINCOLNSHIRE COUNTY COUNCIL,D-CINV003791,"157,733.23 ",Capital Grant - Local Government
Department for Education,Core,18/01/2023,Grants Expenditure,Capital Directorate,Newcastle upon Tyne City Council,D-CINV003800,"211,704.44 ",Capital Grant - Local Government
Department for Education,Core,25/01/2023,Grants Expenditure,Capital Directorate,KINGSTON UPON HULL CITY COUNCIL,D-CINV003822,"317,500.00 ",Capital Grant - Local Government
Department for Education,Core,25/01/2023,Grants Expenditure,Capital Directorate,NORTH LINCOLNSHIRE COUNCIL,D-CINV003825,"981,588.70 ",Capital Grant - Local Government
Department for Education,Core,27/01/2023,Grants Expenditure,Capital Directorate,SHROPSHIRE COUNCIL,D-CINV003856,"40,441.96 ",Capital Grant - Local Government
Department for Education,Core,16/01/2023,Grants,Capital Directorate,HLR Schools Limited,D-PINV051126,"33,576.00 ",Capital Contribution
Department for Education,Core,16/01/2023,Grants,Capital Directorate,PSBP Midlands Limited,D-PINV051395,"86,206.15 ",Capital Contribution
Department for Education,Core,20/01/2023,Grants,Capital Directorate,David Nieper Academy,PSAD004128,"90,520.00 ",Capital Contribution
Department for Education,Core,20/01/2023,Grants,Capital Directorate,ARK Kings Academy,PSAD004129,"31,111.00 ",Capital Contribution
Department for Education,Core,20/01/2023,Grants,Capital Directorate,Greenwood Academy,PSAD004130,"36,061.00 ",Capital Contribution
Department for Education,Core,20/01/2023,Grants,Capital Directorate,Plantsbrook School,PSAD004131,"107,377.00 ",Capital Contribution
Department for Education,Core,20/01/2023,Grants,Capital Directorate,President Kennedy School Academy,PSAD004132,"142,035.00 ",Capital Contribution
Department for Education,Core,20/01/2023,Grants,Capital Directorate,Sandwell Metro Borough Council,PSAD004134,"83,976.00 ",Capital Contribution
Department for Education,Core,20/01/2023,Grants,Capital Directorate,Top Valley Academy,PSAD004135,"67,294.00 ",Capital Contribution
Department for Education,Core,04/01/2023,Other Goods & Services,Capital Directorate,Bishop's Hatfield Girls' School,PSFM002403,"-27,240.00 ",Service element of lease
Department for Education,Core,04/01/2023,Other Goods & Services,Capital Directorate,Goffs Academy,PSFM002404,"-38,178.00 ",Service element of lease
Department for Education,Core,04/01/2023,Other Goods & Services,Capital Directorate,Kings Langley School,PSFM002405,"-34,104.00 ",Service element of lease
Department for Education,Core,04/01/2023,Other Goods & Services,Capital Directorate,Longdean School,PSFM002406,"-39,891.00 ",Service element of lease
Department for Education,Core,04/01/2023,Other Goods & Services,Capital Directorate,Reading Girls School Academy,PSFM002407,"-30,957.00 ",Service element of lease
Department for Education,Core,04/01/2023,Other Goods & Services,Capital Directorate,Stopsley High School,PSFM002408,"-36,243.00 ",Service element of lease
Department for Education,Core,04/01/2023,Other Goods & Services,Capital Directorate,Westfield Academy,PSFM002409,"-40,713.00 ",Service element of lease
Department for Education,Core,04/01/2023,Other Goods & Services,Capital Directorate,David Nieper Academy,PSFM002410,"-25,605.00 ",Service element of lease
Department for Education,Core,04/01/2023,Other Goods & Services,Capital Directorate,Greenwood Academy,PSFM002412,"-31,752.00 ",Service element of lease
Department for Education,Core,04/01/2023,Other Goods & Services,Capital Directorate,Plantsbrook School,PSFM002413,"-42,006.00 ",Service element of lease
Department for Education,Core,04/01/2023,Other Goods & Services,Capital Directorate,President Kennedy School Academy,PSFM002414,"-36,813.00 ",Service element of lease
Department for Education,Core,04/01/2023,Other Goods & Services,Capital Directorate,Top Valley Academy,PSFM002417,"-25,866.00 ",Service element of lease
Department for Education,Core,04/01/2023,Other Goods & Services,Capital Directorate,Bedlingtonshire Community High School,PSFM002418,"-26,661.00 ",Service element of lease
Department for Education,Core,04/01/2023,Other Goods & Services,Capital Directorate,Hetton Academy,PSFM002420,"-26,346.00 ",Service element of lease
Department for Education,Core,04/01/2023,Other Goods & Services,Capital Directorate,Laurence Jackson School,PSFM002422,"-36,600.00 ",Service element of lease
Department for Education,Core,04/01/2023,Other Goods & Services,Capital Directorate,Seaham High School ,PSFM002427,"-32,136.00 ",Service element of lease
Department for Education,Core,04/01/2023,Other Goods & Services,Capital Directorate,Neston High School,PSFM002437,"-44,895.00 ",Service element of lease
Department for Education,Core,04/01/2023,Other Goods & Services,Capital Directorate,South Shore Academy,PSFM002440,"-25,713.00 ",Service element of lease
Department for Education,Core,04/01/2023,Other Goods & Services,Capital Directorate,Carlton Bolling,PSFM002444,"-41,880.00 ",Service element of lease
Department for Education,Core,04/01/2023,Other Goods & Services,Capital Directorate,Harrogate High School,PSFM002445,"-26,217.00 ",Service element of lease
Department for Education,Core,04/01/2023,Other Goods & Services,Capital Directorate,Beckfoot Oakbank,PSFM002446,"-51,108.00 ",Service element of lease
Department for Education,Core,04/01/2023,Other Goods & Services,Capital Directorate,Dixons Cottingley Academy,PSFM002447,"-32,109.00 ",Service element of lease
Department for Education,Core,04/01/2023,Other Goods & Services,Capital Directorate,Whitcliffe Mount School,PSFM002448,"-33,549.00 ",Service element of lease
Department for Education,Core,26/01/2023,Other Goods & Services,Capital Directorate,PSBP Midlands Limited,D-PINV051703,"-27,060.24 ",Service element of lease
Department for Education,Core,26/01/2023,Other Goods & Services,Capital Directorate,PSBP Midlands Limited,D-PINV051703,"-3,511.30 ",Service element of lease
Department for Education,Core,26/01/2023,Other Goods & Services,Capital Directorate,PSBP Midlands Limited,D-PINV051703,630.00 ,Service element of lease
Department for Education,Core,26/01/2023,Other Goods & Services,Capital Directorate,PSBP Midlands Limited,D-PINV051703,"3,596.81 ",Service element of lease
Department for Education,Core,26/01/2023,Other Goods & Services,Capital Directorate,PSBP Midlands Limited,D-PINV051703,"1,259,786.27 ",Service element of lease
Department for Education,Core,26/01/2023,Other Goods & Services,Capital Directorate,HLR Schools Limited,D-PINV051659,"-20,249.43 ",Service element of lease
Department for Education,Core,26/01/2023,Other Goods & Services,Capital Directorate,HLR Schools Limited,D-PINV051659,-411.38 ,Service element of lease
Department for Education,Core,26/01/2023,Other Goods & Services,Capital Directorate,HLR Schools Limited,D-PINV051659,"2,459.89 ",Service element of lease
Department for Education,Core,26/01/2023,Other Goods & Services,Capital Directorate,HLR Schools Limited,D-PINV051659,"3,282.41 ",Service element of lease
Department for Education,Core,26/01/2023,Other Goods & Services,Capital Directorate,HLR Schools Limited,D-PINV051659,"1,238,079.88 ",Service element of lease
Department for Education,Core,26/01/2023,Other Goods & Services,Capital Directorate,PSBP NW PROJECTCO LIMITED,D-PINV051685,"-15,468.60 ",Service element of lease
Department for Education,Core,26/01/2023,Other Goods & Services,Capital Directorate,PSBP NW PROJECTCO LIMITED,D-PINV051685,"-10,353.00 ",Service element of lease
Department for Education,Core,26/01/2023,Other Goods & Services,Capital Directorate,PSBP NW PROJECTCO LIMITED,D-PINV051685,"1,627.68 ",Service element of lease
Department for Education,Core,26/01/2023,Other Goods & Services,Capital Directorate,PSBP NW PROJECTCO LIMITED,D-PINV051685,"3,082.42 ",Service element of lease
Department for Education,Core,26/01/2023,Other Goods & Services,Capital Directorate,PSBP NW PROJECTCO LIMITED,D-PINV051685,"1,038,784.32 ",Service element of lease
Department for Education,Core,26/01/2023,Other Goods & Services,Capital Directorate,GT Neps Limited,D-PINV051661,"-14,331.45 ",Service element of lease
Department for Education,Core,26/01/2023,Other Goods & Services,Capital Directorate,GT Neps Limited,D-PINV051661,-58.63 ,Service element of lease
Department for Education,Core,26/01/2023,Other Goods & Services,Capital Directorate,GT Neps Limited,D-PINV051661,580.97 ,Service element of lease
Department for Education,Core,26/01/2023,Other Goods & Services,Capital Directorate,GT Neps Limited,D-PINV051661,"1,132,724.84 ",Service element of lease
Department for Education,Core,26/01/2023,Other Goods & Services,Capital Directorate,Yorkshire Learning Partnership (Project Co) Ltd,D-PINV051660,"-11,818.30 ",Service element of lease
Department for Education,Core,26/01/2023,Other Goods & Services,Capital Directorate,Yorkshire Learning Partnership (Project Co) Ltd,D-PINV051660,201.90 ,Service element of lease
Department for Education,Core,26/01/2023,Other Goods & Services,Capital Directorate,Yorkshire Learning Partnership (Project Co) Ltd,D-PINV051660,"1,662.31 ",Service element of lease
Department for Education,Core,26/01/2023,Other Goods & Services,Capital Directorate,Yorkshire Learning Partnership (Project Co) Ltd,D-PINV051660,"1,104,615.57 ",Service element of lease
Department for Education,Core,11/01/2023,Grants Expenditure,Capital Directorate,RCD HEXHAM & NEWCASTLE - ST JOSEPHS,D-CINV003743,"67,423.76 ",Current grants - Local Government
Department for Education,Core,11/01/2023,Grants Expenditure,Capital Directorate,EXETER DIOCESAN BOARD OF FINANCE CHURCH,D-CINV003744,"204,348.83 ",Current grants - Local Government
Department for Education,Core,11/01/2023,Grants Expenditure,Capital Directorate,EXETER DIOCESAN BOARD OF FINANCE CHURCH,D-CINV003745,"204,348.83 ",Current grants - Local Government
Department for Education,Core,11/01/2023,Grants Expenditure,Capital Directorate,REDCAR PFI,D-CINV003746,"191,168.10 ",Current grants - Local Government
Department for Education,Core,13/01/2023,Grants Expenditure,Capital Directorate,STMC BIRMINGHAM DIOCESE ACCOUNT,D-CINV003778,"96,600.40 ",Current grants - Local Government
Department for Education,Core,20/01/2023,Grants Expenditure,Capital Directorate,CARDINAL HEENAN SCHOOL SERVICES LTD (JAR,D-CINV003782,"73,536.76 ",Current grants - Local Government
Department for Education,Core,27/01/2023,Grants Expenditure,Capital Directorate,JFS - UNITARY CHARGE ACCOUNT,D-CINV003841,"303,727.34 ",Current grants - Local Government
Department for Education,Core,05/01/2023,Other Goods & Services,Capital Directorate,Bloom Procurement Services Ltd,D-PINV051125,"46,122.76 ",Professional Services
Department for Education,Core,20/01/2023,Other Goods & Services,Capital Directorate,Bloom Procurement Services Ltd,D-PINV051705,"35,356.28 ",Professional Services
Department for Education,Core,11/01/2023,Grants Expenditure,Capital Directorate,Rosh Pinah Primary School Building Fund,D-CINV003764,"27,418.99 ",Capital grants - Local Government
Department for Education,Core,27/01/2023,Grants Expenditure,Capital Directorate,Prendergast School,D-CINV003854,"25,093.80 ",Capital grants - Local Government
Department for Education,Core,06/01/2023,Other Goods & Services,Capital Directorate,Faithful & Gould,D-PINV051165,"173,334.00 ",Professional Services - Property Services
Department for Education,Core,06/01/2023,Other Goods & Services,Capital Directorate,Aecom Ltd,D-PINV051204,"158,980.74 ",Professional Services - Property Services
Department for Education,Core,12/01/2023,Consultancy,Capital Directorate,COGNIZANT WORLDWIDE LIMITED,D-PINV051331,"35,712.00 ",Consultancy - IT/IS
Department for Education,Core,13/01/2023,Other Goods & Services,Capital Directorate,Arcadis LLP,D-PINV051508,"51,412.84 ",Professional Services - Property Services
Department for Education,Core,13/01/2023,Other Goods & Services,Capital Directorate,RIDER LEVETT BUCKNALL UK LTD,D-PINV051453,"35,732.28 ",Professional Services - Property Services
Department for Education,Core,26/01/2023,Other Goods & Services,Capital Directorate,Faithful & Gould,D-PINV051587,"209,352.00 ",Professional Services - Property Services
Department for Education,Core,26/01/2023,Other Goods & Services,Capital Directorate,Aecom Ltd,D-PINV051722,"191,155.69 ",Professional Services - Property Services
Department for Education,Core,26/01/2023,Other Goods & Services,Capital Directorate,Arcadis LLP,D-PINV051734,"93,447.31 ",Professional Services - Property Services
Department for Education,Core,06/01/2023,Grants Expenditure,Capital Directorate,ISG DEVELOPMENTS LIMITED,D-PINV051141,"547,600.15 ",Capital grants - Academy Trust
Department for Education,Core,10/01/2023,Grants Expenditure,Capital Directorate,McAvoy Group Ltd,D-PINV051310,"162,958.45 ",Capital grants - Academy Trust
Department for Education,Core,11/01/2023,Grants Expenditure,Capital Directorate,Tilbury Douglas Construction Limited,D-PINV051346,"96,027.77 ",Capital grants - Academy Trust
Department for Education,Core,16/01/2023,Grants Expenditure,Capital Directorate,Bowmer & Kirkland Ltd,D-PINV051446,"1,102,107.18 ",Capital grants - Academy Trust
Department for Education,Core,13/01/2023,Grants Expenditure,Capital Directorate,Kier Construction Southern,D-PINV050725,"237,984.67 ",Capital grants - Academy Trust
Department for Education,Core,16/01/2023,Grants Expenditure,Capital Directorate,Wates Construction Ltd,D-PINV051518,"2,111,715.71 ",Capital grants - Academy Trust
Department for Education,Core,16/01/2023,Grants Expenditure,Capital Directorate,GAP GROUP LIMITED,D-PINV051558,"33,546.24 ",Capital grants - Academy Trust
Department for Education,Core,16/01/2023,Grants Expenditure,Capital Directorate,GAP GROUP LIMITED,D-PINV051565,"35,143.68 ",Capital grants - Academy Trust
Department for Education,Core,16/01/2023,Grants Expenditure,Capital Directorate,GAP GROUP LIMITED,D-PINV051566,"146,964.48 ",Capital grants - Academy Trust
Department for Education,Core,27/01/2023,Grants Expenditure,Capital Directorate,Bowmer & Kirkland Ltd,D-PINV051557,"303,854.17 ",Capital grants - Academy Trust
Department for Education,Core,18/01/2023,Grants Expenditure,Capital Directorate,Galliford Try Building Ltd,D-PINV051618,"491,056.69 ",Capital grants - Academy Trust
Department for Education,Core,23/01/2023,Grants Expenditure,Capital Directorate,Arcadis LLP,D-PINV051717,"34,837.60 ",Capital grants - Academy Trust
Department for Education,Core,30/01/2023,Grants Expenditure,Capital Directorate,Mace Ltd,D-PINV051901,"35,121.60 ",Capital grants - Academy Trust
Department for Education,Core,30/01/2023,Grants Expenditure,Capital Directorate,Bowmer & Kirkland Ltd,D-PINV051909,"978,288.98 ",Capital grants - Academy Trust
Department for Education,Core,27/01/2023,Grants Expenditure,Capital Directorate,Morgan Sindall Construction & Infrastructure Ltd,D-PINV051861,"982,697.38 ",Capital grants - Academy Trust
Department for Education,Core,27/01/2023,Grants Expenditure,Capital Directorate,EQUANS Regeneration Limited,D-PINV051908,"351,681.48 ",Capital grants - Academy Trust
Department for Education,Core,20/01/2023,Other Goods & Services,Capital Directorate,Mace Ltd,D-PINV051640,"45,840.00 ",Professional Services
Department for Education,Core,05/01/2023,Grants Expenditure,Capital Directorate,Arcadis LLP,D-PINV051088,"27,951.00 ",Capital grants - Academy Trust
Department for Education,Core,05/01/2023,Grants Expenditure,Capital Directorate,Arcadis LLP,D-PINV051094,"58,044.00 ",Capital grants - Academy Trust
Department for Education,Core,05/01/2023,Grants Expenditure,Capital Directorate,Arcadis LLP,D-PINV051083,"72,882.00 ",Capital grants - Academy Trust
Department for Education,Core,05/01/2023,Grants Expenditure,Capital Directorate,Arcadis LLP,D-PINV051082,"31,857.00 ",Capital grants - Academy Trust
Department for Education,Core,05/01/2023,Grants Expenditure,Capital Directorate,Arcadis LLP,D-PINV051081,"43,475.26 ",Capital grants - Academy Trust
Department for Education,Core,05/01/2023,Grants Expenditure,Capital Directorate,Mott MacDonald Ltd,D-PINV051119,"30,149.48 ",Capital grants - Academy Trust
Department for Education,Core,05/01/2023,Grants Expenditure,Capital Directorate,Mott MacDonald Ltd,D-PINV051179,"31,380.00 ",Capital grants - Academy Trust
Department for Education,Core,05/01/2023,Grants Expenditure,Capital Directorate,Mott MacDonald Ltd,D-PINV051212,"31,139.47 ",Capital grants - Academy Trust
Department for Education,Core,05/01/2023,Grants Expenditure,Capital Directorate,Mott MacDonald Ltd,D-PINV051180,"40,168.39 ",Capital grants - Academy Trust
Department for Education,Core,05/01/2023,Grants Expenditure,Capital Directorate,Arcadis LLP,D-PINV051174,"54,213.00 ",Capital grants - Academy Trust
Department for Education,Core,05/01/2023,Grants Expenditure,Capital Directorate,Faithful & Gould,D-PINV051215,"39,339.47 ",Capital grants - Academy Trust
Department for Education,Core,05/01/2023,Grants Expenditure,Capital Directorate,Faithful & Gould,D-PINV051214,"34,163.46 ",Capital grants - Academy Trust
Department for Education,Core,05/01/2023,Grants Expenditure,Capital Directorate,Turner & Townsend,D-PINV051190,"31,070.27 ",Capital grants - Academy Trust
Department for Education,Core,05/01/2023,Grants Expenditure,Capital Directorate,Turner & Townsend,D-PINV051192,"25,662.58 ",Capital grants - Academy Trust
Department for Education,Core,05/01/2023,Grants Expenditure,Capital Directorate,Turner & Townsend,D-PINV051184,"25,662.58 ",Capital grants - Academy Trust
Department for Education,Core,05/01/2023,Grants Expenditure,Capital Directorate,Arcadis LLP,D-PINV051228,"40,553.26 ",Capital grants - Academy Trust
Department for Education,Core,05/01/2023,Grants Expenditure,Capital Directorate,Bowmer & Kirkland Ltd,D-PINV051233,"1,819,955.40 ",Capital grants - Academy Trust
Department for Education,Core,23/01/2023,Grants Expenditure,Capital Directorate,Faithful & Gould,D-PCR001157,"-43,992.00 ",Capital grants - Academy Trust
Department for Education,Core,10/01/2023,Grants Expenditure,Capital Directorate,Faithful & Gould,D-PINV051282,"30,998.40 ",Capital grants - Academy Trust
Department for Education,Core,09/01/2023,Grants Expenditure,Capital Directorate,Willmott Dixon Construction Limited,D-PINV051272,"2,216,057.12 ",Capital grants - Academy Trust
Department for Education,Core,09/01/2023,Grants Expenditure,Capital Directorate,Tilbury Douglas Construction Limited,D-PINV051234,"257,064.50 ",Capital grants - Academy Trust
Department for Education,Core,27/01/2023,Grants Expenditure,Capital Directorate,Mace Ltd,D-PINV051412,"87,315.60 ",Capital grants - Academy Trust
Department for Education,Core,12/01/2023,Grants Expenditure,Capital Directorate,Bowmer & Kirkland Ltd,D-PINV051447,"186,126.94 ",Capital grants - Academy Trust
Department for Education,Core,12/01/2023,Grants Expenditure,Capital Directorate,Mace Ltd,D-PINV051409,"34,990.60 ",Capital grants - Academy Trust
Department for Education,Core,12/01/2023,Grants Expenditure,Capital Directorate,Mace Ltd,D-PINV051410,"36,865.66 ",Capital grants - Academy Trust
Department for Education,Core,17/01/2023,Grants Expenditure,Capital Directorate,GLEEDS MANAGEMENT SERVICES LIMITED,D-PINV051477,"68,090.71 ",Capital grants - Academy Trust
Department for Education,Core,17/01/2023,Grants Expenditure,Capital Directorate,GLEEDS MANAGEMENT SERVICES LIMITED,D-PINV051496,"56,044.88 ",Capital grants - Academy Trust
Department for Education,Core,17/01/2023,Grants Expenditure,Capital Directorate,GLEEDS MANAGEMENT SERVICES LIMITED,D-PINV051499,"30,897.24 ",Capital grants - Academy Trust
Department for Education,Core,16/01/2023,Grants Expenditure,Capital Directorate,Mace Ltd,D-PINV051420,"32,451.30 ",Capital grants - Academy Trust
Department for Education,Core,16/01/2023,Grants Expenditure,Capital Directorate,Mace Ltd,D-PINV051437,"26,909.96 ",Capital grants - Academy Trust
Department for Education,Core,16/01/2023,Grants Expenditure,Capital Directorate,Galliford Try Building Ltd,D-PINV051570,"303,276.41 ",Capital grants - Academy Trust
Department for Education,Core,27/01/2023,Grants Expenditure,Capital Directorate,GLEEDS MANAGEMENT SERVICES LIMITED,D-PINV051536,"61,354.28 ",Capital grants - Academy Trust
Department for Education,Core,18/01/2023,Grants Expenditure,Capital Directorate,Wates Construction Ltd,D-PINV051621,"703,348.50 ",Capital grants - Academy Trust
Department for Education,Core,19/01/2023,Grants Expenditure,Capital Directorate,Tilbury Douglas Construction Limited,D-PINV051619,"336,110.03 ",Capital grants - Academy Trust
Department for Education,Core,18/01/2023,Grants Expenditure,Capital Directorate,Mott MacDonald Ltd,D-PINV050970,"25,722.00 ",Capital grants - Academy Trust
Department for Education,Core,24/01/2023,Grants Expenditure,Capital Directorate,GLEEDS MANAGEMENT SERVICES LIMITED,D-PINV051638,"63,844.26 ",Capital grants - Academy Trust
Department for Education,Core,19/01/2023,Grants Expenditure,Capital Directorate,Wates Construction Ltd,D-PINV051666,"1,383,184.51 ",Capital grants - Academy Trust
Department for Education,Core,20/01/2023,Grants Expenditure,Capital Directorate,Wates Construction Ltd,D-PINV051682,"978,049.62 ",Capital grants - Academy Trust
Department for Education,Core,26/01/2023,Grants Expenditure,Capital Directorate,Wood Group UK Limited,D-PINV051674,"45,123.34 ",Capital grants - Academy Trust
Department for Education,Core,27/01/2023,Grants Expenditure,Capital Directorate,Faithful & Gould,D-PINV051699,"34,278.00 ",Capital grants - Academy Trust
Department for Education,Core,24/01/2023,Grants Expenditure,Capital Directorate,Galliford Try Building Ltd,D-PINV051702,"429,421.50 ",Capital grants - Academy Trust
Department for Education,Core,24/01/2023,Grants Expenditure,Capital Directorate,Bowmer & Kirkland Ltd,D-PINV051727,"802,651.20 ",Capital grants - Academy Trust
Department for Education,Core,25/01/2023,Grants Expenditure,Capital Directorate,Conlon Construction Ltd,D-PINV051779,"178,329.60 ",Capital grants - Academy Trust
Department for Education,Core,24/01/2023,Grants Expenditure,Capital Directorate,BAM Construction Ltd,D-PINV051765,"1,028,366.27 ",Capital grants - Academy Trust
Department for Education,Core,25/01/2023,Grants Expenditure,Capital Directorate,REDS10 UK Limited,D-PINV051816,"30,754.36 ",Capital grants - Academy Trust
Department for Education,Core,25/01/2023,Grants Expenditure,Capital Directorate,Portakabin Ltd,D-PINV051763,"28,728.32 ",Capital grants - Academy Trust
Department for Education,Core,25/01/2023,Grants Expenditure,Capital Directorate,Portakabin Ltd,D-PINV051764,"55,660.80 ",Capital grants - Academy Trust
Department for Education,Core,25/01/2023,Grants Expenditure,Capital Directorate,Mott MacDonald Ltd,D-PINV050433,"28,008.00 ",Capital grants - Academy Trust
Department for Education,Core,26/01/2023,Grants Expenditure,Capital Directorate,BAM Construction Ltd,D-PINV051821,"724,819.73 ",Capital grants - Academy Trust
Department for Education,Core,26/01/2023,Grants Expenditure,Capital Directorate,RM PLC,D-PINV051852,"66,330.00 ",Capital grants - Academy Trust
Department for Education,Core,26/01/2023,Grants Expenditure,Capital Directorate,Mott MacDonald Ltd,D-PINV049586,"62,803.56 ",Capital grants - Academy Trust
Department for Education,Core,27/01/2023,Grants Expenditure,Capital Directorate,Mace Ltd,D-PINV051757,"70,962.00 ",Capital grants - Academy Trust
Department for Education,Core,27/01/2023,Grants Expenditure,Capital Directorate,Wood Group UK Limited,D-PINV051858,"32,051.54 ",Capital grants - Academy Trust
Department for Education,Core,27/01/2023,Grants Expenditure,Capital Directorate,Wates Construction Ltd,D-PINV051910,"146,265.06 ",Capital grants - Academy Trust
Department for Education,Core,30/01/2023,Grants Expenditure,Capital Directorate,STONE COMPUTERS LTD,D-PINV051886,"52,453.36 ",Capital grants - Academy Trust
Department for Education,Core,30/01/2023,Grants Expenditure,Capital Directorate,STONE COMPUTERS LTD,D-PINV051891,"33,267.29 ",Capital grants - Academy Trust
Department for Education,Core,30/01/2023,Grants Expenditure,Capital Directorate,COMPUTER SYSTEMS IN EDUCATION LIMITED,D-PINV051920,"66,077.11 ",Capital grants - Academy Trust
Department for Education,Core,31/01/2023,Grants Expenditure,Capital Directorate,BAM Construction Ltd,D-PINV051932,"761,838.55 ",Capital grants - Academy Trust
Department for Education,Core,27/01/2023,Grants Expenditure,Capital Directorate,Portakabin Ltd,D-PINV051835,"1,699,936.08 ",Capital grants - Academy Trust
Department for Education,Core,30/01/2023,Grants Expenditure,Capital Directorate,Bowmer & Kirkland Ltd,D-PINV051930,"255,277.00 ",Capital grants - Academy Trust
Department for Education,Core,31/01/2023,Grants Expenditure,Capital Directorate,Willmott Dixon Construction Limited,D-PINV051935,"2,169,218.82 ",Capital grants - Academy Trust
Department for Education,Core,31/01/2023,Grants Expenditure,Capital Directorate,REDS10 UK Limited,D-PINV051245,"30,754.36 ",Capital grants - Academy Trust
Department for Education,Core,05/01/2023,Grants Expenditure,Capital Directorate,CityAxis Ltd,D-PINV051131,"354,613.34 ",Capital grants - Academy Trust
Department for Education,Core,06/01/2023,Grants Expenditure,Capital Directorate,MCARDLE SPORT-TEC LTD,D-PINV051020,"33,964.48 ",Capital grants - Academy Trust
Department for Education,Core,20/01/2023,Grants Expenditure,Capital Directorate,Kier Construction Southern,D-PINV051695,"40,095.40 ",Capital grants - Academy Trust
Department for Education,Core,27/01/2023,Grants Expenditure,Capital Directorate,Morgan Sindall Construction & Infrastructure Ltd,D-PINV051868,"106,427.51 ",Capital grants - Academy Trust
Department for Education,Core,20/01/2023,Grants Expenditure,Capital Directorate,SUNDERLAND CITY METRO BOROUGH COUNCIL,CL058687,"240,299.99 ",Capital grants - Local Government
Department for Education,Core,05/01/2023,Grants Expenditure,Capital Directorate,Bowmer & Kirkland Ltd,D-PINV050982,"534,869.87 ",Capital grants - Academy Trust
Department for Education,Core,05/01/2023,Grants Expenditure,Capital Directorate,Mott MacDonald Ltd,D-PINV051079,"26,873.23 ",Capital grants - Academy Trust
Department for Education,Core,05/01/2023,Grants Expenditure,Capital Directorate,GLEEDS MANAGEMENT SERVICES LIMITED,D-PINV051085,"27,278.99 ",Capital grants - Academy Trust
Department for Education,Core,05/01/2023,Grants Expenditure,Capital Directorate,Bowmer & Kirkland Ltd,D-PINV051050,"159,645.13 ",Capital grants - Academy Trust
Department for Education,Core,05/01/2023,Grants Expenditure,Capital Directorate,GLEEDS MANAGEMENT SERVICES LIMITED,D-PINV051172,"113,498.40 ",Capital grants - Academy Trust
Department for Education,Core,09/01/2023,Grants Expenditure,Capital Directorate,Kier Construction Southern,D-PINV051268,"190,083.64 ",Capital grants - Academy Trust
Department for Education,Core,10/01/2023,Grants Expenditure,Capital Directorate,Algeco UK Limited,D-PINV051269,"94,210.67 ",Capital grants - Academy Trust
Department for Education,Core,20/01/2023,Grants Expenditure,Capital Directorate,Skanska UK PLC,D-PINV051132,"620,682.00 ",Capital grants - Academy Trust
Department for Education,Core,11/01/2023,Grants Expenditure,Capital Directorate,Ridge Partnership,D-PINV051274,"33,004.32 ",Capital grants - Academy Trust
Department for Education,Core,10/01/2023,Grants Expenditure,Capital Directorate,Ridge Partnership,D-PINV051273,"30,904.08 ",Capital grants - Academy Trust
Department for Education,Core,09/01/2023,Grants Expenditure,Capital Directorate,T&B (CONTRACTORS) LTD,D-PINV051218,"212,532.20 ",Capital grants - Academy Trust
Department for Education,Core,09/01/2023,Grants Expenditure,Capital Directorate,Willmott Dixon Construction Limited,D-PINV051271,"2,150,402.17 ",Capital grants - Academy Trust
Department for Education,Core,09/01/2023,Grants Expenditure,Capital Directorate,Kier Construction Southern,D-PINV051167,"100,886.68 ",Capital grants - Academy Trust
Department for Education,Core,09/01/2023,Grants Expenditure,Capital Directorate,Eco Modular Buildings Limited,D-PINV051311,"1,999,472.64 ",Capital grants - Academy Trust
Department for Education,Core,10/01/2023,Grants Expenditure,Capital Directorate,Tilbury Douglas Construction Limited,D-PINV051312,"530,119.02 ",Capital grants - Academy Trust
Department for Education,Core,11/01/2023,Grants Expenditure,Capital Directorate,ISG DEVELOPMENTS LIMITED,D-PINV051313,"1,601,680.27 ",Capital grants - Academy Trust
Department for Education,Core,05/01/2023,IS/IT,Capital Directorate,Sir Frederick Gibberd College,D-CINV003709,"46,720.33 ",ICT  - Equipment /Hardware
Department for Education,Core,05/01/2023,Grants Expenditure,Capital Directorate,Sir Frederick Gibberd College,D-CINV003709,"229,601.61 ",Capital grants - Academy Trust
Department for Education,Core,05/01/2023,Grants Expenditure,Capital Directorate,Bohunt Horsham,D-CINV003718,"64,732.27 ",Capital grants - Academy Trust
Department for Education,Core,05/01/2023,IS/IT,Capital Directorate,Osborne Co-operative Academy Trust,D-CINV003733,"9,419.64 ",ICT  - Equipment /Hardware
Department for Education,Core,05/01/2023,Grants Expenditure,Capital Directorate,Osborne Co-operative Academy Trust,D-CINV003733,"47,098.18 ",Capital grants - Academy Trust
Department for Education,Core,09/01/2023,Grants Expenditure,Capital Directorate,Bowmer & Kirkland Ltd,D-PINV051140,"251,174.38 ",Capital grants - Academy Trust
Department for Education,Core,20/01/2023,Grants Expenditure,Capital Directorate,Premier Modular Limited,D-PINV051341,"253,840.03 ",Capital grants - Academy Trust
Department for Education,Core,11/01/2023,Grants Expenditure,Capital Directorate,Morgan Sindall Construction & Infrastructure Ltd,D-PINV051342,"196,110.91 ",Capital grants - Academy Trust
Department for Education,Core,11/01/2023,Grants Expenditure,Capital Directorate,Willmott Dixon Construction Limited,D-PINV051340,"48,000.00 ",Capital grants - Academy Trust
Department for Education,Core,17/01/2023,Grants Expenditure,Capital Directorate,Algeco UK Limited,D-PINV051374,"1,528,211.62 ",Capital grants - Academy Trust
Department for Education,Core,12/01/2023,Grants Expenditure,Capital Directorate,ISG DEVELOPMENTS LIMITED,D-PINV051371,"729,115.63 ",Capital grants - Academy Trust
Department for Education,Core,13/01/2023,Grants Expenditure,Capital Directorate,Aspire School,D-CINV003761,"32,419.32 ",Capital grants - Academy Trust
Department for Education,Core,12/01/2023,Grants Expenditure,Capital Directorate,Bowmer & Kirkland Ltd,D-PINV051366,"2,329,732.73 ",Capital grants - Academy Trust
Department for Education,Core,12/01/2023,Grants Expenditure,Capital Directorate,Faithful & Gould,D-PINV049787,"93,241.68 ",Capital grants - Academy Trust
Department for Education,Core,13/01/2023,Grants Expenditure,Capital Directorate,Tilbury Douglas Construction Limited,D-PINV051442,"287,289.60 ",Capital grants - Academy Trust
Department for Education,Core,27/01/2023,Grants Expenditure,Capital Directorate,Portakabin Ltd,D-PINV051445,"151,660.80 ",Capital grants - Academy Trust
Department for Education,Core,12/01/2023,Grants Expenditure,Capital Directorate,McAvoy Group Ltd,D-PINV051449,"358,483.73 ",Capital grants - Academy Trust
Department for Education,Core,11/01/2023,Grants Expenditure,Capital Directorate,Cathedral Primary School,D-CINV003706,"45,194.17 ",Capital grants - Academy Trust
Department for Education,Core,11/01/2023,Grants Expenditure,Capital Directorate,Cathedral Primary School,D-CINV003706,"11,600.00 ",Current grants - Academy Trust
Department for Education,Core,13/01/2023,Other Costs,Capital Directorate,Star Academies,D-CINV003768,"36,236.68 ",Capital grants - Academy Trust
Department for Education,Core,13/01/2023,Grants Expenditure,Capital Directorate,Star Academies,D-CINV003768,"100,553.41 ",Capital grants - Academy Trust
Department for Education,Core,13/01/2023,Grants Expenditure,Capital Directorate,Star Academies,D-CINV003768,"22,862.00 ",Capital grants - Academy Trust
Department for Education,Core,13/01/2023,Grants Expenditure,Capital Directorate,Star Academies,D-CINV003768,"57,768.00 ",Current grants - Academy Trust
Department for Education,Core,13/01/2023,Grants Expenditure,Capital Directorate,Bowmer & Kirkland Ltd,D-PINV051450,"419,915.92 ",Capital grants - Academy Trust
Department for Education,Core,16/01/2023,Grants Expenditure,Capital Directorate,Aston Webb & Co Limited,D-PINV051516,"93,840.00 ",Capital grants - Academy Trust
Department for Education,Core,13/01/2023,Grants Expenditure,Capital Directorate,BAM Construction Ltd,D-PINV050883,"182,876.40 ",Capital grants - Academy Trust
Department for Education,Core,16/01/2023,Grants Expenditure,Capital Directorate,REDS10 UK Limited,D-PINV051529,"497,172.48 ",Capital grants - Academy Trust
Department for Education,Core,16/01/2023,Grants Expenditure,Capital Directorate,GLEEDS MANAGEMENT SERVICES LIMITED,D-PINV051458,"25,173.60 ",Capital grants - Academy Trust
Department for Education,Core,18/01/2023,Grants Expenditure,Capital Directorate,ISG DEVELOPMENTS LIMITED,D-PINV051517,"324,789.84 ",Capital grants - Academy Trust
Department for Education,Core,18/01/2023,Other Costs,Capital Directorate,Star Academies,D-CINV003781,"266,847.71 ",Capital grants - Academy Trust
Department for Education,Core,18/01/2023,Grants Expenditure,Capital Directorate,Star Academies,D-CINV003781,"1,334,238.54 ",Capital grants - Academy Trust
Department for Education,Core,16/01/2023,Grants Expenditure,Capital Directorate,Bowmer & Kirkland Ltd,D-PINV051527,"310,734.16 ",Capital grants - Academy Trust
Department for Education,Core,16/01/2023,Grants Expenditure,Capital Directorate,Bowmer & Kirkland Ltd,D-PINV051528,"375,529.66 ",Capital grants - Academy Trust
Department for Education,Core,16/01/2023,Grants Expenditure,Capital Directorate,Mace Ltd,D-PINV051414,"34,331.56 ",Capital grants - Academy Trust
Department for Education,Core,17/01/2023,Grants Expenditure,Capital Directorate,BAM Construction Ltd,D-PINV051568,"1,041,336.83 ",Capital grants - Academy Trust
Department for Education,Core,13/01/2023,IS/IT,Capital Directorate,THE THINKING SCHOOLS ACADEMY TRUST,D-CINV003584,"17,090.27 ",ICT  - Equipment /Hardware
Department for Education,Core,13/01/2023,Grants Expenditure,Capital Directorate,THE THINKING SCHOOLS ACADEMY TRUST,D-CINV003584,"85,451.36 ",Capital grants - Academy Trust
Department for Education,Core,20/01/2023,IS/IT,Capital Directorate,Edmonton Academy Trust,D-CINV003784,"25,027.10 ",ICT  - Equipment /Hardware
Department for Education,Core,20/01/2023,Grants Expenditure,Capital Directorate,Edmonton Academy Trust,D-CINV003784,"125,135.49 ",Capital grants - Academy Trust
Department for Education,Core,24/01/2023,Grants Expenditure,Capital Directorate,GLEEDS MANAGEMENT SERVICES LIMITED,D-PINV051538,"35,381.14 ",Capital grants - Academy Trust
Department for Education,Core,18/01/2023,Grants Expenditure,Capital Directorate,Arcadis LLP,D-PINV051609,"105,192.37 ",Capital grants - Academy Trust
Department for Education,Core,18/01/2023,Grants Expenditure,Capital Directorate,REDS10 UK Limited,D-PINV051620,"396,355.93 ",Capital grants - Academy Trust
Department for Education,Core,18/01/2023,Grants Expenditure,Capital Directorate,REDS10 UK Limited,D-PINV051622,"492,786.48 ",Capital grants - Academy Trust
Department for Education,Core,18/01/2023,Grants Expenditure,Capital Directorate,Spatial Initiative Ltd,D-PINV051594,"635,535.76 ",Capital grants - Academy Trust
Department for Education,Core,17/01/2023,Grants Expenditure,Capital Directorate,Laing O'Rourke Construction   Ltd,D-PINV051574,"138,285.00 ",Capital grants - Academy Trust
Department for Education,Core,25/01/2023,Grants Expenditure,Capital Directorate,Morgan Sindall Construction & Infrastructure Ltd,D-PINV051662,"161,910.00 ",Capital grants - Academy Trust
Department for Education,Core,19/01/2023,Grants Expenditure,Capital Directorate,BAM Construction Ltd,D-PINV051663,"1,026,119.04 ",Capital grants - Academy Trust
Department for Education,Core,30/01/2023,Grants Expenditure,Capital Directorate,WSP UK Limited,D-PINV051922,"34,641.44 ",Capital grants - Academy Trust
Department for Education,Core,18/01/2023,Grants Expenditure,Capital Directorate,Portakabin Ltd,D-PINV051627,"137,236.20 ",Capital grants - Academy Trust
Department for Education,Core,18/01/2023,Grants Expenditure,Capital Directorate,ISG DEVELOPMENTS LIMITED,D-PINV051631,"39,289.88 ",Capital grants - Academy Trust
Department for Education,Core,18/01/2023,Grants Expenditure,Capital Directorate,ISG DEVELOPMENTS LIMITED,D-PINV051630,"290,233.73 ",Capital grants - Academy Trust
Department for Education,Core,19/01/2023,Grants Expenditure,Capital Directorate,Bowmer & Kirkland Ltd,D-PINV051664,"1,885,130.47 ",Capital grants - Academy Trust
Department for Education,Core,25/01/2023,Grants Expenditure,Capital Directorate,Bowmer & Kirkland Ltd,D-PINV051633,"1,837,520.64 ",Capital grants - Academy Trust
Department for Education,Core,25/01/2023,Grants Expenditure,Capital Directorate,Bowmer & Kirkland Ltd,D-PINV051635,"473,338.74 ",Capital grants - Academy Trust
Department for Education,Core,19/01/2023,Grants Expenditure,Capital Directorate,Cityheart Limited,D-PINV051260,"609,119.47 ",Capital grants - Academy Trust
Department for Education,Core,23/01/2023,Grants Expenditure,Capital Directorate,Morgan Sindall Construction & Infrastructure Ltd,D-PINV051684,"1,609,971.17 ",Capital grants - Academy Trust
Department for Education,Core,23/01/2023,Grants Expenditure,Capital Directorate,Morgan Sindall Construction & Infrastructure Ltd,D-PINV051689,"110,664.92 ",Capital grants - Academy Trust
Department for Education,Core,19/01/2023,Grants Expenditure,Capital Directorate,Galliford Try Building Ltd,D-PINV051670,"513,559.19 ",Capital grants - Academy Trust
Department for Education,Core,19/01/2023,Grants Expenditure,Capital Directorate,Galliford Try Building Ltd,D-PINV051665,"1,343,434.99 ",Capital grants - Academy Trust
Department for Education,Core,20/01/2023,Grants Expenditure,Capital Directorate,BAM Construction Ltd,D-PINV051687,"1,122,929.56 ",Capital grants - Academy Trust
Department for Education,Core,31/01/2023,Grants Expenditure,Capital Directorate,CityAxis Ltd,D-PINV051690,"445,545.12 ",Capital grants - Academy Trust
Department for Education,Core,23/01/2023,Grants Expenditure,Capital Directorate,Eco Modular Buildings Limited,D-PINV051692,"31,485.20 ",Capital grants - Academy Trust
Department for Education,Core,20/01/2023,Grants Expenditure,Capital Directorate,Eco Modular Buildings Limited,D-PINV051693,"854,866.78 ",Capital grants - Academy Trust
Department for Education,Core,23/01/2023,Grants Expenditure,Capital Directorate,Galliford Try Building Ltd,D-PINV051696,"822,245.02 ",Capital grants - Academy Trust
Department for Education,Core,23/01/2023,Grants Expenditure,Capital Directorate,REDS10 UK Limited,D-PINV051694,"461,660.40 ",Capital grants - Academy Trust
Department for Education,Core,23/01/2023,Grants Expenditure,Capital Directorate,Turner & Townsend,D-PINV051713,"69,981.16 ",Capital grants - Academy Trust
Department for Education,Core,20/01/2023,Grants Expenditure,Capital Directorate,Merstham Park School,D-CINV003667,"243,296.10 ",Capital grants - Academy Trust
Department for Education,Core,25/01/2023,Other Costs,Capital Directorate,LANCASTER UNIVERSITY SCHOOL OF MATHEMATICS,D-CINV003827,"97,344.91 ",Capital grants - Academy Trust
Department for Education,Core,25/01/2023,Grants Expenditure,Capital Directorate,LANCASTER UNIVERSITY SCHOOL OF MATHEMATICS,D-CINV003827,"485,660.29 ",Capital grants - Academy Trust
Department for Education,Core,25/01/2023,Grants Expenditure,Capital Directorate,LANCASTER UNIVERSITY SCHOOL OF MATHEMATICS,D-CINV003827,"1,064.24 ",Current grants - Academy Trust
Department for Education,Core,24/01/2023,Grants Expenditure,Capital Directorate,Mott MacDonald Ltd,D-PINV050469,"42,240.00 ",Capital grants - Academy Trust
Department for Education,Core,23/01/2023,Grants Expenditure,Capital Directorate,WOLVERHAMPTON CITY COUNCIL,D-PINV051762,"40,000.00 ",Capital grants - Academy Trust
Department for Education,Core,27/01/2023,Grants Expenditure,Capital Directorate,ARK Schools,D-CINV003828,"144,348.98 ",Capital grants - Academy Trust
Department for Education,Core,25/01/2023,Grants Expenditure,Capital Directorate,South West Essex Community Education Trust Limited,D-CINV003834,"1,154,934.61 ",Capital grants - Academy Trust
Department for Education,Core,26/01/2023,Grants Expenditure,Capital Directorate,Womble Bond Dickinson (UK) LLP (Client Account) ,D-PINV051795,"410,000.00 ",Capital grants - Academy Trust
Department for Education,Core,25/01/2023,Grants Expenditure,Capital Directorate,Bowmer & Kirkland Ltd,D-PINV051800,"282,134.40 ",Capital grants - Academy Trust
Department for Education,Core,25/01/2023,Grants Expenditure,Capital Directorate,CURRIE & BROWN UK LTD,D-PINV051829,"44,715.97 ",Capital grants - Academy Trust
Department for Education,Core,26/01/2023,Grants Expenditure,Capital Directorate,Cityheart Limited,D-PINV051817,"435,940.08 ",Capital grants - Academy Trust
Department for Education,Core,26/01/2023,Grants Expenditure,Capital Directorate,Cityheart Limited,D-PCR001182,"-39,285.72 ",Capital grants - Academy Trust
Department for Education,Core,27/01/2023,IS/IT,Capital Directorate,The Lindfield School ,D-CINV003839,"7,758.38 ",ICT  - Equipment /Hardware
Department for Education,Core,27/01/2023,Grants Expenditure,Capital Directorate,The Lindfield School ,D-CINV003839,"38,791.88 ",Capital grants - Academy Trust
Department for Education,Core,27/01/2023,Grants Expenditure,Capital Directorate,Royal Wharf Primary School,D-CINV003840,"53,478.88 ",Capital grants - Academy Trust
Department for Education,Core,31/01/2023,Grants Expenditure,Capital Directorate,Eco Modular Buildings Limited,D-PINV051855,"272,902.80 ",Capital grants - Academy Trust
Department for Education,Core,27/01/2023,Grants Expenditure,Capital Directorate,Mace Ltd,D-PINV051744,"38,330.90 ",Capital grants - Academy Trust
Department for Education,Core,26/01/2023,Grants Expenditure,Capital Directorate,BAM Construction Ltd,D-PINV051018,"410,043.13 ",Capital grants - Academy Trust
Department for Education,Core,25/01/2023,Grants Expenditure,Capital Directorate,Birmingham Ormiston Academy,D-CINV003629,"203,078.06 ",Capital grants - Academy Trust
Department for Education,Core,25/01/2023,Grants Expenditure,Capital Directorate,Birmingham Ormiston Academy,D-CINV003707,"130,015.75 ",Capital grants - Academy Trust
Department for Education,Core,30/01/2023,Grants Expenditure,Capital Directorate,Mace Ltd,D-PINV051893,"108,913.72 ",Capital grants - Academy Trust
Department for Education,Core,30/01/2023,Grants Expenditure,Capital Directorate,Arcadis LLP,D-PINV051894,"104,971.85 ",Capital grants - Academy Trust
Department for Education,Core,31/01/2023,Grants Expenditure,Capital Directorate,Faithful & Gould,D-PINV051940,"54,331.63 ",Capital grants - Academy Trust
Department for Education,Core,31/01/2023,Grants Expenditure,Capital Directorate,Bowmer & Kirkland Ltd,D-PINV051934,"401,879.46 ",Capital grants - Academy Trust
Department for Education,Core,31/01/2023,Grants Expenditure,Capital Directorate,CURRIE & BROWN UK LTD,D-PINV051237,"44,715.97 ",Capital grants - Academy Trust
Department for Education,Core,31/01/2023,Grants Expenditure,Capital Directorate,WOLVERHAMPTON CITY COUNCIL,D-PCR001168,"-40,000.00 ",Capital grants - Academy Trust
Department for Education,Core,31/01/2023,Grants Expenditure,Capital Directorate,Bowmer & Kirkland Ltd,D-PINV051219,"282,134.40 ",Capital grants - Academy Trust
Department for Education,Core,05/01/2023,Grants Expenditure,Capital Directorate,SIBCAS LTD,D-PINV049999,"36,477.08 ",Current grants - Academy Trust
Department for Education,Core,16/01/2023,Grants Expenditure,Capital Directorate,REDS10 UK Limited,D-PINV051524,"325,926.00 ",Capital grants - Academy Trust
Department for Education,Core,17/01/2023,Grants Expenditure,Capital Directorate,REDS10 UK Limited,D-PINV051567,"35,165.26 ",Current grants - Academy Trust
Department for Education,Core,20/01/2023,Grants Expenditure,Capital Directorate,Portakabin Ltd,D-PINV051634,"812,509.16 ",Capital grants - Academy Trust
Department for Education,Core,20/01/2023,Grants Expenditure,Capital Directorate,Eric Wright Construction Ltd,D-PINV051688,"141,910.31 ",Current grants - Academy Trust
Department for Education,Core,24/01/2023,Grants Expenditure,Capital Directorate,ISG DEVELOPMENTS LIMITED,D-PINV051761,"253,014.71 ",Capital grants - Academy Trust
Department for Education,Core,27/01/2023,Grants Expenditure,Capital Directorate,Kier Construction Eastern,D-PINV051864,"279,134.81 ",Capital grants - Academy Trust
Department for Education,Core,03/01/2023,Grants Expenditure,Capital Directorate,Compass School Southwark,DU00097194,"42,332.62 ",Current grants - Academy Trust
Department for Education,Core,03/01/2023,Grants Expenditure,Capital Directorate,Kensington Aldridge Academy,DU00097195,"28,594.00 ",Current grants - Academy Trust
Department for Education,Core,03/01/2023,Grants Expenditure,Capital Directorate,Brook Mead Academy,DU00097201,"54,999.00 ",Current grants - Academy Trust
Department for Education,Core,03/01/2023,Grants Expenditure,Capital Directorate,Westside Academy Trust,DU00097202,"68,750.00 ",Current grants - Academy Trust
Department for Education,Core,03/01/2023,Grants Expenditure,Capital Directorate,Canary Wharf College 3,DU00097205,"37,899.75 ",Current grants - Academy Trust
Department for Education,Core,03/01/2023,Grants Expenditure,Capital Directorate,London Academy of Excellence,DU00097206,"138,845.00 ",Current grants - Academy Trust
Department for Education,Core,03/01/2023,Grants Expenditure,Capital Directorate,Brook House Primary School,DU00097207,"129,146.11 ",Current grants - Academy Trust
Department for Education,Core,16/01/2023,Grants Expenditure,Capital Directorate,SOUTH THAMES COLLEGES GROUP,D-PINV050347,"46,105.97 ",Current grants - Academy Trust
Department for Education,Core,24/01/2023,Grants Expenditure,Capital Directorate,ARK Schools,D-PINV051339,"29,000.00 ",Current grants - Academy Trust
Department for Education,Core,20/01/2023,Grants Expenditure,Capital Directorate,One Degree Academy,DU00098835,"43,575.00 ",Current grants - Academy Trust
Department for Education,Core,20/01/2023,Grants Expenditure,Capital Directorate,Greensted Infant School and Nursery,CAY142251,"47,540.00 ",Capital grants - Academy Trust
Department for Education,Core,20/01/2023,Grants Expenditure,Capital Directorate,Dosthill Primary Academy,CAY142310,"34,339.00 ",Capital grants - Academy Trust
Department for Education,Core,20/01/2023,Grants Expenditure,Capital Directorate,JOSEPH CHAMBERLAIN SIXTH FORM COLLEGE,CAY142311,"53,996.00 ",Capital grants - Academy Trust
Department for Education,Core,20/01/2023,Grants Expenditure,Capital Directorate,Sunbury Manor School,CAY142312,"55,786.00 ",Capital grants - Academy Trust
Department for Education,Core,20/01/2023,Grants Expenditure,Capital Directorate,Wallington High School for Girls,CAY142313,"28,657.00 ",Capital grants - Academy Trust
Department for Education,Core,20/01/2023,Grants Expenditure,Capital Directorate,Poole Grammar School ,CAY142314,"362,737.00 ",Capital grants - Academy Trust
Department for Education,Core,20/01/2023,Grants Expenditure,Capital Directorate,Mounts Bay Academy,CAY142315,"37,026.00 ",Capital grants - Academy Trust
Department for Education,Core,20/01/2023,Grants Expenditure,Capital Directorate,Fairfax ,CAY142316,"70,859.00 ",Capital grants - Academy Trust
Department for Education,Core,20/01/2023,Grants Expenditure,Capital Directorate,Kingstone High School,CAY142317,"51,031.00 ",Capital grants - Academy Trust
Department for Education,Core,20/01/2023,Grants Expenditure,Capital Directorate,Harrow High School,CAY142318,"120,000.00 ",Capital grants - Academy Trust
Department for Education,Core,20/01/2023,Grants Expenditure,Capital Directorate,The Frances Bardsley Academy for Girls,CAY142319,"89,304.00 ",Capital grants - Academy Trust
Department for Education,Core,20/01/2023,Grants Expenditure,Capital Directorate,New Bridge School,CAY142320,"74,293.00 ",Capital grants - Academy Trust
Department for Education,Core,20/01/2023,Grants Expenditure,Capital Directorate,St Stephens Community Academy,CAY142321,"62,816.00 ",Capital grants - Academy Trust
Department for Education,Core,20/01/2023,Grants Expenditure,Capital Directorate,St Thomas More Catholic School and Sixth Form Coll,CAY142322,"50,821.00 ",Capital grants - Academy Trust
Department for Education,Core,20/01/2023,Grants Expenditure,Capital Directorate,Werrington Community Primary School,CAY142323,"91,453.00 ",Capital grants - Academy Trust
Department for Education,Core,20/01/2023,Grants Expenditure,Capital Directorate,Bardfield Academy,CAY142324,"61,572.00 ",Capital grants - Academy Trust
Department for Education,Core,20/01/2023,Grants Expenditure,Capital Directorate,The Sixth Form College Farnborough,CAY142325,"32,941.00 ",Capital grants - Academy Trust
Department for Education,Core,20/01/2023,Grants Expenditure,Capital Directorate,Ayresome Primary School,CAY142327,"50,729.00 ",Capital grants - Academy Trust
Department for Education,Core,20/01/2023,Grants Expenditure,Capital Directorate,Central Lancaster High School,CAY142328,"75,911.00 ",Capital grants - Academy Trust
Department for Education,Core,20/01/2023,Grants Expenditure,Capital Directorate,St Monica's RC High School ,CAY142329,"87,661.00 ",Capital grants - Academy Trust
Department for Education,Core,20/01/2023,Grants Expenditure,Capital Directorate,Wimbledon College,CAY142330,"58,592.00 ",Capital grants - Academy Trust
Department for Education,Core,20/01/2023,Grants Expenditure,Capital Directorate,Little Heath School,CAY142331,"219,336.00 ",Capital grants - Academy Trust
Department for Education,Core,20/01/2023,Grants Expenditure,Capital Directorate,Little Heath School,CAY142332,"169,535.00 ",Capital grants - Academy Trust
Department for Education,Core,20/01/2023,Grants Expenditure,Capital Directorate,JOHN LEGGOTT SIXTH FORM COLLEGE,CAY142333,"100,034.00 ",Capital grants - Academy Trust
Department for Education,Core,20/01/2023,Grants Expenditure,Capital Directorate,SIXTH FORM COLLEGE COLCHESTER,CAY142334,"102,448.00 ",Capital grants - Academy Trust
Department for Education,Core,20/01/2023,Grants Expenditure,Capital Directorate,Greig City Academy,CAY142335,"78,417.00 ",Capital grants - Academy Trust
Department for Education,Core,20/01/2023,Grants Expenditure,Capital Directorate,Sandwich Technology School,CAY142336,"72,189.00 ",Capital grants - Academy Trust
Department for Education,Core,20/01/2023,Grants Expenditure,Capital Directorate,Sandbach High School and Sixth Form College,CAY142337,"93,174.00 ",Capital grants - Academy Trust
Department for Education,Core,20/01/2023,Grants Expenditure,Capital Directorate,Sandbach High School and Sixth Form College,CAY142338,"112,957.00 ",Capital grants - Academy Trust
Department for Education,Core,20/01/2023,Grants Expenditure,Capital Directorate,Caistor Grammar School,CAY142339,"56,417.00 ",Capital grants - Academy Trust
Department for Education,Core,20/01/2023,Grants Expenditure,Capital Directorate,The Compton School,CAY142340,"55,550.00 ",Capital grants - Academy Trust
Department for Education,Core,20/01/2023,Grants Expenditure,Capital Directorate,The Compton School,CAY142341,"54,959.00 ",Capital grants - Academy Trust
Department for Education,Core,20/01/2023,Grants Expenditure,Capital Directorate,Altrincham Grammar School for Boys,CAY142342,"110,651.00 ",Capital grants - Academy Trust
Department for Education,Core,20/01/2023,Grants Expenditure,Capital Directorate,"The Royal Grammar School, High Wycombe",CAY142343,"91,158.00 ",Capital grants - Academy Trust
Department for Education,Core,20/01/2023,Grants Expenditure,Capital Directorate,Sir Roger Manwood's School,CAY142344,"38,789.00 ",Capital grants - Academy Trust
Department for Education,Core,20/01/2023,Grants Expenditure,Capital Directorate,CIRENCESTER DEER PARK SCHOOL,CAY142345,"110,936.00 ",Capital grants - Academy Trust
Department for Education,Core,20/01/2023,Grants Expenditure,Capital Directorate,Queen Elizabeth's Grammar School ,CAY142346,"87,649.00 ",Capital grants - Academy Trust
Department for Education,Core,20/01/2023,Grants Expenditure,Capital Directorate,HARTSDOWN ACADEMY,CAY142347,"108,918.00 ",Capital grants - Academy Trust
Department for Education,Core,20/01/2023,Grants Expenditure,Capital Directorate,Corfe Hills School ,CAY142348,"152,000.00 ",Capital grants - Academy Trust
Department for Education,Core,20/01/2023,Grants Expenditure,Capital Directorate,Dane Court Grammar School,CAY142349,"82,396.00 ",Capital grants - Academy Trust
Department for Education,Core,20/01/2023,Grants Expenditure,Capital Directorate,Ashlawn School,CAY142350,"56,758.00 ",Capital grants - Academy Trust
Department for Education,Core,20/01/2023,Grants Expenditure,Capital Directorate,Lordswood Girls' School and Sixth Form Centre,CAY142351,"97,177.00 ",Capital grants - Academy Trust
Department for Education,Core,20/01/2023,Grants Expenditure,Capital Directorate,The Coopers' Company and Coborn School,CAY142352,"180,148.00 ",Capital grants - Academy Trust
Department for Education,Core,20/01/2023,Grants Expenditure,Capital Directorate,The John Warner School,CAY142353,"36,283.00 ",Capital grants - Academy Trust
Department for Education,Core,20/01/2023,Grants Expenditure,Capital Directorate,Uppingham Community College,CAY142354,"76,132.00 ",Capital grants - Academy Trust
Department for Education,Core,20/01/2023,Grants Expenditure,Capital Directorate,Shenley Brook End School,CAY142355,"62,102.00 ",Capital grants - Academy Trust
Department for Education,Core,20/01/2023,Grants Expenditure,Capital Directorate,St Edward's College,CAY142356,"171,437.00 ",Capital grants - Academy Trust
Department for Education,Core,20/01/2023,Grants Expenditure,Capital Directorate,Nonsuch High School for Girls,CAY142358,"74,961.00 ",Capital grants - Academy Trust
Department for Education,Core,20/01/2023,Grants Expenditure,Capital Directorate,ARNOLD ACADEMY,CAY142359,"48,319.00 ",Capital grants - Academy Trust
Department for Education,Core,20/01/2023,Grants Expenditure,Capital Directorate,GABLE HALL SCHOOL,CAY142360,"29,469.00 ",Capital grants - Academy Trust
Department for Education,Core,20/01/2023,Grants Expenditure,Capital Directorate,St Martin's School Brentwood,CAY142361,"55,991.00 ",Capital grants - Academy Trust
Department for Education,Core,20/01/2023,Grants Expenditure,Capital Directorate,Queens' School ,CAY142362,"115,450.00 ",Capital grants - Academy Trust
Department for Education,Core,20/01/2023,Grants Expenditure,Capital Directorate,St Wilfrid's Church of England Academy ,CAY142363,"73,819.00 ",Capital grants - Academy Trust
Department for Education,Core,20/01/2023,Grants Expenditure,Capital Directorate,Henley In Arden School,CAY142364,"105,839.00 ",Capital grants - Academy Trust
Department for Education,Core,20/01/2023,Grants Expenditure,Capital Directorate,Park High School,CAY142365,"45,620.00 ",Capital grants - Academy Trust
Department for Education,Core,20/01/2023,Grants Expenditure,Capital Directorate,Chesham Grammar School,CAY142366,"91,516.00 ",Capital grants - Academy Trust
Department for Education,Core,20/01/2023,Grants Expenditure,Capital Directorate,Kirkby Stephen Grammar School,CAY142367,"32,268.00 ",Capital grants - Academy Trust
Department for Education,Core,20/01/2023,Grants Expenditure,Capital Directorate,Lostock Hall Academy Trust,CAY142368,"34,553.00 ",Capital grants - Academy Trust
Department for Education,Core,20/01/2023,Grants Expenditure,Capital Directorate,The Magna Carta School,CAY142369,"63,841.00 ",Capital grants - Academy Trust
Department for Education,Core,20/01/2023,Grants Expenditure,Capital Directorate,The London Oratory School,CAY142370,"156,957.00 ",Capital grants - Academy Trust
Department for Education,Core,20/01/2023,Grants Expenditure,Capital Directorate,The London Oratory School,CAY142371,"82,863.00 ",Capital grants - Academy Trust
Department for Education,Core,20/01/2023,Grants Expenditure,Capital Directorate,Rookery School,CAY142372,"69,398.00 ",Capital grants - Academy Trust
Department for Education,Core,20/01/2023,Grants Expenditure,Capital Directorate,Sacred Heart of Mary Girls' School,CAY142374,"76,516.00 ",Capital grants - Academy Trust
Department for Education,Core,20/01/2023,Grants Expenditure,Capital Directorate,Thurstable School Sports College and Sixth Form Ce,CAY142375,"92,802.00 ",Capital grants - Academy Trust
Department for Education,Core,20/01/2023,Grants Expenditure,Capital Directorate,Thurstable School Sports College and Sixth Form Ce,CAY142376,"73,229.00 ",Capital grants - Academy Trust
Department for Education,Core,20/01/2023,Grants Expenditure,Capital Directorate,Wilmington Grammar School for Girls,CAY142377,"41,515.00 ",Capital grants - Academy Trust
Department for Education,Core,20/01/2023,Grants Expenditure,Capital Directorate,Hazelwick School,CAY142378,"76,284.00 ",Capital grants - Academy Trust
Department for Education,Core,20/01/2023,Grants Expenditure,Capital Directorate,Brooke Hill Academy ,CAY142379,"51,581.00 ",Capital grants - Academy Trust
Department for Education,Core,20/01/2023,Grants Expenditure,Capital Directorate,Christ's College Finchley,CAY142380,"147,000.00 ",Capital grants - Academy Trust
Department for Education,Core,20/01/2023,Grants Expenditure,Capital Directorate,Warden Park School,CAY142381,"122,625.00 ",Capital grants - Academy Trust
Department for Education,Core,20/01/2023,Grants Expenditure,Capital Directorate,Homewood School and Sixth Form Centre,CAY142383,"115,567.00 ",Capital grants - Academy Trust
Department for Education,Core,20/01/2023,Grants Expenditure,Capital Directorate,Homewood School and Sixth Form Centre,CAY142384,"251,072.00 ",Capital grants - Academy Trust
Department for Education,Core,20/01/2023,Grants Expenditure,Capital Directorate,Cams Hill School,CAY142385,"71,451.00 ",Capital grants - Academy Trust
Department for Education,Core,20/01/2023,Grants Expenditure,Capital Directorate,The Dorcan Academy,CAY142387,"105,000.00 ",Capital grants - Academy Trust
Department for Education,Core,20/01/2023,Grants Expenditure,Capital Directorate,Featherstone High School,CAY142388,"103,493.00 ",Capital grants - Academy Trust
Department for Education,Core,20/01/2023,Grants Expenditure,Capital Directorate,Aylesford School and Sixth Form College,CAY142389,"53,133.00 ",Capital grants - Academy Trust
Department for Education,Core,20/01/2023,Grants Expenditure,Capital Directorate,Hadrian Academy,CAY142390,"38,716.00 ",Capital grants - Academy Trust
Department for Education,Core,20/01/2023,Grants Expenditure,Capital Directorate,"St Mary's Church of England Primary School, Barnsl",CAY142392,"51,608.00 ",Capital grants - Academy Trust
Department for Education,Core,20/01/2023,Grants Expenditure,Capital Directorate,Chiswick School,CAY142393,"121,001.00 ",Capital grants - Academy Trust
Department for Education,Core,20/01/2023,Grants Expenditure,Capital Directorate,The Blue Coat School,CAY142394,"42,275.00 ",Capital grants - Academy Trust
Department for Education,Core,20/01/2023,Grants Expenditure,Capital Directorate,"Gumley House RC Convent School, FCJ",CAY142395,"152,750.00 ",Capital grants - Academy Trust
Department for Education,Core,20/01/2023,Grants Expenditure,Capital Directorate,Chepping View Primary Academy,CAY142396,"107,206.00 ",Capital grants - Academy Trust
Department for Education,Core,20/01/2023,Grants Expenditure,Capital Directorate,Beacon Academy,CAY142397,"106,322.00 ",Capital grants - Academy Trust
Department for Education,Core,20/01/2023,Grants Expenditure,Capital Directorate,Beacon Academy,CAY142398,"101,761.00 ",Capital grants - Academy Trust
Department for Education,Core,20/01/2023,Grants Expenditure,Capital Directorate,The Norton Knatchbull School,CAY142399,"116,284.00 ",Capital grants - Academy Trust
Department for Education,Core,20/01/2023,Grants Expenditure,Capital Directorate,The Norton Knatchbull School,CAY142400,"83,936.00 ",Capital grants - Academy Trust
Department for Education,Core,20/01/2023,Grants Expenditure,Capital Directorate,St Mary's CofE Academy Stotfold,CAY142401,"58,545.00 ",Capital grants - Academy Trust
Department for Education,Core,20/01/2023,Grants Expenditure,Capital Directorate,The Marlborough Science Academy,CAY142402,"109,966.00 ",Capital grants - Academy Trust
Department for Education,Core,20/01/2023,Grants Expenditure,Capital Directorate,The Meadow Community Primary School,CAY142403,"160,000.00 ",Capital grants - Academy Trust
Department for Education,Core,20/01/2023,Grants Expenditure,Capital Directorate,Alban City School,CAY142404,"48,193.00 ",Capital grants - Academy Trust
Department for Education,Core,20/01/2023,Grants Expenditure,Capital Directorate,WESTMINSTER CITY SCHOOL,CAY142405,"25,377.00 ",Capital grants - Academy Trust
Department for Education,Core,20/01/2023,Grants Expenditure,Capital Directorate,Glenleigh Park Primary Academy ,CAY142406,"74,834.00 ",Capital grants - Academy Trust
Department for Education,Core,20/01/2023,Grants Expenditure,Capital Directorate,King Offa Primary Academy ,CAY142407,"78,218.00 ",Capital grants - Academy Trust
Department for Education,Core,20/01/2023,Grants Expenditure,Capital Directorate,Hailsham Community College ,CAY142408,"94,336.00 ",Capital grants - Academy Trust
Department for Education,Core,20/01/2023,Grants Expenditure,Capital Directorate,Hailsham Community College ,CAY142409,"92,926.00 ",Capital grants - Academy Trust
Department for Education,Core,20/01/2023,Grants Expenditure,Capital Directorate,RATTON SCHOOL,CAY142410,"73,066.00 ",Capital grants - Academy Trust
Department for Education,Core,20/01/2023,Grants Expenditure,Capital Directorate,St. Augustine's Academy,CAY142411,"83,162.00 ",Capital grants - Academy Trust
Department for Education,Core,20/01/2023,Grants Expenditure,Capital Directorate,St. Augustine's Academy,CAY142412,"60,795.00 ",Capital grants - Academy Trust
Department for Education,Core,20/01/2023,Grants Expenditure,Capital Directorate,Greensted Primary School & Nursery,CAY142413,"47,963.00 ",Capital grants - Academy Trust
Department for Education,Core,20/01/2023,Grants Expenditure,Capital Directorate,Alperton Community School,CAY142414,"43,253.00 ",Capital grants - Academy Trust
Department for Education,Core,20/01/2023,Grants Expenditure,Capital Directorate,Orleans Park School,CAY142415,"130,415.00 ",Capital grants - Academy Trust
Department for Education,Core,20/01/2023,Grants Expenditure,Capital Directorate,Bramcote College,CAY142416,"47,348.00 ",Capital grants - Academy Trust
Department for Education,Core,20/01/2023,Grants Expenditure,Capital Directorate,Colne Primet Academy,CAY142419,"44,499.00 ",Capital grants - Academy Trust
Department for Education,Core,20/01/2023,Grants Expenditure,Capital Directorate,Calday Grange Grammar School,CAY142420,"118,940.00 ",Capital grants - Academy Trust
Department for Education,Core,20/01/2023,Grants Expenditure,Capital Directorate,Cheney School ,CAY142421,"84,204.00 ",Capital grants - Academy Trust
Department for Education,Core,20/01/2023,Grants Expenditure,Capital Directorate,Fulham Cross Girls' School and Language College,CAY142422,"61,938.00 ",Capital grants - Academy Trust
Department for Education,Core,20/01/2023,Grants Expenditure,Capital Directorate,Acocks Green Primary School,CAY142423,"131,401.00 ",Capital grants - Academy Trust
Department for Education,Core,20/01/2023,Grants Expenditure,Capital Directorate,THE LINCOLN MANOR LEAS JUNIOR SCHOOL,CAY142424,"41,639.00 ",Capital grants - Academy Trust
Department for Education,Core,20/01/2023,Grants Expenditure,Capital Directorate,Goldington Green Academy,CAY142425,"69,722.00 ",Capital grants - Academy Trust
Department for Education,Core,20/01/2023,Grants Expenditure,Capital Directorate,Leeds City Academy,CAY142426,"76,288.00 ",Capital grants - Academy Trust
Department for Education,Core,20/01/2023,Grants Expenditure,Capital Directorate,Leeds City Academy,CAY142427,"83,768.00 ",Capital grants - Academy Trust
Department for Education,Core,20/01/2023,Grants Expenditure,Capital Directorate,Liverpool College ,CAY142428,"61,212.00 ",Capital grants - Academy Trust
Department for Education,Core,20/01/2023,Grants Expenditure,Capital Directorate,Gildredge House,CAY142429,"84,689.00 ",Capital grants - Academy Trust
Department for Education,Core,20/01/2023,Grants Expenditure,Capital Directorate,Purford Green Primary School,CAY142430,"69,680.00 ",Capital grants - Academy Trust
Department for Education,Core,20/01/2023,Grants Expenditure,Capital Directorate,Countess Anne Church of England School,CAY142431,"33,212.00 ",Capital grants - Academy Trust
Department for Education,Core,20/01/2023,Grants Expenditure,Capital Directorate,Simon Balle All-Through School,CAY142432,"62,279.00 ",Capital grants - Academy Trust
Department for Education,Core,20/01/2023,Grants Expenditure,Capital Directorate,Smithills School,CAY142433,"67,080.00 ",Capital grants - Academy Trust
Department for Education,Core,20/01/2023,Grants Expenditure,Capital Directorate,The Brent Primary School,CAY142434,"49,361.00 ",Capital grants - Academy Trust
Department for Education,Core,20/01/2023,Grants Expenditure,Capital Directorate,St Thomas More Catholic School and Sixth Form Coll,CAY142436,"56,237.00 ",Capital grants - Academy Trust
Department for Education,Core,20/01/2023,Grants Expenditure,Capital Directorate,The Windsor Boys' School,CAY142437,"42,047.00 ",Capital grants - Academy Trust
Department for Education,Core,20/01/2023,Grants Expenditure,Capital Directorate,Windsor Girls' School,CAY142438,"90,895.00 ",Capital grants - Academy Trust
Department for Education,Core,20/01/2023,Grants Expenditure,Capital Directorate,Sharples School,CAY142439,"101,565.00 ",Capital grants - Academy Trust
Department for Education,Core,20/01/2023,Grants Expenditure,Capital Directorate,LITTLE LEVER SCHOOL,CAY142440,"71,448.00 ",Capital grants - Academy Trust
Department for Education,Core,20/01/2023,Grants Expenditure,Capital Directorate,Beck Primary School,CAY142441,"53,641.00 ",Capital grants - Academy Trust
Department for Education,Core,20/01/2023,Grants Expenditure,Capital Directorate,Highfield Junior and Infant School ,CAY142442,"33,635.00 ",Capital grants - Academy Trust
Department for Education,Core,20/01/2023,Grants Expenditure,Capital Directorate,Manor Community Primary School ,CAY142443,"87,613.00 ",Capital grants - Academy Trust
Department for Education,Core,20/01/2023,Grants Expenditure,Capital Directorate,Lever Park School,CAY142444,"151,794.00 ",Capital grants - Academy Trust
Department for Education,Core,20/01/2023,Grants Expenditure,Capital Directorate,Redhills Community Primary School,CAY142445,"58,702.00 ",Capital grants - Academy Trust
Department for Education,Core,20/01/2023,Grants Expenditure,Capital Directorate,HEMPSTALLS PRIMARY SCHOOL,CAY142446,"38,873.00 ",Capital grants - Academy Trust
Department for Education,Core,20/01/2023,Grants Expenditure,Capital Directorate,Leasowes Primary School,CAY142447,"29,304.00 ",Capital grants - Academy Trust
Department for Education,Core,20/01/2023,Grants Expenditure,Capital Directorate,Ryedene Primary & Nursery School,CAY142448,"42,884.00 ",Capital grants - Academy Trust
Department for Education,Core,20/01/2023,Grants Expenditure,Capital Directorate,Temple Hill Primary Academy,CAY142449,"25,000.00 ",Capital grants - Academy Trust
Department for Education,Core,20/01/2023,Grants Expenditure,Capital Directorate,Victoria Primary School,CAY142450,"74,573.00 ",Capital grants - Academy Trust
Department for Education,Core,20/01/2023,Grants Expenditure,Capital Directorate,Harper Green School,CAY142451,"53,474.00 ",Capital grants - Academy Trust
Department for Education,Core,20/01/2023,Grants Expenditure,Capital Directorate,Rivington & Blackrod High School,CAY142452,"65,786.00 ",Capital grants - Academy Trust
Department for Education,Core,20/01/2023,Grants Expenditure,Capital Directorate,Thomas Alleynes High School,CAY142453,"26,445.00 ",Capital grants - Academy Trust
Department for Education,Core,20/01/2023,Grants Expenditure,Capital Directorate,Thomas Alleynes High School,CAY142454,"166,364.00 ",Capital grants - Academy Trust
Department for Education,Core,20/01/2023,Grants Expenditure,Capital Directorate,Lansdown Park Academy,CAY142455,"37,126.00 ",Capital grants - Academy Trust
Department for Education,Core,20/01/2023,Grants Expenditure,Capital Directorate,St Mark's CE Primary School,CAY142456,"42,866.00 ",Capital grants - Academy Trust
Department for Education,Core,20/01/2023,Grants Expenditure,Capital Directorate,St Teresa's Catholic Academy,CAY142457,"35,354.00 ",Capital grants - Academy Trust
Department for Education,Core,20/01/2023,Grants Expenditure,Capital Directorate,Royal Rise Primary School ,CAY142458,"40,618.00 ",Capital grants - Academy Trust
Department for Education,Core,20/01/2023,Grants Expenditure,Capital Directorate,Pikemere School,CAY142459,"105,456.00 ",Capital grants - Academy Trust
Department for Education,Core,20/01/2023,Grants Expenditure,Capital Directorate,Woodlands,CAY142460,"26,167.00 ",Capital grants - Academy Trust
Department for Education,Core,20/01/2023,Grants Expenditure,Capital Directorate,Marshbrook First School,CAY142461,"35,056.00 ",Capital grants - Academy Trust
Department for Education,Core,20/01/2023,Grants Expenditure,Capital Directorate,Welcombe Hills School,CAY142463,"93,734.00 ",Capital grants - Academy Trust
Department for Education,Core,20/01/2023,Grants Expenditure,Capital Directorate,Eckington School,CAY142464,"87,301.00 ",Capital grants - Academy Trust
Department for Education,Core,20/01/2023,Grants Expenditure,Capital Directorate,Hartburn Primary School,CAY142465,"80,000.00 ",Capital grants - Academy Trust
Department for Education,Core,20/01/2023,Grants Expenditure,Capital Directorate,Meole Brace School,CAY142466,"50,941.00 ",Capital grants - Academy Trust
Department for Education,Core,20/01/2023,Grants Expenditure,Capital Directorate,Colne Park High School,CAY142467,"30,647.00 ",Capital grants - Academy Trust
Department for Education,Core,20/01/2023,Grants Expenditure,Capital Directorate,FLIMBY PRIMARY SCHOOL,CAY142468,"45,344.00 ",Capital grants - Academy Trust
Department for Education,Core,20/01/2023,Grants Expenditure,Capital Directorate,Archbishop of York's CE Junior School,CAY142469,"51,935.00 ",Capital grants - Academy Trust
Department for Education,Core,20/01/2023,Grants Expenditure,Capital Directorate,St Peter's Church of England Primary School,CAY142470,"79,043.00 ",Capital grants - Academy Trust
Department for Education,Core,20/01/2023,Grants Expenditure,Capital Directorate,Bardwell School ,CAY142471,"53,483.00 ",Capital grants - Academy Trust
Department for Education,Core,20/01/2023,Grants Expenditure,Capital Directorate,Raunds Park Infants,CAY142472,"32,160.00 ",Capital grants - Academy Trust
Department for Education,Core,20/01/2023,Grants Expenditure,Capital Directorate,Morecambe Bay Academy ,CAY142473,"75,138.00 ",Capital grants - Academy Trust
Department for Education,Core,20/01/2023,Grants Expenditure,Capital Directorate,Springfield School,CAY142474,"44,850.00 ",Capital grants - Academy Trust
Department for Education,Core,20/01/2023,Grants Expenditure,Capital Directorate,Moorland Primary School,CAY142475,"65,946.00 ",Capital grants - Academy Trust
Department for Education,Core,20/01/2023,Grants Expenditure,Capital Directorate,Gillshill Primary School,CAY142476,"106,379.00 ",Capital grants - Academy Trust
Department for Education,Core,20/01/2023,Grants Expenditure,Capital Directorate,St Mary & St Chad CE (VC) First School,CAY142478,"34,684.00 ",Capital grants - Academy Trust
Department for Education,Core,20/01/2023,Grants Expenditure,Capital Directorate,Ravenstone Primary School,CAY142479,"88,987.00 ",Capital grants - Academy Trust
Department for Education,Core,20/01/2023,Grants Expenditure,Capital Directorate,Tolleshunt D'Arcy St. Nicholas CofE Primary,CAY142480,"74,762.00 ",Capital grants - Academy Trust
Department for Education,Core,20/01/2023,Grants Expenditure,Capital Directorate,Princetown Community Primary School,CAY142481,"73,021.00 ",Capital grants - Academy Trust
Department for Education,Core,20/01/2023,Grants Expenditure,Capital Directorate,St. Anne's Catholic Primary Academy,CAY142482,"41,521.00 ",Capital grants - Academy Trust
Department for Education,Core,20/01/2023,Grants Expenditure,Capital Directorate,Parkfields Middle School,CAY142484,"147,468.00 ",Capital grants - Academy Trust
Department for Education,Core,20/01/2023,Grants Expenditure,Capital Directorate,Mabel Prichard School,CAY142485,"48,287.00 ",Capital grants - Academy Trust
Department for Education,Core,20/01/2023,Grants Expenditure,Capital Directorate,Woodhouse West Primary School,CAY142486,"54,968.00 ",Capital grants - Academy Trust
Department for Education,Core,20/01/2023,Grants Expenditure,Capital Directorate,Woodhouse West Primary School,CAY142487,"70,546.00 ",Capital grants - Academy Trust
Department for Education,Core,20/01/2023,Grants Expenditure,Capital Directorate,St Annes RC School,CAY142488,"76,333.00 ",Capital grants - Academy Trust
Department for Education,Core,20/01/2023,Grants Expenditure,Capital Directorate,Lyngford Park Primary School,CAY142489,"51,062.00 ",Capital grants - Academy Trust
Department for Education,Core,20/01/2023,Grants Expenditure,Capital Directorate,Parley First School,CAY142490,"69,797.00 ",Capital grants - Academy Trust
Department for Education,Core,20/01/2023,Grants Expenditure,Capital Directorate,Farley Junior Academy,CAY142491,"61,963.00 ",Capital grants - Academy Trust
Department for Education,Core,20/01/2023,Grants Expenditure,Capital Directorate,Middlewich High School,CAY142492,"92,663.00 ",Capital grants - Academy Trust
Department for Education,Core,20/01/2023,Grants Expenditure,Capital Directorate,St Peter's Primary School,CAY142493,"122,131.16 ",Capital grants - Academy Trust
Department for Education,Core,20/01/2023,Grants Expenditure,Capital Directorate,Berkeley School,CAY142494,"113,405.05 ",Capital grants - Academy Trust
Department for Education,Core,20/01/2023,Grants Expenditure,Capital Directorate,Temple Grove Academy ,CAY142495,"71,626.20 ",Capital grants - Academy Trust
Department for Education,Core,20/01/2023,Other Costs,Capital Directorate,Ovingham C of E First School,CAY142496,"54,158.85 ",Support funding
Department for Education,Core,20/01/2023,Grants Expenditure,Capital Directorate,Long Melford CofE Primary School,CAY142511,"27,841.00 ",Capital grants - Academy Trust
Department for Education,Core,20/01/2023,Grants Expenditure,Capital Directorate,Bosworth Academy,CAY142517,"73,449.00 ",Capital grants - Academy Trust
Department for Education,Core,20/01/2023,Grants Expenditure,Capital Directorate,Mountbatten Primary School,CAY142518,"89,129.00 ",Capital grants - Academy Trust
Department for Education,Core,20/01/2023,Grants Expenditure,Capital Directorate,YEW TREE PRIMARY SCHOOL,CAY142519,"54,880.00 ",Capital grants - Academy Trust
Department for Education,Core,20/01/2023,Grants Expenditure,Capital Directorate,Sunbury Manor School,CAY142520,"96,154.00 ",Capital grants - Academy Trust
Department for Education,Core,20/01/2023,Grants Expenditure,Capital Directorate,HOLY CROSS COLLEGE,CAY142522,"50,560.00 ",Capital grants - Academy Trust
Department for Education,Core,20/01/2023,Grants Expenditure,Capital Directorate,Watford Grammar School For Girls,CAY142523,"55,962.00 ",Capital grants - Academy Trust
Department for Education,Core,20/01/2023,Grants Expenditure,Capital Directorate,The Holt School,CAY142524,"51,458.00 ",Capital grants - Academy Trust
Department for Education,Core,20/01/2023,Grants Expenditure,Capital Directorate,Caistor Yarborough Academy,CAY142525,"37,768.00 ",Capital grants - Academy Trust
Department for Education,Core,20/01/2023,Grants Expenditure,Capital Directorate,Caistor Yarborough Academy,CAY142526,"88,399.00 ",Capital grants - Academy Trust
Department for Education,Core,20/01/2023,Grants Expenditure,Capital Directorate,Westfield Academy ,CAY142527,"76,339.00 ",Capital grants - Academy Trust
Department for Education,Core,20/01/2023,Grants Expenditure,Capital Directorate,Redden Court School,CAY142528,"41,450.00 ",Capital grants - Academy Trust
Department for Education,Core,20/01/2023,Grants Expenditure,Capital Directorate,Westgate Academy,CAY142529,"27,110.00 ",Capital grants - Academy Trust
Department for Education,Core,20/01/2023,Grants Expenditure,Capital Directorate,Bellerive FCJ Catholic College,CAY142530,"58,528.00 ",Capital grants - Academy Trust
Department for Education,Core,20/01/2023,Grants Expenditure,Capital Directorate,St Joseph's College ,CAY142531,"128,220.00 ",Capital grants - Academy Trust
Department for Education,Core,20/01/2023,Grants Expenditure,Capital Directorate,East Herrington Primary Academy,CAY142532,"158,792.00 ",Capital grants - Academy Trust
Department for Education,Core,20/01/2023,Grants Expenditure,Capital Directorate,Durrington High School,CAY142536,"48,958.00 ",Capital grants - Academy Trust
Department for Education,Core,20/01/2023,Grants Expenditure,Capital Directorate,Northwold Primary School,CAY142537,"275,496.00 ",Capital grants - Academy Trust
Department for Education,Core,20/01/2023,Grants Expenditure,Capital Directorate,Hornton Primary School,CAY142539,"25,328.00 ",Capital grants - Academy Trust
Department for Education,Core,20/01/2023,Grants Expenditure,Capital Directorate,The Warriner School,CAY142540,"106,527.00 ",Capital grants - Academy Trust
Department for Education,Core,20/01/2023,Grants Expenditure,Capital Directorate,The Warriner School,CAY142541,"183,519.00 ",Capital grants - Academy Trust
Department for Education,Core,20/01/2023,Grants Expenditure,Capital Directorate,Courtlands School,CAY142543,"68,757.00 ",Capital grants - Academy Trust
Department for Education,Core,20/01/2023,Grants Expenditure,Capital Directorate,HATCHELL WOOD PRIMARY ACADEMY,CAY142544,"40,626.00 ",Capital grants - Academy Trust
Department for Education,Core,20/01/2023,Grants Expenditure,Capital Directorate,St Peter's CE Primary Academy,CAY142545,"57,721.00 ",Capital grants - Academy Trust
Department for Education,Core,20/01/2023,Grants Expenditure,Capital Directorate,Alma Primary School,CAY142546,"28,715.00 ",Capital grants - Academy Trust
Department for Education,Core,20/01/2023,Grants Expenditure,Capital Directorate,Alma Primary School,CAY142547,"127,302.00 ",Capital grants - Academy Trust
Department for Education,Core,20/01/2023,Grants Expenditure,Capital Directorate,Empingham CofE Primary School,CAY142548,"59,957.00 ",Capital grants - Academy Trust
Department for Education,Core,20/01/2023,Grants Expenditure,Capital Directorate,Bournville Village Primary,CAY142549,"34,974.00 ",Capital grants - Academy Trust
Department for Education,Core,20/01/2023,Grants Expenditure,Capital Directorate,CARMEL COLLEGE,CAY142550,"117,745.00 ",Capital grants - Academy Trust
Department for Education,Core,20/01/2023,Grants Expenditure,Capital Directorate,Macmillan Academy,CAY142551,"48,943.00 ",Capital grants - Academy Trust
Department for Education,Core,20/01/2023,Grants Expenditure,Capital Directorate,Iqra Slough Islamic Primary School,CAY142552,"82,976.00 ",Capital grants - Academy Trust
Department for Education,Core,20/01/2023,Grants Expenditure,Capital Directorate,THE SUTTON ACADEMY,CAY142553,"103,284.00 ",Capital grants - Academy Trust
Department for Education,Core,20/01/2023,Grants Expenditure,Capital Directorate,Watford Grammar School for Boys,CAY142554,"73,471.00 ",Capital grants - Academy Trust
Department for Education,Core,20/01/2023,Grants Expenditure,Capital Directorate,Kendrick School,CAY142555,"86,341.00 ",Capital grants - Academy Trust
Department for Education,Core,20/01/2023,Grants Expenditure,Capital Directorate,Hockerill Anglo-European College,CAY142557,"71,193.00 ",Capital grants - Academy Trust
Department for Education,Core,20/01/2023,Grants Expenditure,Capital Directorate,The John Warner School,CAY142558,"76,921.00 ",Capital grants - Academy Trust
Department for Education,Core,20/01/2023,Grants Expenditure,Capital Directorate,Wildern School,CAY142560,"104,530.00 ",Capital grants - Academy Trust
Department for Education,Core,20/01/2023,Grants Expenditure,Capital Directorate,Ripley St Thomas Church of England Academy,CAY142561,"61,898.00 ",Capital grants - Academy Trust
Department for Education,Core,20/01/2023,Grants Expenditure,Capital Directorate,St Joseph�s Catholic College,CAY142562,"37,683.00 ",Capital grants - Academy Trust
Department for Education,Core,20/01/2023,Grants Expenditure,Capital Directorate,ALDERBROOK SCHOOL,CAY142563,"130,480.00 ",Capital grants - Academy Trust
Department for Education,Core,20/01/2023,Grants Expenditure,Capital Directorate,Langley School,CAY142564,"112,224.00 ",Capital grants - Academy Trust
Department for Education,Core,20/01/2023,Grants Expenditure,Capital Directorate,Lode Heath School,CAY142565,"105,386.00 ",Capital grants - Academy Trust
Department for Education,Core,20/01/2023,Grants Expenditure,Capital Directorate,GRAVESEND GRAMMAR SCHOOL ,CAY142566,"134,374.00 ",Capital grants - Academy Trust
Department for Education,Core,20/01/2023,Grants Expenditure,Capital Directorate,GRAVESEND GRAMMAR SCHOOL ,CAY142567,"72,702.00 ",Capital grants - Academy Trust
Department for Education,Core,20/01/2023,Grants Expenditure,Capital Directorate,"THE KING'S SCHOOL, GRANTHAM",CAY142568,"69,086.00 ",Capital grants - Academy Trust
Department for Education,Core,20/01/2023,Grants Expenditure,Capital Directorate,Bentley Wood High School,CAY142569,"71,694.00 ",Capital grants - Academy Trust
Department for Education,Core,20/01/2023,Grants Expenditure,Capital Directorate,Mount Grace School,CAY142570,"136,922.00 ",Capital grants - Academy Trust
Department for Education,Core,20/01/2023,Grants Expenditure,Capital Directorate,Hitchin Girls' School,CAY142571,"68,467.00 ",Capital grants - Academy Trust
Department for Education,Core,20/01/2023,Grants Expenditure,Capital Directorate,Formby High School,CAY142572,"99,963.00 ",Capital grants - Academy Trust
Department for Education,Core,20/01/2023,Grants Expenditure,Capital Directorate,Wandle Valley School,CAY142573,"50,350.00 ",Capital grants - Academy Trust
Department for Education,Core,20/01/2023,Grants Expenditure,Capital Directorate,Bourne Westfield Primary Academy,CAY142574,"67,464.00 ",Capital grants - Academy Trust
Department for Education,Core,20/01/2023,Grants Expenditure,Capital Directorate,Bishopshalt School,CAY142575,"143,133.00 ",Capital grants - Academy Trust
Department for Education,Core,20/01/2023,Grants Expenditure,Capital Directorate,Bishopshalt School,CAY142576,"71,928.00 ",Capital grants - Academy Trust
Department for Education,Core,20/01/2023,Grants Expenditure,Capital Directorate,Clayton-le-Moors All Saints Church of England Prim,CAY142577,"58,924.00 ",Capital grants - Academy Trust
Department for Education,Core,20/01/2023,Grants Expenditure,Capital Directorate,Kingsbury High School,CAY142578,"621,967.00 ",Capital grants - Academy Trust
Department for Education,Core,20/01/2023,Grants Expenditure,Capital Directorate,HUNTCLIFF SCHOOL,CAY142579,"567,771.00 ",Capital grants - Academy Trust
Department for Education,Core,20/01/2023,Grants Expenditure,Capital Directorate,Saint Joan of Arc Catholic School,CAY142580,"56,161.00 ",Capital grants - Academy Trust
Department for Education,Core,20/01/2023,Grants Expenditure,Capital Directorate,Bourton Meadow Academy,CAY142582,"140,796.00 ",Capital grants - Academy Trust
Department for Education,Core,20/01/2023,Grants Expenditure,Capital Directorate,Langtree School ,CAY142583,"70,830.00 ",Capital grants - Academy Trust
Department for Education,Core,20/01/2023,Grants Expenditure,Capital Directorate,KING CHARLES I SECONDARY SCHOOL,CAY142584,"61,736.00 ",Capital grants - Academy Trust
Department for Education,Core,20/01/2023,Grants Expenditure,Capital Directorate,Sir Harry Smith Community College,CAY142585,"50,117.00 ",Capital grants - Academy Trust
Department for Education,Core,20/01/2023,Grants Expenditure,Capital Directorate,DAUBENEY ACADEMY,CAY142586,"92,057.00 ",Capital grants - Academy Trust
Department for Education,Core,20/01/2023,Grants Expenditure,Capital Directorate,Scawby Academy,CAY142587,"57,397.00 ",Capital grants - Academy Trust
Department for Education,Core,20/01/2023,Grants Expenditure,Capital Directorate,Newbridge High School  ,CAY142588,"56,856.00 ",Capital grants - Academy Trust
Department for Education,Core,20/01/2023,Grants Expenditure,Capital Directorate,Newbridge High School  ,CAY142589,"62,988.00 ",Capital grants - Academy Trust
Department for Education,Core,20/01/2023,Grants Expenditure,Capital Directorate,Warren Farm Primary School,CAY142590,"262,054.00 ",Capital grants - Academy Trust
Department for Education,Core,20/01/2023,Grants Expenditure,Capital Directorate,Seaford Head School,CAY142591,"122,960.00 ",Capital grants - Academy Trust
Department for Education,Core,20/01/2023,Grants Expenditure,Capital Directorate,Tarporley High School and Sixth Form College,CAY142592,"91,759.00 ",Capital grants - Academy Trust
Department for Education,Core,20/01/2023,Grants Expenditure,Capital Directorate,The Bishop Wand Church of England School,CAY142593,"58,280.00 ",Capital grants - Academy Trust
Department for Education,Core,20/01/2023,Grants Expenditure,Capital Directorate,The Bishop Wand Church of England School,CAY142594,"288,214.00 ",Capital grants - Academy Trust
Department for Education,Core,20/01/2023,Grants Expenditure,Capital Directorate,Albany Academy,CAY142595,"37,607.00 ",Capital grants - Academy Trust
Department for Education,Core,20/01/2023,Grants Expenditure,Capital Directorate,Stephenson Way Academy and Nursery School,CAY142596,"66,081.00 ",Capital grants - Academy Trust
Department for Education,Core,20/01/2023,Grants Expenditure,Capital Directorate,The Thomas Cowley High School ,CAY142597,"42,508.00 ",Capital grants - Academy Trust
Department for Education,Core,20/01/2023,Grants Expenditure,Capital Directorate,GREY COURT SCHOOL,CAY142598,"58,000.00 ",Capital grants - Academy Trust
Department for Education,Core,20/01/2023,Grants Expenditure,Capital Directorate,Holywell School,CAY142599,"28,994.00 ",Capital grants - Academy Trust
Department for Education,Core,20/01/2023,Grants Expenditure,Capital Directorate,Thrussington Church of England Primary School,CAY142600,"89,379.00 ",Capital grants - Academy Trust
Department for Education,Core,20/01/2023,Grants Expenditure,Capital Directorate,Worthing High School,CAY142601,"25,392.00 ",Capital grants - Academy Trust
Department for Education,Core,20/01/2023,Grants Expenditure,Capital Directorate,Cleves Cross Primary School,CAY142603,"115,890.00 ",Capital grants - Academy Trust
Department for Education,Core,20/01/2023,Grants Expenditure,Capital Directorate,Dodworth St John the Baptist CofE Primary Academy,CAY142604,"66,683.00 ",Capital grants - Academy Trust
Department for Education,Core,20/01/2023,Grants Expenditure,Capital Directorate,Richmond Hill Primary Academy,CAY142605,"158,000.00 ",Capital grants - Academy Trust
Department for Education,Core,20/01/2023,Grants Expenditure,Capital Directorate,Oxclose Primary Academy,CAY142606,"72,096.00 ",Capital grants - Academy Trust
Department for Education,Core,20/01/2023,Grants Expenditure,Capital Directorate,Chetwynde School ,CAY142607,"98,466.00 ",Capital grants - Academy Trust
Department for Education,Core,20/01/2023,Grants Expenditure,Capital Directorate,Chetwynde School ,CAY142608,"90,271.00 ",Capital grants - Academy Trust
Department for Education,Core,20/01/2023,Grants Expenditure,Capital Directorate,Sharples School,CAY142609,"50,019.00 ",Capital grants - Academy Trust
Department for Education,Core,20/01/2023,Grants Expenditure,Capital Directorate,Burnt Ash Primary School,CAY142610,"52,927.00 ",Capital grants - Academy Trust
Department for Education,Core,20/01/2023,Grants Expenditure,Capital Directorate,Bearnes Voluntary Primary School,CAY142611,"64,028.00 ",Capital grants - Academy Trust
Department for Education,Core,20/01/2023,Grants Expenditure,Capital Directorate,St Aidan's Catholic Primary School,CAY142612,"106,550.00 ",Capital grants - Academy Trust
Department for Education,Core,20/01/2023,Grants Expenditure,Capital Directorate,Skelmanthorpe Academy,CAY142613,"49,516.00 ",Capital grants - Academy Trust
Department for Education,Core,20/01/2023,Grants Expenditure,Capital Directorate,Skelmanthorpe Academy,CAY142614,"198,803.00 ",Capital grants - Academy Trust
Department for Education,Core,20/01/2023,Grants Expenditure,Capital Directorate,Larwood Academy ,CAY142615,"73,962.00 ",Capital grants - Academy Trust
Department for Education,Core,20/01/2023,Grants Expenditure,Capital Directorate,HALIFAX PRIMARY SCHOOL,CAY142616,"41,881.00 ",Capital grants - Academy Trust
Department for Education,Core,20/01/2023,Grants Expenditure,Capital Directorate,Gentleshaw Primary Academy,CAY142617,"52,614.00 ",Capital grants - Academy Trust
Department for Education,Core,20/01/2023,Grants Expenditure,Capital Directorate,Excalibur Primary School,CAY142618,"100,839.00 ",Capital grants - Academy Trust
Department for Education,Core,20/01/2023,Grants Expenditure,Capital Directorate,Pikemere School,CAY142619,"121,899.00 ",Capital grants - Academy Trust
Department for Education,Core,20/01/2023,Grants Expenditure,Capital Directorate,Reddish Vale High School,CAY142620,"54,785.00 ",Capital grants - Academy Trust
Department for Education,Core,20/01/2023,Grants Expenditure,Capital Directorate,Dormers Wells Junior School,CAY142621,"59,541.00 ",Capital grants - Academy Trust
Department for Education,Core,20/01/2023,Grants Expenditure,Capital Directorate,Wooburn Green Primary School ,CAY142622,"61,182.00 ",Capital grants - Academy Trust
Department for Education,Core,20/01/2023,Grants Expenditure,Capital Directorate,Alma Primary School,CAY142624,"72,067.00 ",Capital grants - Academy Trust
Department for Education,Core,20/01/2023,Grants Expenditure,Capital Directorate,Worcesters Primary School,CAY142625,"51,166.00 ",Capital grants - Academy Trust
Department for Education,Core,20/01/2023,Grants Expenditure,Capital Directorate,Worcesters Primary School,CAY142626,"77,199.00 ",Capital grants - Academy Trust
Department for Education,Core,20/01/2023,Grants Expenditure,Capital Directorate,Greenside Primary School,CAY142627,"34,399.00 ",Capital grants - Academy Trust
Department for Education,Core,20/01/2023,Grants Expenditure,Capital Directorate,Willow Tree Primary School,CAY142628,"75,896.00 ",Capital grants - Academy Trust
Department for Education,Core,20/01/2023,Grants Expenditure,Capital Directorate,Daven Primary School,CAY142629,"147,758.00 ",Capital grants - Academy Trust
Department for Education,Core,20/01/2023,Grants Expenditure,Capital Directorate,St Urban's Catholic Primary School,CAY142630,"29,665.00 ",Capital grants - Academy Trust
Department for Education,Core,20/01/2023,Grants Expenditure,Capital Directorate,WILD BANK COMMUNITY PRIMARY SCHOOL,CAY142632,"392,000.00 ",Capital grants - Academy Trust
Department for Education,Core,20/01/2023,Grants Expenditure,Capital Directorate,St Annes RC School,CAY142633,"119,959.00 ",Capital grants - Academy Trust
Department for Education,Core,20/01/2023,Grants Expenditure,Capital Directorate,Corpus Christi Catholic College,CAY142634,"344,787.00 ",Capital grants - Academy Trust
Department for Education,Core,20/01/2023,Grants Expenditure,Capital Directorate,Moorside High School,CAY142635,"127,868.00 ",Capital grants - Academy Trust
Department for Education,Core,20/01/2023,Grants Expenditure,Capital Directorate,Redwell Primary School,CAY142636,"320,435.00 ",Capital grants - Academy Trust
Department for Education,Core,20/01/2023,Grants Expenditure,Capital Directorate,Hawksmoor Primary,CAY142637,"68,036.00 ",Capital grants - Academy Trust
Department for Education,Core,20/01/2023,Grants Expenditure,Capital Directorate,Ellesmere Primary,CAY142638,"199,676.00 ",Capital grants - Academy Trust
Department for Education,Core,20/01/2023,Grants Expenditure,Capital Directorate,Stanwick Primary School,CAY142639,"217,608.00 ",Capital grants - Academy Trust
Department for Education,Core,20/01/2023,Grants Expenditure,Capital Directorate,Ashcombe Primary School ,CAY142640,"304,316.00 ",Capital grants - Academy Trust
Department for Education,Core,25/01/2023,Grants Expenditure,Capital Directorate,Tilbury Douglas Construction Limited,D-PINV051801,"63,884.10 ",Capital grants - Academy Trust
Department for Education,Core,20/01/2023,Grants Expenditure,Capital Directorate,London South East Academies Trust,CAY142497,"365,606.00 ",Capital grants - Academy Trust
Department for Education,Core,20/01/2023,Grants Expenditure,Capital Directorate,The Mead Educational Trust,CAY142499,"38,400.00 ",Capital grants - Academy Trust
Department for Education,Core,20/01/2023,Grants Expenditure,Capital Directorate,The Futures Trust,CAY142500,"112,125.00 ",Capital grants - Academy Trust
Department for Education,Core,20/01/2023,Grants Expenditure,Capital Directorate,The Elliot Foundation Academies Trust,CAY142501,"50,000.00 ",Capital grants - Academy Trust
Department for Education,Core,20/01/2023,Grants Expenditure,Capital Directorate,Olive Academies,CAY142502,"29,427.00 ",Capital grants - Academy Trust
Department for Education,Core,20/01/2023,Grants Expenditure,Capital Directorate,Outwood Grange Academies Trust,CAY142503,"251,057.50 ",Capital grants - Academy Trust
Department for Education,Core,20/01/2023,Grants Expenditure,Capital Directorate,Greenshaw Learning Trust,CAY142504,"34,068.00 ",Capital grants - Academy Trust
Department for Education,Core,20/01/2023,Grants Expenditure,Capital Directorate,Tove Learning Trust,CAY142506,"49,193.00 ",Capital grants - Academy Trust
Department for Education,Core,20/01/2023,Grants Expenditure,Capital Directorate,St Teresa of Calcutta Academy Trust,CAY142507,"213,067.00 ",Capital grants - Academy Trust
Department for Education,Core,20/01/2023,Grants Expenditure,Capital Directorate,The Olympus Academy Trust,CAY142641,"197,116.37 ",Capital grants - Academy Trust
Department for Education,Core,20/01/2023,Grants Expenditure,Capital Directorate,Ethos Academy Trust,CAY142643,"57,559.00 ",Capital grants - Academy Trust
Department for Education,Core,20/01/2023,Grants Expenditure,Capital Directorate,The Roseland Multi Academy Trust,CAY142644,"377,952.82 ",Capital grants - Academy Trust
Department for Education,Core,20/01/2023,Grants Expenditure,Capital Directorate,Inspiration Trust,CAY142645,"97,284.48 ",Capital grants - Academy Trust
Department for Education,Core,31/01/2023,Grants Expenditure,Capital Directorate,Tilbury Douglas Construction Limited,D-PINV051232,"63,884.10 ",Capital grants - Academy Trust
Department for Education,Core,16/01/2023,Other Goods & Services,Curriculum and General Qualifications,Future academies,CORE-PINV-050442,"231,665.04 ",Professional Services
Department for Education,Core,16/01/2023,Consultancy,Curriculum and General Qualifications,THE FULL ENGLISH EDUCATION LTD,CORE-PINV-050062,"73,628.40 ",Consultancy - PPM
Department for Education,Core,31/01/2023,Grants Expenditure,Curriculum and General Qualifications,ALL SOULS CE PRIMARY SCHOOL,CORE-MAIN-042643,"163,573.34 ",Current grants - Local Government
Department for Education,Core,31/01/2023,Grants Expenditure,Curriculum and General Qualifications,BURLEY & WOODHEAD CE PRIMARY SCHOOL,CORE-MAIN-042644,"97,686.65 ",Current grants - Local Government
Department for Education,Core,31/01/2023,Grants Expenditure,Curriculum and General Qualifications,Childer Thornton Primary School,CORE-MAIN-042645,"145,579.65 ",Current grants - Academy Trust
Department for Education,Core,31/01/2023,Grants Expenditure,Curriculum and General Qualifications,Westclyst Community Primary School,CORE-MAIN-042646,"116,188.87 ",Current grants - Academy Trust
Department for Education,Core,31/01/2023,Grants Expenditure,Curriculum and General Qualifications,Flying High Trust,CORE-MAIN-042647,"135,810.87 ",Current grants - Academy Trust
Department for Education,Core,31/01/2023,Grants Expenditure,Curriculum and General Qualifications,Ilsham Church of England Academy,CORE-MAIN-042648,"127,200.09 ",Current grants - Academy Trust
Department for Education,Core,31/01/2023,Grants Expenditure,Curriculum and General Qualifications,Jerry Clay Academy,CORE-MAIN-042649,"117,182.38 ",Current grants - Academy Trust
Department for Education,Core,31/01/2023,Grants Expenditure,Curriculum and General Qualifications,Trenance Learning Academy,CORE-MAIN-042650,"118,581.76 ",Current grants - Academy Trust
Department for Education,Core,31/01/2023,Grants Expenditure,Curriculum and General Qualifications,Kingsnorth Church of England Primary School,CORE-MAIN-042651,"85,239.90 ",Current grants - Academy Trust
Department for Education,Core,31/01/2023,Grants Expenditure,Curriculum and General Qualifications,West London Free School Primary,CORE-MAIN-042652,"82,512.16 ",Current grants - Academy Trust
Department for Education,Core,31/01/2023,Grants Expenditure,Curriculum and General Qualifications,Lacey Green Primary Academy,CORE-MAIN-042653,"147,613.34 ",Current grants - Academy Trust
Department for Education,Core,31/01/2023,Grants Expenditure,Curriculum and General Qualifications,Whiston Worry Goose Junior and Infant School,CORE-MAIN-042654,"50,347.84 ",Current grants - Academy Trust
Department for Education,Core,31/01/2023,Grants Expenditure,Curriculum and General Qualifications,LITTLE SUTTON PRIMARY SCHOOL,CORE-MAIN-042655,"133,962.05 ",Current grants - Local Government
Department for Education,Core,31/01/2023,Grants Expenditure,Curriculum and General Qualifications,MANGOTSFIELD CE PRIMARY SCHOOL,CORE-MAIN-042656,"71,665.83 ",Current grants - Local Government
Department for Education,Core,31/01/2023,Grants Expenditure,Curriculum and General Qualifications,MYLAND PRIMARY SCHOOL,CORE-MAIN-042657,"105,802.77 ",Current grants - Local Government
Department for Education,Core,31/01/2023,Grants Expenditure,Curriculum and General Qualifications,NEW VISION TRUST,CORE-MAIN-042658,"66,539.96 ",Current grants - Academy Trust
Department for Education,Core,31/01/2023,Grants Expenditure,Curriculum and General Qualifications,NEW WAVE FEDERATION,CORE-MAIN-042659,"134,956.61 ",Current grants - Local Government
Department for Education,Core,31/01/2023,Grants Expenditure,Curriculum and General Qualifications,CUMBRIA COUNTY COUNCIL,CORE-MAIN-042660,"119,110.69 ",Current grants - Local Government
Department for Education,Core,31/01/2023,Grants Expenditure,Curriculum and General Qualifications,OUTWOOD GRANGE SERVICES LTD,CORE-MAIN-042661,"128,965.39 ",Current grants - Academy Trust
Department for Education,Core,31/01/2023,Grants Expenditure,Curriculum and General Qualifications,ROADE PRIMARY SCHOOL,CORE-MAIN-042662,"105,359.75 ",Current grants - Local Government
Department for Education,Core,31/01/2023,Grants Expenditure,Curriculum and General Qualifications,Springhill Catholic Primary School,CORE-MAIN-042663,"99,261.69 ",Current grants - Academy Trust
Department for Education,Core,31/01/2023,Grants Expenditure,Curriculum and General Qualifications,St John Bosco Catholic Academy,CORE-MAIN-042664,"55,074.11 ",Current grants - Academy Trust
Department for Education,Core,31/01/2023,Grants Expenditure,Curriculum and General Qualifications,BLACKPOOL BOROUGH COUNCIL,CORE-MAIN-042665,"127,460.56 ",Current grants - Local Government
Department for Education,Core,31/01/2023,Grants Expenditure,Curriculum and General Qualifications,St. Michael's C of E Primary School,CORE-MAIN-042666,"114,370.90 ",Current grants - Academy Trust
Department for Education,Core,31/01/2023,Grants Expenditure,Curriculum and General Qualifications,LEARNING UNLIMITED TEACHING SCHOOL ALLIANCE,CORE-MAIN-042667,"110,356.70 ",Current grants - Academy Trust
Department for Education,Core,31/01/2023,Grants Expenditure,Curriculum and General Qualifications,The Greetland Academy,CORE-MAIN-042668,"104,318.52 ",Current grants - Academy Trust
Department for Education,Core,31/01/2023,Grants Expenditure,Curriculum and General Qualifications,LIGHTHOUSE SCHOOLS PARTNERSHIP ST PETERS TEACHING SCHOOL,CORE-MAIN-042669,"134,625.60 ",Current grants - Academy Trust
Department for Education,Core,31/01/2023,Grants Expenditure,Curriculum and General Qualifications,WANDLE TEACHING SCHOOL ALLIANCE,CORE-MAIN-042670,"139,053.34 ",Current grants - Academy Trust
Department for Education,Core,31/01/2023,Grants Expenditure,Curriculum and General Qualifications,The Wensum Trust,CORE-MAIN-042671,"122,120.93 ",Current grants - Academy Trust
Department for Education,Core,31/01/2023,Grants Expenditure,Curriculum and General Qualifications,Westgarth Primary School,CORE-MAIN-042672,"118,830.52 ",Current grants - Academy Trust
Department for Education,Core,31/01/2023,Grants Expenditure,Curriculum and General Qualifications,Witham St Hughs Academy,CORE-MAIN-042673,"141,091.54 ",Current grants - Academy Trust
Department for Education,Core,31/01/2023,Grants Expenditure,Curriculum and General Qualifications,YORKSHIRE ENDEAVOUR ACADEMY TRUST,CORE-MAIN-042674,"112,630.44 ",Current grants - Academy Trust
Department for Education,Core,31/01/2023,Grants Expenditure,Curriculum and General Qualifications,UCL INSTITUTE OF EDUCATION,CORE-MAIN-042642,"239,877.54 ",Current grants - Private Sector
Department for Education,Core,05/01/2023,Grants Expenditure,Curriculum and General Qualifications,Sheffield Music Academy,CORE-MAIN-042569,"73,377.60 ",Current grants - Private Sector
Department for Education,Core,05/01/2023,Grants Expenditure,Curriculum and General Qualifications,The yehudi Menuhin School Ltd,CORE-MAIN-042570,"630,371.00 ",Current grants - Private Sector
Department for Education,Core,05/01/2023,Grants Expenditure,Curriculum and General Qualifications,Royal College of Music,CORE-MAIN-042571,"84,424.00 ",Current grants - Private Sector
Department for Education,Core,05/01/2023,Grants Expenditure,Curriculum and General Qualifications,Dance north,CORE-MAIN-042573,"82,967.00 ",Current grants - Private Sector
Department for Education,Core,05/01/2023,Grants Expenditure,Curriculum and General Qualifications,DANCE EAST,CORE-MAIN-042574,"65,833.00 ",Current grants - Private Sector
Department for Education,Core,05/01/2023,Grants Expenditure,Curriculum and General Qualifications,Swindon Dance,CORE-MAIN-042575,"56,985.00 ",Current grants - Private Sector
Department for Education,Core,05/01/2023,Grants Expenditure,Curriculum and General Qualifications,The Hammond School Limited,CORE-MAIN-042577,"418,820.00 ",Current grants - Private Sector
Department for Education,Core,05/01/2023,Grants Expenditure,Curriculum and General Qualifications,Yorkshire Young Musicians,CORE-MAIN-042578,"69,035.00 ",Current grants - Private Sector
Department for Education,Core,05/01/2023,Grants Expenditure,Curriculum and General Qualifications,Royal Birmingham Conservatoire,CORE-MAIN-042579,"96,559.00 ",Current grants - Private Sector
Department for Education,Core,05/01/2023,Grants Expenditure,Curriculum and General Qualifications,Centre for Young Musicians,CORE-MAIN-042580,"94,838.00 ",Current grants - Private Sector
Department for Education,Core,05/01/2023,Grants Expenditure,Curriculum and General Qualifications,Northern School of Contemporary Dance,CORE-MAIN-042581,"80,541.00 ",Current grants - Private Sector
Department for Education,Core,05/01/2023,Grants Expenditure,Curriculum and General Qualifications,THE ROYAL ACADEMY OF MUSIC,CORE-MAIN-042582,"35,703.00 ",Current grants - Private Sector
Department for Education,Core,05/01/2023,Grants Expenditure,Curriculum and General Qualifications,Chetham's School of Music,CORE-MAIN-042583,"2,154,279.00 ",Current grants - Private Sector
Department for Education,Core,05/01/2023,Grants Expenditure,Curriculum and General Qualifications,Royal Ballet School,CORE-MAIN-042584,"1,056,750.00 ",Current grants - Private Sector
Department for Education,Core,13/01/2023,Grants Expenditure,Curriculum and General Qualifications,Royal Birmingham Conservatoire,CORE-MAIN-042609,"40,546.00 ",Current grants - Private Sector
Department for Education,Core,13/01/2023,Grants Expenditure,Curriculum and General Qualifications,Centre for Young Musicians,CORE-MAIN-042610,"81,290.00 ",Current grants - Private Sector
Department for Education,Core,13/01/2023,Grants Expenditure,Curriculum and General Qualifications,Northern School of Contemporary Dance,CORE-MAIN-042611,"69,035.00 ",Current grants - Private Sector
Department for Education,Core,13/01/2023,Grants Expenditure,Curriculum and General Qualifications,THE ROYAL ACADEMY OF MUSIC,CORE-MAIN-042612,"35,337.00 ",Current grants - Private Sector
Department for Education,Core,13/01/2023,Grants Expenditure,Curriculum and General Qualifications,Chetham's School of Music,CORE-MAIN-042613,"613,326.00 ",Current grants - Private Sector
Department for Education,Core,13/01/2023,Grants Expenditure,Curriculum and General Qualifications,Wells Cathedral School,CORE-MAIN-042614,"1,076,939.00 ",Current grants - Private Sector
Department for Education,Core,13/01/2023,Grants Expenditure,Curriculum and General Qualifications,Aldeburgh Young Musicians,CORE-MAIN-042615,"25,000.00 ",Current grants - Private Sector
Department for Education,Core,31/01/2023,Grants Expenditure,Curriculum and General Qualifications,The Purcell School,CORE-MAIN-042676,"1,361,377.00 ",Current grants - Private Sector
Department for Education,Core,31/01/2023,Grants Expenditure,Curriculum and General Qualifications,Aldeburgh Young Musicians,CORE-MAIN-042678,"25,000.00 ",Current grants - Private Sector
Department for Education,Core,31/01/2023,Grants Expenditure,Curriculum and General Qualifications,Contemporary Dance Trust Limited,CORE-MAIN-042679,"173,316.15 ",Current grants - Private Sector
Department for Education,Core,31/01/2023,Grants Expenditure,Curriculum and General Qualifications,Sage Gateshead,CORE-MAIN-042680,"95,884.00 ",Current grants - Private Sector
Department for Education,Core,31/01/2023,Grants Expenditure,Curriculum and General Qualifications,Elmhurst Ballet School Trust,CORE-MAIN-042681,"724,990.00 ",Current grants - Private Sector
Department for Education,Core,31/01/2023,Grants Expenditure,Curriculum and General Qualifications,Royal Northern College of Music,CORE-MAIN-042682,"39,582.00 ",Current grants - Private Sector
Department for Education,Core,31/01/2023,Grants Expenditure,Curriculum and General Qualifications,THE EDUCATION ENDOWMENT FOUNDATION,CUPS0059242,"-844,306.00 ",Current grants - Private Sector
Department for Education,Core,31/01/2023,Grants Expenditure,Curriculum and General Qualifications,THE EDUCATION ENDOWMENT FOUNDATION,CORE-MAIN-042683,"4,182,570.00 ",Current grants - Private Sector
Department for Education,Core,31/01/2023,Grants Expenditure,Curriculum and General Qualifications,LIGHTHOUSE SCHOOLS PARTNERSHIP ST PETERS TEACHING SCHOOL,CORE-MAIN-042684,"114,767.78 ",Current grants - Academy Trust
Department for Education,Core,31/01/2023,Grants Expenditure,Curriculum and General Qualifications,Witham St Hughs Academy,CORE-MAIN-042685,"106,269.54 ",Current grants - Academy Trust
Department for Education,Core,31/01/2023,Grants Expenditure,Curriculum and General Qualifications,BLACKPOOL BOROUGH COUNCIL,CORE-MAIN-042687,"141,860.81 ",Current grants - Local Government
Department for Education,Core,31/01/2023,Grants Expenditure,Curriculum and General Qualifications,ROADE PRIMARY SCHOOL,CORE-MAIN-042688,"58,140.77 ",Current grants - Local Government
Department for Education,Core,31/01/2023,Grants Expenditure,Curriculum and General Qualifications,OUTWOOD GRANGE SERVICES LTD,CORE-MAIN-042689,"85,424.12 ",Current grants - Private Sector
Department for Education,Core,31/01/2023,Grants Expenditure,Curriculum and General Qualifications,NEW WAVE FEDERATION,CORE-MAIN-042690,"74,951.68 ",Current grants - Private Sector
Department for Education,Core,31/01/2023,Grants Expenditure,Curriculum and General Qualifications,NEW VISION TRUST,CORE-MAIN-042691,"135,727.53 ",Current grants - Academy Trust
Department for Education,Core,31/01/2023,Grants Expenditure,Curriculum and General Qualifications,MANGOTSFIELD CE PRIMARY SCHOOL,CORE-MAIN-042692,"93,808.02 ",Current grants - Local Government
Department for Education,Core,31/01/2023,Grants Expenditure,Curriculum and General Qualifications,LITTLE SUTTON PRIMARY SCHOOL,CORE-MAIN-042693,"74,944.24 ",Current grants - Local Government
Department for Education,Core,31/01/2023,Grants Expenditure,Curriculum and General Qualifications,Whiston Worry Goose Junior and Infant School,CORE-MAIN-042694,"160,879.24 ",Current grants - Academy Trust
Department for Education,Core,31/01/2023,Grants Expenditure,Curriculum and General Qualifications,Lacey Green Primary Academy,CORE-MAIN-042695,"48,450.64 ",Current grants - Academy Trust
Department for Education,Core,31/01/2023,Grants Expenditure,Curriculum and General Qualifications,Jerry Clay Academy,CORE-MAIN-042696,"85,424.12 ",Current grants - Academy Trust
Department for Education,Core,31/01/2023,Grants Expenditure,Curriculum and General Qualifications,Flying High Trust,CORE-MAIN-042697,"51,494.77 ",Current grants - Academy Trust
Department for Education,Core,31/01/2023,Grants Expenditure,Curriculum and General Qualifications,St. Michael's C of E Primary School,CORE-MAIN-042698,"135,727.53 ",Current grants - Academy Trust
Department for Education,Core,31/01/2023,Grants Expenditure,Curriculum and General Qualifications,ALL SOULS CE PRIMARY SCHOOL,CORE-MAIN-042699,"219,566.56 ",Current grants - Local Government
Department for Education,Core,31/01/2023,Grants Expenditure,Curriculum and General Qualifications,BURLEY & WOODHEAD CE PRIMARY SCHOOL,CORE-MAIN-042700,"63,954.85 ",Current grants - Local Government
Department for Education,Core,31/01/2023,Grants Expenditure,Curriculum and General Qualifications,Childer Thornton Primary School,CORE-MAIN-042701,"72,675.96 ",Current grants - Academy Trust
Department for Education,Core,31/01/2023,Grants Expenditure,Curriculum and General Qualifications,Westclyst Community Primary School,CORE-MAIN-042702,"76,218.63 ",Current grants - Academy Trust
Department for Education,Core,31/01/2023,Grants Expenditure,Curriculum and General Qualifications,Trenance Learning Academy,CORE-MAIN-042703,"32,271.87 ",Current grants - Academy Trust
Department for Education,Core,31/01/2023,Grants Expenditure,Curriculum and General Qualifications,Kingsnorth Church of England Primary School,CORE-MAIN-042704,"74,944.24 ",Current grants - Academy Trust
Department for Education,Core,31/01/2023,Grants Expenditure,Curriculum and General Qualifications,West London Free School Primary,CORE-MAIN-042705,"58,140.77 ",Current grants - Academy Trust
Department for Education,Core,31/01/2023,Grants Expenditure,Curriculum and General Qualifications,MYLAND PRIMARY SCHOOL,CORE-MAIN-042706,"88,976.33 ",Current grants - Local Government
Department for Education,Core,31/01/2023,Grants Expenditure,Curriculum and General Qualifications,Ramsbury English Hub,CORE-MAIN-042707,"68,505.33 ",Current grants - Local Government
Department for Education,Core,31/01/2023,Grants Expenditure,Curriculum and General Qualifications,Springhill Catholic Primary School,CORE-MAIN-042708,"72,675.96 ",Current grants - Academy Trust
Department for Education,Core,31/01/2023,Grants Expenditure,Curriculum and General Qualifications,St John Bosco Catholic Academy,CORE-MAIN-042709,"72,675.96 ",Current grants - Academy Trust
Department for Education,Core,31/01/2023,Grants Expenditure,Curriculum and General Qualifications,LEARNING UNLIMITED TEACHING SCHOOL ALLIANCE,CORE-MAIN-042710,"85,424.12 ",Current grants - Private Sector
Department for Education,Core,31/01/2023,Grants Expenditure,Curriculum and General Qualifications,The Greetland Academy,CORE-MAIN-042711,"77,040.21 ",Current grants - Academy Trust
Department for Education,Core,31/01/2023,Grants Expenditure,Curriculum and General Qualifications,WANDLE TEACHING SCHOOL ALLIANCE,CORE-MAIN-042712,"135,727.53 ",Current grants - Private Sector
Department for Education,Core,31/01/2023,Grants Expenditure,Curriculum and General Qualifications,The Wensum Trust,CORE-MAIN-042713,"74,944.24 ",Current grants - Academy Trust
Department for Education,Core,31/01/2023,Grants Expenditure,Curriculum and General Qualifications,Westgarth Primary School,CORE-MAIN-042714,"52,326.69 ",Current grants - Academy Trust
Department for Education,Core,31/01/2023,Grants Expenditure,Curriculum and General Qualifications,YORKSHIRE ENDEAVOUR ACADEMY TRUST,CORE-MAIN-042715,"77,040.22 ",Current grants - Academy Trust
Department for Education,Core,10/01/2023,Other Goods & Services,Teaching Workforce and National Tutoring Programme,COGNITION EDUCATION,CORE-PINV-048830,"231,074.00 ",Professional Services
Department for Education,Core,27/01/2023,Other Costs,Teaching Workforce and National Tutoring Programme,ENGINE PARTNERS UK LLP THE ENGINE GROUP LTD,CORE-PINV-050414,"107,284.20 ",Software Development
Department for Education,Core,23/01/2023,Learning & Development,Curriculum and General Qualifications,STEM LEARNING LTD,CORE-PINV-050775,"472,647.75 ",Training costs
Department for Education,Core,23/01/2023,Learning & Development,Curriculum and General Qualifications,STEM LEARNING LTD,CORE-PINV-050774,"45,875.00 ",Training costs
Department for Education,Core,23/01/2023,Learning & Development,Curriculum and General Qualifications,STEM LEARNING LTD,CORE-PINV-050774,"170,640.00 ",Training costs
Department for Education,Core,23/01/2023,Learning & Development,Curriculum and General Qualifications,STEM LEARNING LTD,CORE-PINV-050773,"102,129.53 ",Training costs
Department for Education,Core,06/01/2023,Learning & Development,Curriculum and General Qualifications,Tribal Education Limited,CORE-PINV-049882,"354,914.61 ",Training & Development - Coaching
Department for Education,Core,26/01/2023,Other Goods & Services,Curriculum and General Qualifications,MATHEMATICS IN EDUCATION & INDUSTRY,CORE-PINV-051076,"694,335.00 ",Professional Services - Education Services
Department for Education,Core,05/01/2023,Other Goods & Services,Curriculum and General Qualifications,STEM LEARNING LTD,CORE-PINV-049732,"78,054.42 ",Professional Services - Education Services
Department for Education,Core,05/01/2023,Other Goods & Services,Curriculum and General Qualifications,STEM LEARNING LTD,CORE-PINV-049733,"82,278.13 ",Professional Services - Education Services
Department for Education,Core,05/01/2023,Other Goods & Services,Curriculum and General Qualifications,STEM LEARNING LTD,CORE-PINV-049734,"240,000.00 ",Professional Services - Education Services
Department for Education,Core,05/01/2023,Other Goods & Services,Curriculum and General Qualifications,STEM LEARNING LTD,CORE-PINV-049735,"65,611.77 ",Professional Services - Education Services
Department for Education,Core,05/01/2023,Other Goods & Services,Curriculum and General Qualifications,STEM LEARNING LTD,CORE-PINV-049737,"150,285.71 ",Professional Services - Education Services
Department for Education,Core,25/01/2023,Other Goods & Services,Curriculum and General Qualifications,STEM LEARNING LTD,CORE-PINV-051028,"150,285.71 ",Professional Services - Education Services
Department for Education,Core,25/01/2023,Other Goods & Services,Curriculum and General Qualifications,STEM LEARNING LTD,CORE-PINV-051027,"65,681.48 ",Professional Services - Education Services
Department for Education,Core,25/01/2023,Other Goods & Services,Curriculum and General Qualifications,STEM LEARNING LTD,CORE-PINV-051026,"240,000.00 ",Professional Services - Education Services
Department for Education,Core,25/01/2023,Other Goods & Services,Curriculum and General Qualifications,STEM LEARNING LTD,CORE-PINV-051025,"82,278.13 ",Professional Services - Education Services
Department for Education,Core,25/01/2023,Other Goods & Services,Curriculum and General Qualifications,STEM LEARNING LTD,CORE-PINV-051024,"78,054.42 ",Professional Services - Education Services
Department for Education,Core,16/01/2023,Other Goods & Services,Children's Social Care - Safeguarding and Workforce,MUTUAL VENTURES LTD,CORE-PINV-050453,"268,800.00 ",Professional Services
Department for Education,Core,05/01/2023,Other Goods & Services,Children's Social Care - Safeguarding and Workforce,THE FRONTLINE ORGANISATION,CORE-PINV-049472,"795,102.91 ",Professional Services - Education Services
Department for Education,Core,05/01/2023,IS/IT,Children's Social Care - Safeguarding and Workforce,THE FRONTLINE ORGANISATION,CORE-PINV-049472,"143,780.98 ",Professional Services - Grants and Awards
Department for Education,Core,05/01/2023,Grants Expenditure,Children's Social Care - Safeguarding and Workforce,THE FRONTLINE ORGANISATION,CORE-PINV-049472,"176,357.54 ",Current grants - Private Sector
Department for Education,Core,05/01/2023,Other Goods & Services,Children's Social Care - Safeguarding and Workforce,THE FRONTLINE ORGANISATION,CORE-PINV-049572,"292,887.34 ",Professional Services - Education Services
Department for Education,Core,10/01/2023,Other Goods & Services,Children's Social Care - Safeguarding and Workforce,VSC PLUS LIMITED,CORE-PINV-049910,"53,182.80 ",Professional Services
Department for Education,Core,11/01/2023,IS/IT,Children's Social Care - Safeguarding and Workforce,SKILLS FOR CARE LTD,CORE-PINV-050060,"35,106.67 ",Professional Services - Grants and Awards
Department for Education,Core,09/01/2023,Other Goods & Services,Children's Social Care - Safeguarding and Workforce,THE FRONTLINE ORGANISATION,CORE-PCR-001782,"-795,102.91 ",Professional Services - Education Services
Department for Education,Core,09/01/2023,IS/IT,Children's Social Care - Safeguarding and Workforce,THE FRONTLINE ORGANISATION,CORE-PCR-001782,"-143,780.98 ",Professional Services - Grants and Awards
Department for Education,Core,09/01/2023,Grants Expenditure,Children's Social Care - Safeguarding and Workforce,THE FRONTLINE ORGANISATION,CORE-PCR-001782,"-176,357.54 ",Current grants - Private Sector
Department for Education,Core,12/01/2023,Grants Expenditure,Children's Social Care - Safeguarding and Workforce,THE FRONTLINE ORGANISATION,CORE-PINV-049570,"210,938.10 ",Current grants - Private Sector
Department for Education,Core,13/01/2023,Grants Expenditure,Children's Social Care - Safeguarding and Workforce,WHAT WORKS FOR CHILDREN'S SOCIAL CARE,CORE-MAIN-042616,"477,645.94 ",Current grants - Private Sector
Department for Education,Core,18/01/2023,Other Goods & Services,Children's Social Care - Safeguarding and Workforce,ALPHA PLUS CONSULTANCY LTD,CORE-PINV-050592,"47,391.66 ",Professional Services - Education Services
Department for Education,Core,20/01/2023,Other Goods & Services,Children's Social Care - Safeguarding and Workforce,Talent International (UK) Ltd,CORE-PINV-050645,"107,664.60 ",Professional Services
Department for Education,Core,20/01/2023,Other Goods & Services,Children's Social Care - Safeguarding and Workforce,FARSIGHT CONSULTING LIMITED,CORE-PINV-050726,"53,202.00 ",Professional Services
Department for Education,Core,31/01/2023,Grants Expenditure,Children's Social Care - Safeguarding and Workforce,ESSEX COUNTY COUNCIL,CORE-MAIN-042716,"84,233.46 ",Current grants - Local Government
Department for Education,Core,31/01/2023,Grants Expenditure,Children's Social Care - Safeguarding and Workforce,HAMMERSMITH & FULHAM LONDON BOROUGH COUNCIL,CORE-MAIN-042717,"75,366.78 ",Current grants - Local Government
Department for Education,Core,31/01/2023,Grants Expenditure,Children's Social Care - Safeguarding and Workforce,HAVERING LONDON BOROUGH COUNCIL,CORE-MAIN-042718,"46,550.07 ",Current grants - Local Government
Department for Education,Core,31/01/2023,Grants Expenditure,Children's Social Care - Safeguarding and Workforce,BRACKNELL FOREST BOROUGH COUNCIL,CORE-MAIN-042719,"31,033.38 ",Current grants - Local Government
Department for Education,Core,31/01/2023,Grants Expenditure,Children's Social Care - Safeguarding and Workforce,DERBY CITY COUNCIL,CORE-MAIN-042720,"97,533.48 ",Current grants - Local Government
Department for Education,Core,31/01/2023,Grants Expenditure,Children's Social Care - Safeguarding and Workforce,Lancashire County Council,CORE-MAIN-042721,"35,466.72 ",Current grants - Local Government
Department for Education,Core,31/01/2023,Grants Expenditure,Children's Social Care - Safeguarding and Workforce,KENT COUNTY COUNCIL,CORE-MAIN-042722,"37,683.39 ",Current grants - Local Government
Department for Education,Core,31/01/2023,Grants Expenditure,Children's Social Care - Safeguarding and Workforce,NORTH TYNESIDE METRO BOROUGH COUNCIL,CORE-MAIN-042723,"97,533.48 ",Current grants - Local Government
Department for Education,Core,31/01/2023,Grants Expenditure,Children's Social Care - Safeguarding and Workforce,HAMPSHIRE COUNTY COUNCIL,CORE-MAIN-042724,"57,633.33 ",Current grants - Local Government
Department for Education,Core,31/01/2023,Grants Expenditure,Children's Social Care - Safeguarding and Workforce,BRIGHTON & HOVE CITY COUNCIL,CORE-MAIN-042725,"33,250.05 ",Current grants - Local Government
Department for Education,Core,31/01/2023,Grants Expenditure,Children's Social Care - Safeguarding and Workforce,GREENWICH LONDON BOROUGH COUNCIL,CORE-MAIN-042726,"64,283.43 ",Current grants - Local Government
Department for Education,Core,31/01/2023,Grants Expenditure,Children's Social Care - Safeguarding and Workforce,Buckinghamshire Council,CORE-MAIN-042727,"39,900.06 ",Current grants - Local Government
Department for Education,Core,31/01/2023,Grants Expenditure,Children's Social Care - Safeguarding and Workforce,Bournemouth Christchurch and Poole Council,CORE-MAIN-042728,"31,033.38 ",Current grants - Local Government
Department for Education,Core,31/01/2023,Grants Expenditure,Children's Social Care - Safeguarding and Workforce,Somerset County Council,CORE-MAIN-042729,"104,183.49 ",Current grants - Local Government
Department for Education,Core,31/01/2023,Grants Expenditure,Children's Social Care - Safeguarding and Workforce,LEEDS CITY COUNCIL,CORE-MAIN-042730,"137,433.54 ",Current grants - Local Government
Department for Education,Core,31/01/2023,Grants Expenditure,Children's Social Care - Safeguarding and Workforce,STOKE ON TRENT CITY COUNCIL,CORE-MAIN-042731,"113,050.17 ",Current grants - Local Government
Department for Education,Core,31/01/2023,Grants Expenditure,Children's Social Care - Safeguarding and Workforce,SHEFFIELD CITY COUNCIL,CORE-MAIN-042732,"119,700.18 ",Current grants - Local Government
Department for Education,Core,31/01/2023,Grants Expenditure,Children's Social Care - Safeguarding and Workforce,ISLINGTON LONDON BOROUGH COUNCIL,CORE-MAIN-042734,"64,283.43 ",Current grants - Local Government
Department for Education,Core,31/01/2023,Grants Expenditure,Children's Social Care - Safeguarding and Workforce,HERTFORDSHIRE COUNTY COUNCIL,CORE-MAIN-042735,"37,675.40 ",Current grants - Local Government
Department for Education,Core,31/01/2023,Grants Expenditure,Children's Social Care - Safeguarding and Workforce,SKILLS FOR CARE LTD,CORE-MAIN-042736,"520,000.00 ",Current grants - Private Sector
Department for Education,Core,31/01/2023,Grants Expenditure,Children's Social Care - Safeguarding and Workforce,Salford City Council,CORE-MAIN-042737,"66,500.10 ",Current grants - Local Government
Department for Education,Core,31/01/2023,Grants Expenditure,Children's Social Care - Safeguarding and Workforce,WIRRAL METRO BOROUGH COUNCIL,CORE-MAIN-042738,"68,716.77 ",Current grants - Local Government
Department for Education,Core,05/01/2023,Consultancy,Children's Social Care - Strategy and Care System,Faithful & Gould,CORE-PINV-049018,"31,644.50 ",Consultancy - PPM
Department for Education,Core,05/01/2023,Other Goods & Services,Children's Social Care - Strategy and Care System,Mott MacDonald Ltd,CORE-PINV-048489,"198,217.72 ",Professional Services
Department for Education,Core,05/01/2023,Other Goods & Services,Children's Social Care - Strategy and Care System,FAMILY LIVES,CORE-PINV-049322,"75,063.47 ",Professional Services
Department for Education,Core,05/01/2023,Other Operating Costs,Children's Social Care - Strategy and Care System,CORAM,CORE-PINV-048632,"1,375.00 ",Miscellaneous expenditure
Department for Education,Core,05/01/2023,Other Operating Costs,Children's Social Care - Strategy and Care System,CORAM,CORE-PINV-048632,"30,475.28 ",Miscellaneous expenditure
Department for Education,Core,10/01/2023,Other Goods & Services,Children's Social Care - Strategy and Care System,GRANDPARENTS PLUS,CORE-PINV-049594,"267,542.23 ",Professional Services
Department for Education,Core,19/01/2023,Other Operating Costs,Children's Social Care - Strategy and Care System,CORAM,CORE-PINV-050326,"30,475.27 ",Miscellaneous expenditure
Department for Education,Core,05/01/2023,Other Goods & Services,Children's Social Care - Safeguarding and Workforce,MUTUAL VENTURES LTD,CORE-PINV-049440,"77,397.60 ",Professional Services
Department for Education,Core,06/01/2023,Other Goods & Services,Children's Social Care - Safeguarding and Workforce,THE DARTINGTON HALL TRUST,CORE-PINV-049876,"214,319.70 ",Professional Services
Department for Education,Core,13/01/2023,Grants Expenditure,Children's Social Care - Safeguarding and Workforce,NORTH YORKSHIRE COUNTY COUNCIL,CORE-MAIN-042617,"214,056.00 ",Current grants - Local Government
Department for Education,Core,13/01/2023,Grants Expenditure,Children's Social Care - Safeguarding and Workforce,HERTFORDSHIRE COUNTY COUNCIL,CORE-MAIN-042618,"634,387.00 ",Current grants - Local Government
Department for Education,Core,13/01/2023,Grants Expenditure,Children's Social Care - Safeguarding and Workforce,ROCHDALE BOROUGH COUNCIL,CORE-MAIN-042619,"239,213.00 ",Current grants - Local Government
Department for Education,Core,13/01/2023,Grants Expenditure,Children's Social Care - Safeguarding and Workforce,REDCAR & CLEVELAND BOROUGH COUNCIL,CORE-MAIN-042620,"358,612.00 ",Current grants - Local Government
Department for Education,Core,18/01/2023,Marketing/Media and Comms,Communications,SCROLL PROJECTS LTD,CORE-PINV-050628,"90,030.00 ",Marketing and Media costs
Department for Education,Core,13/01/2023,Grants Expenditure,SEND and Alternative Provision,Learn Sheffield,CORE-MAIN-042623,"121,873.00 ",Current grants - Private Sector
Department for Education,Core,31/01/2023,Grants Expenditure,SEND and Alternative Provision,NEWHAM LONDON BOROUGH COUNCIL,CORE-MAIN-042739,"546,288.00 ",Current grants - Local Government
Department for Education,Core,31/01/2023,Grants Expenditure,SEND and Alternative Provision,MANCHESTER CITY COUNCIL,CORE-MAIN-042740,"1,426,957.00 ",Current grants - Local Government
Department for Education,Core,31/01/2023,Grants Expenditure,SEND and Alternative Provision,HARINGEY LONDON BOROUGH COUNCIL,CORE-MAIN-042741,"546,288.00 ",Current grants - Local Government
Department for Education,Core,31/01/2023,Grants Expenditure,SEND and Alternative Provision,CORE & Co Foundation,CORE-MAIN-042742,"427,416.00 ",Current grants - Private Sector
Department for Education,Core,13/01/2023,Grants Expenditure,SEND and Alternative Provision,ENFIELD LONDON BOROUGH COUNCIL,CORE-MAIN-042621,"32,189.48 ",Current grants - Local Government
Department for Education,Core,13/01/2023,Grants Expenditure,SEND and Alternative Provision,MANCHESTER CITY COUNCIL,CORE-MAIN-042622,"65,463.22 ",Current grants - Local Government
Department for Education,Core,09/01/2023,Other Goods & Services,SEND and Alternative Provision,CONTACT,CORE-PINV-049886,"258,087.01 ",Professional Services
Department for Education,Core,16/01/2023,Other Goods & Services,SEND and Alternative Provision,NASEN,CORE-PINV-048214,"123,817.84 ",Professional Services
Department for Education,Core,17/01/2023,Grants Expenditure,SEND and Alternative Provision,UNIVERSITY COLLEGE LONDON,CORE-PINV-050331,"434,720.00 ",Current grants - Private Sector
Department for Education,Core,18/01/2023,Grants Expenditure,SEND and Alternative Provision,UNIVERSITY COLLEGE LONDON,CORE-PINV-050186,"711,780.00 ",Current grants - Private Sector
Department for Education,Core,18/01/2023,Other Goods & Services,SEND and Alternative Provision,COUNCIL FOR DISABLED CHILDREN,CORE-PINV-050663,"52,293.79 ",Professional Services
Department for Education,Core,31/01/2023,Grants Expenditure,SEND and Alternative Provision,THE FAMILY FUND TRUST,CUPS0059032,"1,242,000.00 ",Current grants - Private Sector
Department for Education,Core,27/01/2023,Learning & Development,SEND and Alternative Provision,Inclusive Trading CIC ,CORE-PINV-051168,"42,281.20 ",Training & Development - Coaching
Department for Education,Core,31/01/2023,Grants Expenditure,SEND and Alternative Provision,SUNDERLAND CITY METRO BOROUGH COUNCIL,CORE-MAIN-042743,"146,763.71 ",Current grants - Local Government
Department for Education,Core,31/01/2023,Grants Expenditure,SEND and Alternative Provision,WALSALL METRO BOROUGH COUNCIL,CORE-MAIN-042744,"326,012.24 ",Current grants - Local Government
Department for Education,Core,31/01/2023,Grants Expenditure,SEND and Alternative Provision,PLYMOUTH CITY COUNCIL,CORE-MAIN-042745,"132,158.79 ",Current grants - Local Government
Department for Education,Core,31/01/2023,Grants Expenditure,SEND and Alternative Provision,CAMDEN LONDON BOROUGH COUNCIL,CORE-MAIN-042746,"57,754.00 ",Current grants - Local Government
Department for Education,Core,31/01/2023,Grants Expenditure,SEND and Alternative Provision,Gloucestershire County Council,CORE-MAIN-042747,"33,669.00 ",Current grants - Local Government
Department for Education,Core,31/01/2023,Grants Expenditure,SEND and Alternative Provision,CAMBRIDGESHIRE COUNTY COUNCIL,CORE-MAIN-042748,"28,924.71 ",Current grants - Local Government
Department for Education,Core,13/01/2023,Grants Expenditure,National Directorate,Leigh Academies Trust,CORE-MAIN-042624,"45,049.00 ",Current grants - Academy Trust
Department for Education,Core,31/01/2023,Grants Expenditure,National Directorate,Transforming futures multi academy trust limited,CORE-MAIN-042752,"40,000.00 ",Capital grants - Academy Trust
Department for Education,Core,31/01/2023,Grants Expenditure,National Directorate,Manor Park Church of England First School,CORE-MAIN-042753,"40,000.00 ",Capital grants - Academy Trust
